Workbook

Sheet PPNE1
B1: Plan Operativo Anual
B2: Servicio Nacional de Salud
B3: Dirección de Planificación y Desarrollo | K3: 2025 | L3: 2026 | M3: 2027 | N3: 2028
B4: Programación Insumos por Producto Nivel Especializado | K4: Cibao Norte | L4: Cibao Sur | M4: Cibao Nordeste | N4: Cibao Noroeste | O4: Valdesia | P4: El Valle | Q4: Enriquillo | R4: Yuma | S4: Higüamo | T4: Ozama
B5: Año | C5: 2026
A6: Servicio Regional de Salud: | B6: Cibao Norte
A7: CEAS
A8: Productos Terminales | B8: Unidad de Medida | C8: Meta Lograda Año 2024 | D8: Meta Proyectada a Lograr Año 2025 | E8: Meta Proyectada Año 2026 | F8: Programación Trimestral | K8: Meta Lograda actual periodo Año 2025
F9: 1er. Trimestre | G9: 2do. Trimestre | H9: 3er. Trimestre | I9: 4to. Trimestre
A10: Servicio de Consulta Externa | B10: Consultas | C10: =SUM(C11:C12) -> 186267 | D10: =SUM(D11:D12) -> 167,928 | E10: 152,087 | F10: 35,237 | G10: 38,210 | H10: 41,626 | I10: 37,014 | K10: =SUM(K11:K12) -> 97,958
A11: Primera Vez | C11: 62459 | D11: =(K11/7)*12 -> 50948.57143 | E11: =IF(C11="",0,(D11/C11)*D11) -> 41559 | F11: =(15788/C11)*E11 -> 10505.12167 | G11: =(15361/C11)*E11 -> 10221.00164 | H11: =(15395/C11)*E11 -> 10243.62478 | I11: =(15915/C11)*E11 -> 10589.62575 | K11: 29720
A12: Subsecuente | C12: 123808 | D12: =(K12/7)*12 -> 116979.4286 | E12: =IF(C12="",0,(D12/C12)*D12) -> 110527 | F12: =(27704/C12)*E12 -> 24,732 | G12: =(31352/C12)*E12 -> 27,989 | H12: =(35153/C12)*E12 -> 31,382 | I12: =(29599/C12)*E12 -> 26,424 | K12: 68238
A13: Servicio de Emergencia | B13: Consultas | C13: =SUM(C14) -> 62767 | D13: =D14 -> 60,694 | E13: 58,690 | F13: 12,713 | G13: 14,677 | H13: 15,690 | I13: 15,610 | K13: 35,405
A14: Emergencias | C14: 62767 | D14: =(K14/7)*12 -> 60694.28571 | E14: =IF(C14="",0,(D14/C14)*D14) -> 58690 | F14: =(13596/C14)*E14 -> 12,713 | G14: =(15697/C14)*E14 -> 14,677 | H14: =(16780/C14)*E14 -> 15,690 | I14: =(16694/C14)*E14 -> 15,610 | K14: 35405
A15: Servicio Hospitalización | B15: Egresos | C15: =SUM(C16:C29) -> 12563 | D15: =SUM(D16:D29) -> 10,037 | E15: 8,002 | F15: 1,517 | G15: 11,437 | H15: 2,223 | I15: 2,267 | K15: =SUM(K16:K29) -> 5,855
A16: Medicina General | C16: 45 | D16: =(K16/7)*12 -> 44.57142857 | E16: =IF(C16="",0,(D16/C16)*D16) -> 44 | F16: =(11/C16)*E16 -> 11 | G16: =(0/C16)*E16 -> 0 | H16: =(0/C16)*0 -> 0 | I16: =(3/C16)*E16 -> 3 | K16: 26
A17: Cirugia General | C17: 12 | D17: =(K17/7)*12 -> 0 | E17: 0 | F17: =(0/C16)*E17 -> 0 | G17: =(0/C17)*E17 -> 0 | H17: =(0/C17)*E17 -> 0 | I17: =(12/C17)*E17 -> 0
A18: Ginecología | C18: 1235 | D18: 1200 | E18: 1166 | F18: =(241/C18)*E18 -> 228 | G18: =(471/C18)*E18 -> 445 | H18: =(272/C18)*E18 -> 257 | I18: =(251/C18)*E18 -> 237 | K18: 700
A19: Obstetricia | C19: 7261 | D19: 5286.857143 | E19: 3849 | F19: =(1479/C19)*E19 -> 784 | G19: =(1520/C19)*E19 -> 806 | H19: =(1835/C19)*E19 -> 973 | I19: =(2427/C19)*E19 -> 1,287 | K19: 3084
A20: Pediatria | C20: 2323 | D20: 1752 | E20: 1321 | F20: =(473/C20)*E20 -> 269 | G20: =(590/C20)*E20 -> 336 | H20: =(668/C20)*E20 -> 380 | I20: =(592/C20)*E20 -> 337 | K20: 1022
A21: Cardiologia | D21: 0 | E21: 0
A22: Gastroenterologia | C22: 114 | D22: 0 | E22: 0 | F22: =(0/C22)*E22 -> 0 | G22: =(0/C22)*E22 -> 0 | H22: =(0/C22)*E22 -> 0 | I22: =(114/C22)*E22 -> 0
A23: Endocrinologia | D23: 252 | E23: 0 | K23: 147
A24: Medicina Interna | D24: 0 | E24: 0
A25: Ortopedia | D25: 0 | E25: 0
A26: Neumología | C26: 6 | D26: 10.28571429 | E26: 18 | F26: =(0/C26)*E26 -> 0 | G26: =(6/C26)*E26 -> 18 | H26: =(0/C26)*E26 -> 0 | I26: =(0/C26)*E26 -> 0 | K26: 6
A27: Cardiología | D27: 0 | E27: 0
A28: Cuidados Intensivos | C28: 1356 | D28: 1107.428571 | E28: 904 | F28: =(284/C28)*E28 -> 189 | G28: =(318/C28)*E28 -> 212 | H28: =(373/C28)*E28 -> 249 | I28: =(381/C28)*E28 -> 254 | K28: 646
A29: Otros | C29: 211 | D29: 384 | E29: 699 | F29: =(11/C29)*E29 -> 36 | G29: =(2905/C29)*E29 -> 9,622 | H29: =(110/C29)*E29 -> 364 | I29: =(45/C29)*E29 -> 149 | K29: 224
A30: Servicios de Apoyo Diagnóstico | C30: =SUM(C31:C32) -> 534692 | D30: =SUM(D31:D32) -> 517,359 | E30: 501,378 | F30: 122,148 | G30: 121,466 | H30: 124,378 | I30: 133,386 | K30: =SUM(K31:K32) -> 301,793
A31: Análisis de Laboratorio | B31: Pruebas | C31: 505697 | D31: =(K31/7)*12 -> 484652.5714 | E31: =IF(C31="",0,(D31/C31)*D31) -> 464484 | F31: =(122521/C31)*E31 -> 112,536 | G31: =(122199/C31)*E31 -> 112,240 | H31: =(125657/C31)*E31 -> 115,416 | I31: =(135320/C31)*E31 -> 124,292 | K31: 282714
A32: Servicio de Imágenes | B32: Imágenes | C32: 28995 | D32: =(K32/7)*12 -> 32706.85714 | E32: 36894 | F32: =(7554/C32)*E32 -> 9,612 | G32: =(7251/C32)*E32 -> 9,226 | H32: =(7043/C32)*E32 -> 8,962 | I32: =(7147/C32)*E32 -> 9,094 | K32: 19079
A33: Indicadores de Producción
A34: Años | B34: Camas Disponibles | C34: Egresos Hospitalarios | D34: Día Cama Disponibles | E34: Dias Pacientes | F34: Promedio Días Estada | G34: Porcentaje Ocupacional | H34: Porcentaje nacimientos prematuros | I34: Porcentaje de cesárea
A35: 2022 | B35: =83470/365 -> 228.6849315 | C35: 17180 | D35: =+B35*365 -> 83470 | E35: 41979 | F35: =+E35/C35 -> 2.443480792 | G35: =+E35/D35*100 -> 50.29232059 | H35: =671/8517*100 -> 7.878360925 | I35: =3816/8562*100 -> 44.56902593
A36: 2023 | B36: =84196/365 -> 230.6739726 | C36: 12957 | D36: =+B36*365 -> 84196 | E36: 32659 | F36: =+E36/C36 -> 2.520568033 | G36: =+E36/D36*100 -> 38.78925365 | H36: =561/7151*100 -> 7.845056635 | I36: =3265/7199*100 -> 45.35352132
A37: 2024 | B37: =92561/365 -> 253.5917808 | C37: 12563 | D37: =+B37*365 -> 92561 | E37: 32005 | F37: 2.547560296 | G37: 34.57719774 | H37: =469/6201*100 -> 7.563296243 | I37: =2967/6250*100 -> 47.472

Sheet PPNE2
A1: =+PPNE1!$B$1 -> Plan Operativo Anual
A2: Servicio Nacional de Salud
A3: Dirección de Planificación y Desarrollo | K3: Anticipo Financiero
A4: Programación de actividades | K4: Nómina
A5: =PPNE1!$C$5 -> 2026 | K5: Venta Servicios
A6: Servicio Regional de Salud: | K6: Recursos Externos
A7: CEAS:
A8: Resultados Esperados | B8: Productos | C8: Código | D8: Actividades Programables Presupuestables | E8: Ene | F8: Feb | G8: Mar | H8: Abr | I8: May | J8: Jun | K8: Jul | L8: Ago | M8: Sep | N8: Oct | O8: Nov | P8: Dic | Q8: Total de Acciones | R8: Medio de Verificación 1 | S8: Medio de Verificación 2 | T8: Medio de Verificación 3 | U8: Observaciones/ Comentarios | V8: Área Responsable
A9: 1.1 Reducidos los niveles de morbilidad y mortalidad materna e infantil por causas prevenibles en la población materno-infantil del país, disminuyendo la mortalidad materna de 127.33 y la mortalidad infantil de 18.44 en 2023 a 89.13 y 16.56 en 2028 en todas las regiones del territorio nacional. | B9: 1.1.1 Niños, niñas y Adolescentes reciben atención médica y servicios de salud basado en protocolos nacionales e internacionales. | C9: 1.1.1.01 | D9: Fortalecimiento de los Programas Madre Canguro . | E9: 2 | F9: 2 | G9: 1 | H9: 1 | I9: 1 | J9: 2 | K9: 1 | L9: 1 | M9: 2 | N9: 1 | O9: 1 | P9: 2 | Q9: =SUM(E9:P9) -> 17 | T9: Autoevaluación (enero)/ Plan de mejora (febrero)/ Registro Módulo PMC (mensual)/ Avances Plan de mejora (junio, septiembre,diciembre) | U9: Maternidad Nuestra Señora de la Altagracia, Infantil Dr. Robert Reid Cabral, Materno Infantil San Lorenzo de Los Mina, Materno Dr.Reynaldo Almanzar, Materno Dra. Evangelina Rodríguez, Materno Infantil Dr. Marcelino Velez, Hospital Pediátrico Dr. José Manuel Rodriguez Jimenes, Juan Pablo Pina, Infantil Dr. Arturo Grullón, Maternidad Presidente Estrella Ureña, San Vicente de Paul, Jaime Mota, Dr. Antonio Musa, Materno Infantil Nuestra Señora de la Altagracia, Materno Infantil Dr. Francisco A. Gonzalvo, Taiwan 19 de marzo, Dr.Alejandro Cabral, Materno Infantil Dr. José Fco. Peña Gómez, Dr. Luis M. Morillo King | V9: Enc. Programa Madre Canguro
A10: 1.1 Reducidos los niveles de morbilidad y mortalidad materna e infantil por causas prevenibles en la población materno-infantil del país, disminuyendo la mortalidad materna de 127.33 y la mortalidad infantil de 18.44 en 2023 a 89.13 y 16.56 en 2028 en todas las regiones del territorio nacional. | B10: 1.1.1 Niños, niñas y Adolescentes reciben atención médica y servicios de salud basado en protocolos nacionales e internacionales. | C10: 1.1.1.02 | D10: Seguimiento a la Sala Situacional IA | E10: 1 | F10: 1 | G10: 1 | H10: 1 | I10: 1 | J10: 1 | K10: 1 | L10: 1 | M10: 1 | N10: 1 | O10: 1 | P10: 1 | Q10: =SUM(E10:P10) -> 12 | T10: Reporte digital Módulo Sala Situacional IA | U10: Infantil Dr. Arturo Grullón, Dr. Luis Morillo King, San Vicente de Paul, Materno Infantil Dr. José Francisco Peña Gómez, Juan Pablo Pina, Jaime Mota, Regional Dr. Alejandro Cabral, Taiwan 19 de marzo, Regional Dr. Antonio Musa, Materno Infantil Nuestra Señora de la Altagracia, Materno Infantil Dr. Francisco A. Gonzalvo, Infantil Dr. Robert Reid Cabral, Materno Infantil San Lorenzo de Los Mina, Materno Infantil Dr. Marcelino Vélez Santana, Pediátrico Dr. Hugo Mendoza, Infantil Dr. José Rodriguez Jimenes, Materno Infantil Dr. Julio Rodriguez Grullón, Materno Infantil de Villa Mella | V10: Enc. De Pediatria
A11: 1.1 Reducidos los niveles de morbilidad y mortalidad materna e infantil por causas prevenibles en la población materno-infantil del país, disminuyendo la mortalidad materna de 127.33 y la mortalidad infantil de 18.44 en 2023 a 89.13 y 16.56 en 2028 en todas las regiones del territorio nacional. | B11: 1.1.1 Niños, niñas y Adolescentes reciben atención médica y servicios de salud basado en protocolos nacionales e internacionales. | C11: 1.1.1.03 | D11: Reporte casos niños asistidos por violencia. | E11: 1 | F11: 1 | G11: 1 | H11: 1 | I11: 1 | J11: 1 | K11: 1 | L11: 1 | M11: 1 | N11: 1 | O11: 1 | P11: 1 | Q11: 12 | T11: Registro Sala Situacional/ Formulario de reporte | U11: Infantil Dr. Arturo Grullón, Dr. Luis Morillo King, San Vicente de Paul, Materno Infantil Dr. José Francisco Peña Gómez, Juan Pablo Pina, Jaime Mota, Regional Dr. Alejandro Cabral, Taiwan 19 de marzo, Regional Dr. Antonio Musa, Materno Infantil Nuestra Señora de la Altagracia, Materno Infantil Dr. Francisco A. Gonzalvo, Infantil Dr. Robert Reid Cabral, Materno Infantil San Lorenzo de Los Mina, Materno Infantil Dr. Marcelino Vélez Santana, Pediátrico Dr. Hugo Mendoza, Infantil Dr. José Rodriguez Jimenes, Materno Infantil Dr. Julio Rodriguez Grullón, Materno Infantil de Villa Mella | V11: Enc. De Pediatria
A12: 1.1 Reducidos los niveles de morbilidad y mortalidad materna e infantil por causas prevenibles en la población materno-infantil del país, disminuyendo la mortalidad materna de 127.33 y la mortalidad infantil de 18.44 en 2023 a 89.13 y 16.56 en 2028 en todas las regiones del territorio nacional. | B12: 1.1.1 Niños, niñas y Adolescentes reciben atención médica y servicios de salud basado en protocolos nacionales e internacionales. | C12: 1.1.1.04 | D12: Elaboración e implementación del plan de mejora para fortalecimiento de las Unidades de Atención Integrales en Salud para personas Adolescentes | E12: 1 | H12: 1 | K12: 1 | N12: 1 | Q12: 4 | T12: Plan (elaboración enero) Seguimiento (abril, julio, octubre) | U12: Pediátrico Dr. Hugo Mendoza, Pediátrico Dr. Robert Reid Cabral, Materno Infantil San Lorenzo de Los Mina, Municipal Materno Infantil Villa Mella, Infantil Dr. Arturo Grullón, Dr. Ricardo Limardo, Maternidad Infantil Nuestra Señora de la Altagracia (Higuey), Dr. Luis Manuel Morillo King, Juan Pablo Pina, Materno Infantil Dr.Francisco Gonzalvo, San Vicente de Paúl, Dr.Antonio Musa, Jaime Mota, Materno Infantil Dr. Marcelino Vélez, Centro Dr. Nelson Astacio | V12: Enc. De Adolescentes
A13: 1.1 Reducidos los niveles de morbilidad y mortalidad materna e infantil por causas prevenibles en la población materno-infantil del país, disminuyendo la mortalidad materna de 127.33 y la mortalidad infantil de 18.44 en 2023 a 89.13 y 16.56 en 2028 en todas las regiones del territorio nacional. | B13: 1.1.1 Niños, niñas y Adolescentes reciben atención médica y servicios de salud basado en protocolos nacionales e internacionales. | C13: 1.1.1.05 | D13: Reporte de la Planificación familiar en Adolescentes | E13: 1 | F13: 1 | G13: 1 | H13: 1 | I13: 1 | J13: 1 | K13: 1 | L13: 1 | M13: 1 | N13: 1 | O13: 1 | P13: 1 | Q13: 12 | T13: Reporte | U13: Hospitales que asisten Adolecentes | V13: Enc. De Obstetricia
A14: 1.1 Reducidos los niveles de morbilidad y mortalidad materna e infantil por causas prevenibles en la población materno-infantil del país, disminuyendo la mortalidad materna de 127.33 y la mortalidad infantil de 18.44 en 2023 a 89.13 y 16.56 en 2028 en todas las regiones del territorio nacional. | B14: 1.1.2 Recién nacidos reciben atención medica y servicios de salud neonatal basados en protocolos y normas nacionales e internacionales | C14: 1.2.2.01 | D14: Vigilanica sanitaria del agua en las UCIN del SNS | J14: 1 | P14: 1 | Q14: 2 | R14: Reporte | U14: Maternidad Nuestra Señora de la Altagracia , Materno Infantil San Lorenzo de los Mina, Materno Dr. Reynaldo Almánzar, Materno Infantil Dr. Marcelino Vélez, Maternidad Presidente Estrella Ureña, Materno Infantil Nuestra Señora de la Altagracia (Higuey), Juan Pablo Pina, San Vicente de Paul, Dr. Luis M. Morillo King, Infantil Dr.Robert Reid Cabral, Maternidad Dra.Evangelina Rodriguez, Materno Infantil Dr. José Fco.Peña Gomez, Jaime Mota, Dr. Antonio Musa, Infantil Dr. Arturo Grullon, Materno Infantil Dr. José Rodriguez Grullón (Ciudad Sanitaria), Pediatrico Dr.Hugo Mendoza, Taiwan 19 de marzo, Dr. Alejandro Cabral | V14: Enc. De Bioseguridad
A15: 1.1 Reducidos los niveles de morbilidad y mortalidad materna e infantil por causas prevenibles en la población materno-infantil del país, disminuyendo la mortalidad materna de 127.33 y la mortalidad infantil de 18.44 en 2023 a 89.13 y 16.56 en 2028 en todas las regiones del territorio nacional. | B15: 1.1.2 Recién nacidos reciben atención medica y servicios de salud neonatal basados en protocolos y normas nacionales e internacionales | C15: 1.2.2.02 | D15: Monitoreo del registro en línea del Certificado de Nacido Vivo | E15: 1 | F15: 1 | G15: 1 | H15: 1 | I15: 1 | J15: 1 | K15: 1 | L15: 1 | M15: 1 | N15: 1 | O15: 1 | P15: 1 | Q15: 12 | R15: Reporte | U15: Todos los CEAS donde se producen nacimientos | V15: Enc. De Nacidos Vivos
A16: 1.2 Aumentado el cumplimiento normativo para reducir la incidencia de complicaciones neonatales y maternas, pasando de un promedio del 75.5% en el año 2023 al 88% en el año 2028 en todas las regiones de la Red Pública de Servicios de Salud. | B16: 1.2.1 Gestantes reciben atención médica y servicios de salud materna basados en protocolos y normas nacionales e internacionales. | C16: 1.2.1.01 | D16: Seguimiento de la Morbilidad Materna Extrema | F16: 1 | G16: 1 | H16: 1 | I16: 1 | J16: 1 | K16: 1 | L16: 1 | M16: 1 | N16: 1 | O16: 1 | Q16: =SUM(E16:P16) -> 10 | R16: Informe | U16: Todos los hospitales regionales, maternos, materno infantil, que ofrecen servicios maternos | V16: Enc. De Epidemiologia
A17: 1.2 Aumentado el cumplimiento normativo para reducir la incidencia de complicaciones neonatales y maternas, pasando de un promedio del 75.5% en el año 2023 al 88% en el año 2028 en todas las regiones de la Red Pública de Servicios de Salud. | B17: 1.2.1 Gestantes reciben atención médica y servicios de salud materna basados en protocolos y normas nacionales e internacionales. | C17: 1.2.1.02 | D17: Análisis de los indicadores Maternos Neonatales de la Sala Situacional | G17: 1 | J17: 1 | M17: 1 | P17: 1 | Q17: 4 | R17: Informe | T17: Plantilla estandarizada | U17: Todos los CEAS regionales, especializados y de referencia que ofrezcan servicios maternos | V17: Subdireccion
A18: 1.2 Aumentado el cumplimiento normativo para reducir la incidencia de complicaciones neonatales y maternas, pasando de un promedio del 75.5% en el año 2023 al 88% en el año 2028 en todas las regiones de la Red Pública de Servicios de Salud. | B18: 1.2.1 Gestantes reciben atención médica y servicios de salud materna basados en protocolos y normas nacionales e internacionales. | C18: 1.2.1.03 | D18: Seguimiento a la implementacion de la Estrategia Código Rojo. | G18: 1 | J18: 1 | M18: 1 | P18: 1 | Q18: =SUM(E18:P18) -> 4 | R18: Informe | S18: Listado de participación | U18: Todos los hospitales regionales, maternos y materno infantil que ofrecen servicios maternos | V18: Enc. De Obstetricia
A19: 1.2 Aumentado el cumplimiento normativo para reducir la incidencia de complicaciones neonatales y maternas, pasando de un promedio del 75.5% en el año 2023 al 88% en el año 2028 en todas las regiones de la Red Pública de Servicios de Salud. | B19: 1.2.1 Gestantes reciben atención médica y servicios de salud materna basados en protocolos y normas nacionales e internacionales. | C19: 1.2.1.04 | D19: Seguimiento al tamizaje de infecciones vaginales y urinarias en la embarazada | G19: 1 | J19: 1 | N19: 1 | Q19: 3 | R19: Informe | U19: Materno Dr. Reynaldo Almanzar, Maternidad Nuestra Señora de la Altagracia, Materno Infantil San Lorenzo de los Mina, Maternidad Presidente Estrella Ureña | V19: Subdireccion
A20: 1.2 Aumentado el cumplimiento normativo para reducir la incidencia de complicaciones neonatales y maternas, pasando de un promedio del 75.5% en el año 2023 al 88% en el año 2028 en todas las regiones de la Red Pública de Servicios de Salud. | B20: 1.2.1 Gestantes reciben atención médica y servicios de salud materna basados en protocolos y normas nacionales e internacionales. | C20: 1.2.1.05 | D20: Elaboracion de los planes de mejora de la metodología de Observación de la Práctica Clínica (OPC) según los resultados del monitoreo de calidad de los servicios en los CEAS priorizados | I20: 1 | N20: 1 | Q20: 2 | R20: Plan | S20: Listado de participación | U20: CEAS PRIORIZADOS SRS Ozama 1. Hospital Materno Dr. Reynaldo Almánzar 2. Hospital Maternidad Nuestra Señora de la Altagracia 3. Hospital Materno Infantil San Lorenzo de los Mina 4. Hospital Materno Dra. Evangelina Rodríguez 5. ⁠Hospital Materno Infantil Dr. Marcelino Vélez Santana 6. Hospital Materno Infantil Dr. Julio Rodriguez Grullón SRS Valdesia 7.Hospital Regional Juan Pablo Pina SRS Cibao Norte 8. Hospital Maternidad Presidente Estrella Ureña SRS Cibao Nordeste 9. Hospital Regional San Vicente de Paul SRS Enriquillo 10. Hospital Regional Jaime Mota SRS Higuamo 11. Hospital Materno Infantil Nuestra Señora de la Altagracia 12. Hospital Materno Infantil Dr. Francisco Gonzalvo. SRS Yuma 13. Hospital Regional Dr. Antonio Musa SRS El Valle 14. Hospital Regional Dr. Alejandro Cabral 15. Hospital Regional Taiwán 19 de marzo SRS Cibao Noroeste 16. Hospital Materno Infantil Dr.José Francisco Peña Gómez SRS Cibao Sur 17. Hospital Regional Dr. Luis Morillo King | V20: Enc. De Calidad de los Servicios
A21: 1.2 Aumentado el cumplimiento normativo para reducir la incidencia de complicaciones neonatales y maternas, pasando de un promedio del 75.5% en el año 2023 al 88% en el año 2028 en todas las regiones de la Red Pública de Servicios de Salud. | B21: 1.2.1 Gestantes reciben atención médica y servicios de salud materna basados en protocolos y normas nacionales e internacionales. | C21: 1.2.1.06 | D21: Seguimiento a la Planificación Post Evento Obstétrico | H21: 1 | L21: 1 | O21: 1 | Q21: 3 | R21: Informe | U21: CEAS PRIORIZADOS SRS Ozama 1. Hospital Materno Dr. Reynaldo Almánzar 2. Hospital Maternidad Nuestra Señora de la Altagracia 3. Hospital Materno Infantil San Lorenzo de los Mina 4. Hospital Materno Dra. Evangelina Rodríguez 5. ⁠Hospital Materno Infantil Dr. Marcelino Vélez Santana 6. Hospital Materno Infantil Dr. Julio Rodriguez Grullón SRS Valdesia 7.Hospital Regional Juan Pablo Pina SRS Cibao Norte 8. Hospital Maternidad Presidente Estrella Ureña SRS Cibao Nordeste 9. Hospital Regional San Vicente de Paul SRS Enriquillo 10. Hospital Regional Jaime Mota SRS Higuamo 11. Hospital Materno Infantil Nuestra Señora de la Altagracia 12. Hospital Materno Infantil Dr. Francisco Gonzalvo. SRS Yuma 13. Hospital Regional Dr. Antonio Musa SRS El Valle 14. Hospital Regional Dr. Alejandro Cabral 15. Hospital Regional Taiwán 19 de marzo SRS Cibao Noroeste 16. Hospital Materno Infantil Dr.José Francisco Peña Gómez SRS Cibao Sur 17. Hospital Regional Dr. Luis Morillo King | V21: Enc. De Obstetricia
A22: 1.2 Aumentado el cumplimiento normativo para reducir la incidencia de complicaciones neonatales y maternas, pasando de un promedio del 75.5% en el año 2023 al 88% en el año 2028 en todas las regiones de la Red Pública de Servicios de Salud. | B22: 1.2.1 Gestantes reciben atención médica y servicios de salud materna basados en protocolos y normas nacionales e internacionales. | C22: 1.2.1.07 | D22: Monitoreo al apego a protocolo de atencion en consulta prenatal. | I22: 1 | N22: 1 | Q22: 2 | R22: Informe | U22: CEAS PRIORIZADOS SRS Ozama 1. Hospital Materno Dr. Reynaldo Almánzar 2. Hospital Maternidad Nuestra Señora de la Altagracia 3. Hospital Materno Infantil San Lorenzo de los Mina 4. Hospital Materno Dra. Evangelina Rodríguez 5. ⁠Hospital Materno Infantil Dr. Marcelino Vélez Santana 6. Hospital Materno Infantil Dr. Julio Rodriguez Grullón SRS Valdesia 7.Hospital Regional Juan Pablo Pina SRS Cibao Norte 8. Hospital Maternidad Presidente Estrella Ureña SRS Cibao Nordeste 9. Hospital Regional San Vicente de Paul SRS Enriquillo 10. Hospital Regional Jaime Mota SRS Higuamo 11. Hospital Materno Infantil Nuestra Señora de la Altagracia 12. Hospital Materno Infantil Dr. Francisco Gonzalvo. SRS Yuma 13. Hospital Regional Dr. Antonio Musa SRS El Valle 14. Hospital Regional Dr. Alejandro Cabral 15. Hospital Regional Taiwán 19 de marzo SRS Cibao Noroeste 16. Hospital Materno Infantil Dr.José Francisco Peña Gómez SRS Cibao Sur 17. Hospital Regional Dr. Luis Morillo King | V22: Enc. De Calidad de los Servicios
A23: 1.5 Reducida la morbilidad y mortalidad prematura por enfermedades no transmisibles en personas de 30 a 69 años, en un 20% al año 2028, mediante la implementación de intervenciones integrales de prevención, diagnóstico temprano y tratamiento oportuno en los establecimientos de la Red Pública. | B23: 1.5.2 Las víctimas de violencia de género e intrafamiliar reciben atención integral, oportuna y segura en los servicios de salud. | C23: 1.5.2.01 | D23: Reporte de estadísticas de los casos de violencia de género e intrafamiliar. | E23: 1 | F23: 1 | G23: 1 | H23: 1 | I23: 1 | J23: 1 | K23: 1 | L23: 1 | M23: 1 | N23: 1 | O23: 1 | P23: 1 | Q23: 12 | R23: Reporte | V23: Enc. De Género
A24: 1.6 Incrementado el acceso oportuno a servicios de salud de calidad, aumentando el acceso a servicios preventivos de 2.23% de la población prioritaria en 2023 al 5.24% en 2028 en todas las regiones del país. | B24: 1.6.5 La población usuaria recibe servicios odontológicos fortalecidos y de calidad mediante la ejecución de planes de mejora de la atención dental. | C24: 1.6.5.01 | D24: Capacitaciones a RRHH de las areas de odontología de acuerdo a las necesidades. | G24: 1 | J24: 1 | M24: 1 | Q24: 3 | R24: Listado de participación | S24: Plan | V24: Enc. De RRHH
A25: 1.6 Incrementado el acceso oportuno a servicios de salud de calidad, aumentando el acceso a servicios preventivos de 2.23% de la población prioritaria en 2023 al 5.24% en 2028 en todas las regiones del país. | B25: 1.6.5 La población usuaria recibe servicios odontológicos fortalecidos y de calidad mediante la ejecución de planes de mejora de la atención dental. | C25: 1.6.5.02 | D25: Desarrollo de plan de acciones para el acondicionamiento de infraestructura, mantenimiento de equipos y equipamiento de las áreas de odontología EES | G25: 1 | J25: 1 | M25: 1 | O25: 1 | Q25: 4 | R25: Informe | S25: Plan | V25: Enc. De Mantenimiento
A26: 1.6 Incrementado el acceso oportuno a servicios de salud de calidad, aumentando el acceso a servicios preventivos de 2.23% de la población prioritaria en 2023 al 5.24% en 2028 en todas las regiones del país. | B26: 1.6.5 La población usuaria recibe servicios odontológicos fortalecidos y de calidad mediante la ejecución de planes de mejora de la atención dental. | C26: 1.6.5.03 | D26: Desarrollo del Programa Fomento de la Salud bucal. | H26: 1 | L26: 1 | N26: 1 | Q26: 3 | R26: Informe | V26: Enc. De Odontología
A27: 1.6 Incrementado el acceso oportuno a servicios de salud de calidad, aumentando el acceso a servicios preventivos de 2.23% de la población prioritaria en 2023 al 5.24% en 2028 en todas las regiones del país. | B27: 1.6.5 La población usuaria recibe servicios odontológicos fortalecidos y de calidad mediante la ejecución de planes de mejora de la atención dental. | C27: 1.6.5.04 | D27: Desarrollo del Programa Hospitales libre de caries | H27: 1 | M27: 1 | Q27: 2 | R27: Informe | V27: Enc. De Odontología
A28: 1.7 Aumentada la disponibilidad de medicamentos esenciales en los establecimientos de la Red Pública de Servicios de Salud, incrementando el cumplimiento promedio de abastecimiento del 88% en 2023 al 93% en 2028 en todas las regiones del país. | B28: 1.7.1 Pacientes reciben medicamentos esenciales para el tratamiento adecuado y oportuno de sus condiciones de salud. | C28: 1.7.1.01 | D28: Reunión Comité Farmaco Terapeutico (CFT) Hospitalario y promoción del uso racional de los medicamentos. | E28: 1 | H28: 1 | K28: 1 | N28: 1 | Q28: 4 | R28: Listado de participación | S28: Minuta | V28: Enc. De Farmacia
A29: 1.8 Superadas las deficiencias en la organización e implementación de las Redes Integradas de Servicios de Salud (RISS) beneficiando a toda la población que utiliza los servicios de salud de la Red Pública, aumentando del 38% en 2023 al 50% en 2028 en todo el territorio nacional. | B29: 1.8.2 La población recibe acceso equitativo a servicios de salud, incluidos los de emergencia, de calidad, seguros, integrales, continuos e inclusivos, mediante redes integradas que incorporan mejora continua de procesos y avances tecnológicos. | C29: 1.8.2.01 | D29: Implementación del Modelo hospitalario y flujos de Asistencia Emergencias y Urgencias | J29: 1 | Q29: 1 | R29: Reporte | V29: Enc. De Emergencia
A30: 1.8 Superadas las deficiencias en la organización e implementación de las Redes Integradas de Servicios de Salud (RISS) beneficiando a toda la población que utiliza los servicios de salud de la Red Pública, aumentando del 38% en 2023 al 50% en 2028 en todo el territorio nacional. | B30: 1.8.2 La población recibe acceso equitativo a servicios de salud, incluidos los de emergencia, de calidad, seguros, integrales, continuos e inclusivos, mediante redes integradas que incorporan mejora continua de procesos y avances tecnológicos. | C30: 1.8.2.02 | D30: Socializacion e implementación del RAC-Triaje en las Salas de Emergencias Centros Hospitalarios | J30: 1 | O30: 1 | Q30: 2 | R30: Listado de participación | S30: Reporte | V30: Enc. De Emergencia
A31: 1.8 Superadas las deficiencias en la organización e implementación de las Redes Integradas de Servicios de Salud (RISS) beneficiando a toda la población que utiliza los servicios de salud de la Red Pública, aumentando del 38% en 2023 al 50% en 2028 en todo el territorio nacional. | B31: 1.8.2 La población recibe acceso equitativo a servicios de salud, incluidos los de emergencia, de calidad, seguros, integrales, continuos e inclusivos, mediante redes integradas que incorporan mejora continua de procesos y avances tecnológicos. | C31: 1.8.2.03 | D31: Llenado de historia clinica de emergencias y registro de todos los pacientes del libro de emergencias | M31: 1 | Q31: 1 | R31: Reporte | V31: Enc. De Emergencia
A32: 1.8 Superadas las deficiencias en la organización e implementación de las Redes Integradas de Servicios de Salud (RISS) beneficiando a toda la población que utiliza los servicios de salud de la Red Pública, aumentando del 38% en 2023 al 50% en 2028 en todo el territorio nacional. | B32: 1.8.2 La población recibe acceso equitativo a servicios de salud, incluidos los de emergencia, de calidad, seguros, integrales, continuos e inclusivos, mediante redes integradas que incorporan mejora continua de procesos y avances tecnológicos. | C32: 1.8.2.04 | D32: Implementación del procedimiento para la entrega, recibo y reposicion de carro de paro | F32: 1 | I32: 1 | L32: 1 | O32: 1 | Q32: 4 | T32: Formularios de verificacion de Carro de paro (Apertura, Stock y Verificacion de desfibrilador) | V32: Enc. De enfermeria
A33: 1.8 Superadas las deficiencias en la organización e implementación de las Redes Integradas de Servicios de Salud (RISS) beneficiando a toda la población que utiliza los servicios de salud de la Red Pública, aumentando del 38% en 2023 al 50% en 2028 en todo el territorio nacional. | B33: 1.8.2 La población recibe acceso equitativo a servicios de salud, incluidos los de emergencia, de calidad, seguros, integrales, continuos e inclusivos, mediante redes integradas que incorporan mejora continua de procesos y avances tecnológicos. | C33: 1.8.2.05 | D33: Registros en el tablero de Indicadores de Gestión de las Salas de Emergencias de los Centros de Salud. | G33: 1 | J33: 1 | M33: 1 | P33: 1 | Q33: 4 | R33: Reporte | V33: Enc. De Emergencia
A34: 1.8 Superadas las deficiencias en la organización e implementación de las Redes Integradas de Servicios de Salud (RISS) beneficiando a toda la población que utiliza los servicios de salud de la Red Pública, aumentando del 38% en 2023 al 50% en 2028 en todo el territorio nacional. | B34: 1.8.2 La población recibe acceso equitativo a servicios de salud, incluidos los de emergencia, de calidad, seguros, integrales, continuos e inclusivos, mediante redes integradas que incorporan mejora continua de procesos y avances tecnológicos. | C34: 1.8.2.06 | D34: Socialización de los procedimientos de traslado de pacientes | I34: 1 | Q34: 1 | R34: Listado de participación | S34: Agenda | V34: Enc. De Emergencia
A35: 1.8 Superadas las deficiencias en la organización e implementación de las Redes Integradas de Servicios de Salud (RISS) beneficiando a toda la población que utiliza los servicios de salud de la Red Pública, aumentando del 38% en 2023 al 50% en 2028 en todo el territorio nacional. | B35: 1.8.2 La población recibe acceso equitativo a servicios de salud, incluidos los de emergencia, de calidad, seguros, integrales, continuos e inclusivos, mediante redes integradas que incorporan mejora continua de procesos y avances tecnológicos. | C35: 1.8.2.07 | D35: Elaboración y/o actualización de los Planes de Emergencias y Desastres Hospitalarios | G35: 1 | Q35: 1 | R35: Plan | V35: Enc. De Emergencia
A36: 1.8 Superadas las deficiencias en la organización e implementación de las Redes Integradas de Servicios de Salud (RISS) beneficiando a toda la población que utiliza los servicios de salud de la Red Pública, aumentando del 38% en 2023 al 50% en 2028 en todo el territorio nacional. | B36: 1.8.2 La población recibe acceso equitativo a servicios de salud, incluidos los de emergencia, de calidad, seguros, integrales, continuos e inclusivos, mediante redes integradas que incorporan mejora continua de procesos y avances tecnológicos. | C36: 1.8.2.08 | D36: Reunion del comité de emergencias para socializacion del plan Hospitalarios Emergencias de salud publica y desastres naturales con el personal del hospital. | G36: 1 | J36: 1 | M36: 1 | Q36: 3 | R36: Listado de participación | S36: Minuta | V36: Enc. De Emergencia
A37: 1.8 Superadas las deficiencias en la organización e implementación de las Redes Integradas de Servicios de Salud (RISS) beneficiando a toda la población que utiliza los servicios de salud de la Red Pública, aumentando del 38% en 2023 al 50% en 2028 en todo el territorio nacional. | B37: 1.8.2 La población recibe acceso equitativo a servicios de salud, incluidos los de emergencia, de calidad, seguros, integrales, continuos e inclusivos, mediante redes integradas que incorporan mejora continua de procesos y avances tecnológicos. | C37: 1.8.2.09 | D37: Simulacro para probar la funcionabilidad de los Planes de Emergencias y Desastres Hospitalarios. | N37: 1 | Q37: 1 | R37: Listado de participación | S37: Reporte | V37: Enc. De Emergencia
A38: 1.8 Superadas las deficiencias en la organización e implementación de las Redes Integradas de Servicios de Salud (RISS) beneficiando a toda la población que utiliza los servicios de salud de la Red Pública, aumentando del 38% en 2023 al 50% en 2028 en todo el territorio nacional. | B38: 1.8.2 La población recibe acceso equitativo a servicios de salud, incluidos los de emergencia, de calidad, seguros, integrales, continuos e inclusivos, mediante redes integradas que incorporan mejora continua de procesos y avances tecnológicos. | C38: 1.8.2.10 | D38: Reunión con el Comite Hospitalario de Emergencias y Desastres para preparar el Operativo de Navidad y Año Nuevo comité de emergencias | P38: 1 | Q38: 1 | R38: Listado de participación | S38: Minuta | V38: Enc. De Emergencia
A39: 1.8 Superadas las deficiencias en la organización e implementación de las Redes Integradas de Servicios de Salud (RISS) beneficiando a toda la población que utiliza los servicios de salud de la Red Pública, aumentando del 38% en 2023 al 50% en 2028 en todo el territorio nacional. | B39: 1.8.2 La población recibe acceso equitativo a servicios de salud, incluidos los de emergencia, de calidad, seguros, integrales, continuos e inclusivos, mediante redes integradas que incorporan mejora continua de procesos y avances tecnológicos. | C39: 1.8.2.11 | D39: Reunión con el Comite Hospitalario de Emergencias y Desastres para preparar el Operativo de Semana Santa comité de emergencias | G39: 1 | Q39: 1 | R39: Listado de participación | S39: Minuta | V39: Enc. De Emergencia
A40: 1.8 Superadas las deficiencias en la organización e implementación de las Redes Integradas de Servicios de Salud (RISS) beneficiando a toda la población que utiliza los servicios de salud de la Red Pública, aumentando del 38% en 2023 al 50% en 2028 en todo el territorio nacional. | B40: 1.8.2 La población recibe acceso equitativo a servicios de salud, incluidos los de emergencia, de calidad, seguros, integrales, continuos e inclusivos, mediante redes integradas que incorporan mejora continua de procesos y avances tecnológicos. | C40: 1.8.2.12 | D40: Reunión con el Comite Hospitalario de Emergencias y Desastres para respuesta a Temporada Ciclonica y Eventos Hidrometeorologicos comité de emergencias | E40: 1 | O40: 1 | Q40: 2 | R40: Listado de participación | S40: Minuta | V40: Enc. De Emergencia
A41: 1.8 Superadas las deficiencias en la organización e implementación de las Redes Integradas de Servicios de Salud (RISS) beneficiando a toda la población que utiliza los servicios de salud de la Red Pública, aumentando del 38% en 2023 al 50% en 2028 en todo el territorio nacional. | B41: 1.8.2 La población recibe acceso equitativo a servicios de salud, incluidos los de emergencia, de calidad, seguros, integrales, continuos e inclusivos, mediante redes integradas que incorporan mejora continua de procesos y avances tecnológicos. | C41: 1.8.2.13 | D41: Reunión con el Comite Hospitalario de Emergencias y Desastres para respuesta a Temporada Ciclonica y Eventos Hidrometeorologicos comité de emergencias | I41: 1 | Q41: 1 | R41: Listado de participación | S41: Minuta | V41: Enc. De Emergencia
A42: 1.8 Superadas las deficiencias en la organización e implementación de las Redes Integradas de Servicios de Salud (RISS) beneficiando a toda la población que utiliza los servicios de salud de la Red Pública, aumentando del 38% en 2023 al 50% en 2028 en todo el territorio nacional. | B42: 1.8.3 La población usuaria recibe servicios hospitalarios fortalecidos, integrales y de calidad mediante la mejora continua de procesos y servicios, la optimización de la gestión y el fortalecimiento de la infraestructura, el equipamiento y las capacidades del personal. | C42: 1.8.3.01 | D42: Supervision de indicadores de calidad en el programa de hemodialisis y diálisis peritoneal, para los centros que apliquen para el programa. | E42: 1 | F42: 1 | G42: 1 | H42: 1 | I42: 1 | J42: 1 | K42: 1 | L42: 1 | M42: 1 | N42: 1 | O42: 1 | P42: 1 | Q42: 12 | R42: Informe | V42: Enc. De Calidad de los servicios
A43: 1.8 Superadas las deficiencias en la organización e implementación de las Redes Integradas de Servicios de Salud (RISS) beneficiando a toda la población que utiliza los servicios de salud de la Red Pública, aumentando del 38% en 2023 al 50% en 2028 en todo el territorio nacional. | B43: 1.8.3 La población usuaria recibe servicios hospitalarios fortalecidos, integrales y de calidad mediante la mejora continua de procesos y servicios, la optimización de la gestión y el fortalecimiento de la infraestructura, el equipamiento y las capacidades del personal. | C43: 1.8.3.02 | D43: Plan de mejora a partir de los resultados de la evaluacion de indicadores de calidad en el programa de hemodialisis y diálisis peritoneal, para los centros que apliquen para el programa. | G43: 1 | J43: 1 | M43: 1 | P43: 1 | Q43: 4 | R43: Protocolo | V43: Enc. De Calidad de los servicios
A44: 1.8 Superadas las deficiencias en la organización e implementación de las Redes Integradas de Servicios de Salud (RISS) beneficiando a toda la población que utiliza los servicios de salud de la Red Pública, aumentando del 38% en 2023 al 50% en 2028 en todo el territorio nacional. | B44: 1.8.3 La población usuaria recibe servicios hospitalarios fortalecidos, integrales y de calidad mediante la mejora continua de procesos y servicios, la optimización de la gestión y el fortalecimiento de la infraestructura, el equipamiento y las capacidades del personal. | C44: 1.8.3.03 | D44: Seguimiento a los planes de mejora de la evaluacion de indicadores de calidad en el programa de hemodialisis y diálisis peritoneal, para los centros que apliquen para el programa. | H44: 1 | K44: 1 | N44: 1 | Q44: 3 | R44: Informe | S44: Plan | V44: Enc. De Calidad de los servicios
A45: 1.8 Superadas las deficiencias en la organización e implementación de las Redes Integradas de Servicios de Salud (RISS) beneficiando a toda la población que utiliza los servicios de salud de la Red Pública, aumentando del 38% en 2023 al 50% en 2028 en todo el territorio nacional. | B45: 1.8.3 La población usuaria recibe servicios hospitalarios fortalecidos, integrales y de calidad mediante la mejora continua de procesos y servicios, la optimización de la gestión y el fortalecimiento de la infraestructura, el equipamiento y las capacidades del personal. | C45: 1.8.3.04 | D45: Seguimiento al plan de mejora de las evaluaciones de la calidad de los servicios de nutrición | G45: 1 | J45: 1 | M45: 1 | P45: 1 | Q45: 4 | R45: Informe | S45: Plan | V45: Enc. De Nutricion
A46: 1.8 Superadas las deficiencias en la organización e implementación de las Redes Integradas de Servicios de Salud (RISS) beneficiando a toda la población que utiliza los servicios de salud de la Red Pública, aumentando del 38% en 2023 al 50% en 2028 en todo el territorio nacional. | B46: 1.8.3 La población usuaria recibe servicios hospitalarios fortalecidos, integrales y de calidad mediante la mejora continua de procesos y servicios, la optimización de la gestión y el fortalecimiento de la infraestructura, el equipamiento y las capacidades del personal. | C46: 1.8.3.05 | D46: Implementacion de los procesos de bioseguridad hospitalaria | G46: 1 | J46: 1 | M46: 1 | P46: 1 | Q46: 4 | R46: Informe | V46: Enc. De Bioseguridad
A47: 1.8 Superadas las deficiencias en la organización e implementación de las Redes Integradas de Servicios de Salud (RISS) beneficiando a toda la población que utiliza los servicios de salud de la Red Pública, aumentando del 38% en 2023 al 50% en 2028 en todo el territorio nacional. | B47: 1.8.3 La población usuaria recibe servicios hospitalarios fortalecidos, integrales y de calidad mediante la mejora continua de procesos y servicios, la optimización de la gestión y el fortalecimiento de la infraestructura, el equipamiento y las capacidades del personal. | C47: 1.8.3.06 | D47: Elaboración de los planes de mejora a partir de los resultados de evaluacion de procesos de bioseguridad hospitalaria | H47: 1 | K47: 1 | N47: 1 | Q47: 3 | R47: Plan | V47: Enc. De Bioseguridad
A48: 1.8 Superadas las deficiencias en la organización e implementación de las Redes Integradas de Servicios de Salud (RISS) beneficiando a toda la población que utiliza los servicios de salud de la Red Pública, aumentando del 38% en 2023 al 50% en 2028 en todo el territorio nacional. | B48: 1.8.3 La población usuaria recibe servicios hospitalarios fortalecidos, integrales y de calidad mediante la mejora continua de procesos y servicios, la optimización de la gestión y el fortalecimiento de la infraestructura, el equipamiento y las capacidades del personal. | C48: 1.8.3.07 | D48: Seguimiento a los planes de mejora de evaluación de procesos de bioseguridad hospitalaria | J48: 1 | M48: 1 | P48: 1 | Q48: 3 | R48: Informe | S48: Plan | V48: Enc. De Bioseguridad
A49: 1.8 Superadas las deficiencias en la organización e implementación de las Redes Integradas de Servicios de Salud (RISS) beneficiando a toda la población que utiliza los servicios de salud de la Red Pública, aumentando del 38% en 2023 al 50% en 2028 en todo el territorio nacional. | B49: 1.8.3 La población usuaria recibe servicios hospitalarios fortalecidos, integrales y de calidad mediante la mejora continua de procesos y servicios, la optimización de la gestión y el fortalecimiento de la infraestructura, el equipamiento y las capacidades del personal. | C49: 1.8.3.08 | D49: Notificación oportuna de las enfermedades bajo vigilancia epidemiológica (Epi 1 y 2) | E49: 1 | F49: 1 | G49: 1 | H49: 1 | I49: 1 | J49: 1 | K49: 1 | L49: 1 | M49: 1 | N49: 1 | O49: 1 | P49: 1 | Q49: 12 | R49: Reporte | V49: Enc. De Epidemiologia
A50: 1.8 Superadas las deficiencias en la organización e implementación de las Redes Integradas de Servicios de Salud (RISS) beneficiando a toda la población que utiliza los servicios de salud de la Red Pública, aumentando del 38% en 2023 al 50% en 2028 en todo el territorio nacional. | B50: 1.8.3 La población usuaria recibe servicios hospitalarios fortalecidos, integrales y de calidad mediante la mejora continua de procesos y servicios, la optimización de la gestión y el fortalecimiento de la infraestructura, el equipamiento y las capacidades del personal. | C50: 1.8.3.09 | D50: Implementación del procedimiento de hosteleria hospitalaria | J50: 1 | P50: 1 | Q50: 2 | R50: Informe | V50: Enc. De Hosteleria
A51: 1.8 Superadas las deficiencias en la organización e implementación de las Redes Integradas de Servicios de Salud (RISS) beneficiando a toda la población que utiliza los servicios de salud de la Red Pública, aumentando del 38% en 2023 al 50% en 2028 en todo el territorio nacional. | B51: 1.8.3 La población usuaria recibe servicios hospitalarios fortalecidos, integrales y de calidad mediante la mejora continua de procesos y servicios, la optimización de la gestión y el fortalecimiento de la infraestructura, el equipamiento y las capacidades del personal. | C51: 1.8.3.10 | D51: Diagnóstico situacional de la conformación de los comités hospitalarios | G51: 1 | J51: 1 | M51: 1 | P51: 1 | Q51: 4 | R51: Informe | V51: Enc. De Calidad de los Servicios
A52: 1.8 Superadas las deficiencias en la organización e implementación de las Redes Integradas de Servicios de Salud (RISS) beneficiando a toda la población que utiliza los servicios de salud de la Red Pública, aumentando del 38% en 2023 al 50% en 2028 en todo el territorio nacional. | B52: 1.8.3 La población usuaria recibe servicios hospitalarios fortalecidos, integrales y de calidad mediante la mejora continua de procesos y servicios, la optimización de la gestión y el fortalecimiento de la infraestructura, el equipamiento y las capacidades del personal. | C52: 1.8.3.11 | D52: Conformacion de los comité Hospitalarios | G52: 1 | J52: 1 | M52: 1 | P52: 1 | Q52: 4 | R52: Reporte | T52: Matriz | V52: Enc. De Calidad de los Servicios
A53: 1.8 Superadas las deficiencias en la organización e implementación de las Redes Integradas de Servicios de Salud (RISS) beneficiando a toda la población que utiliza los servicios de salud de la Red Pública, aumentando del 38% en 2023 al 50% en 2028 en todo el territorio nacional. | B53: 1.8.3 La población usuaria recibe servicios hospitalarios fortalecidos, integrales y de calidad mediante la mejora continua de procesos y servicios, la optimización de la gestión y el fortalecimiento de la infraestructura, el equipamiento y las capacidades del personal. | C53: 1.8.3.12 | D53: Evaluacion de la Metodologia de Gestion Productiva | G53: 1 | J53: 1 | M53: 1 | P53: 1 | Q53: 4 | R53: Informe | V53: Enc. de Planificacion
A54: 1.8 Superadas las deficiencias en la organización e implementación de las Redes Integradas de Servicios de Salud (RISS) beneficiando a toda la población que utiliza los servicios de salud de la Red Pública, aumentando del 38% en 2023 al 50% en 2028 en todo el territorio nacional. | B54: 1.8.3 La población usuaria recibe servicios hospitalarios fortalecidos, integrales y de calidad mediante la mejora continua de procesos y servicios, la optimización de la gestión y el fortalecimiento de la infraestructura, el equipamiento y las capacidades del personal. | C54: 1.8.3.13 | D54: Plan de mejora a partir de los resultados de la evaluacion de la metodologia de gestion productiva | H54: 1 | K54: 1 | N54: 1 | P54: 1 | Q54: 4 | R54: Plan | V54: Enc. de Planificacion
A55: 1.8 Superadas las deficiencias en la organización e implementación de las Redes Integradas de Servicios de Salud (RISS) beneficiando a toda la población que utiliza los servicios de salud de la Red Pública, aumentando del 38% en 2023 al 50% en 2028 en todo el territorio nacional. | B55: 1.8.3 La población usuaria recibe servicios hospitalarios fortalecidos, integrales y de calidad mediante la mejora continua de procesos y servicios, la optimización de la gestión y el fortalecimiento de la infraestructura, el equipamiento y las capacidades del personal. | C55: 1.8.3.14 | D55: Seguimiento a los planes de mejora de la MGP | I55: 1 | L55: 1 | P55: 1 | Q55: 3 | R55: Informe | S55: Plan | V55: Enc. de Planificacion
A56: 1.8 Superadas las deficiencias en la organización e implementación de las Redes Integradas de Servicios de Salud (RISS) beneficiando a toda la población que utiliza los servicios de salud de la Red Pública, aumentando del 38% en 2023 al 50% en 2028 en todo el territorio nacional. | B56: 1.8.3 La población usuaria recibe servicios hospitalarios fortalecidos, integrales y de calidad mediante la mejora continua de procesos y servicios, la optimización de la gestión y el fortalecimiento de la infraestructura, el equipamiento y las capacidades del personal. | C56: 1.8.3.15 | D56: Supervisión de la calidad de los servicios de nutrición | E56: 1 | F56: 1 | G56: 1 | H56: 1 | I56: 1 | J56: 1 | K56: 1 | L56: 1 | M56: 1 | N56: 1 | O56: 1 | P56: 1 | Q56: 12 | R56: Informe | V56: Enc. De Nutricion
A57: 1.8 Superadas las deficiencias en la organización e implementación de las Redes Integradas de Servicios de Salud (RISS) beneficiando a toda la población que utiliza los servicios de salud de la Red Pública, aumentando del 38% en 2023 al 50% en 2028 en todo el territorio nacional. | B57: 1.8.3 La población usuaria recibe servicios hospitalarios fortalecidos, integrales y de calidad mediante la mejora continua de procesos y servicios, la optimización de la gestión y el fortalecimiento de la infraestructura, el equipamiento y las capacidades del personal. | C57: 1.8.3.16 | D57: Desarrollo de los planes de mejora a partir de los resultados de las evaluaciones de la calidad de los servicios de nutrición | G57: 1 | J57: 1 | M57: 1 | P57: 1 | Q57: 4 | R57: Plan | V57: Enc. De Nutricion
A58: 1.8 Superadas las deficiencias en la organización e implementación de las Redes Integradas de Servicios de Salud (RISS) beneficiando a toda la población que utiliza los servicios de salud de la Red Pública, aumentando del 38% en 2023 al 50% en 2028 en todo el territorio nacional. | B58: 1.8.3 La población usuaria recibe servicios hospitalarios fortalecidos, integrales y de calidad mediante la mejora continua de procesos y servicios, la optimización de la gestión y el fortalecimiento de la infraestructura, el equipamiento y las capacidades del personal. | C58: 1.8.3.17 | D58: Implementación del plan de mejora de las evaluaciones de la calidad de los servicios de nutrición | H58: 1 | K58: 1 | N58: 1 | Q58: 3 | R58: Informe | V58: Enc. De Nutricion
A59: 1.8 Superadas las deficiencias en la organización e implementación de las Redes Integradas de Servicios de Salud (RISS) beneficiando a toda la población que utiliza los servicios de salud de la Red Pública, aumentando del 38% en 2023 al 50% en 2028 en todo el territorio nacional. | B59: 1.8.3 La población usuaria recibe servicios hospitalarios fortalecidos, integrales y de calidad mediante la mejora continua de procesos y servicios, la optimización de la gestión y el fortalecimiento de la infraestructura, el equipamiento y las capacidades del personal. | C59: 1.8.3.18 | D59: Análisis del comportamiento de las objeciones médicas y administrativas | E59: 1 | F59: 1 | G59: 1 | H59: 1 | I59: 1 | J59: 1 | K59: 1 | L59: 1 | M59: 1 | N59: 1 | O59: 1 | P59: 1 | Q59: 12 | R59: Informe | U59: Hosp. Regionales y Especializados/Hosp. Provinciales y Municipales | V59: Enc. De Auditoria Medica
A60: 1.8 Superadas las deficiencias en la organización e implementación de las Redes Integradas de Servicios de Salud (RISS) beneficiando a toda la población que utiliza los servicios de salud de la Red Pública, aumentando del 38% en 2023 al 50% en 2028 en todo el territorio nacional. | B60: 1.8.3 La población usuaria recibe servicios hospitalarios fortalecidos, integrales y de calidad mediante la mejora continua de procesos y servicios, la optimización de la gestión y el fortalecimiento de la infraestructura, el equipamiento y las capacidades del personal. | C60: 1.8.3.19 | D60: Elaboracion de los planes de mejora para la disminucion de las objeciones médicas, administrativas y el incremento de la facturación de los CEAS, en coordinacion de los SRS los centros de salud. | G60: 1 | J60: 1 | M60: 1 | P60: 1 | Q60: 4 | R60: Plan | V60: Enc. De Auditoria Medica
A61: 1.8 Superadas las deficiencias en la organización e implementación de las Redes Integradas de Servicios de Salud (RISS) beneficiando a toda la población que utiliza los servicios de salud de la Red Pública, aumentando del 38% en 2023 al 50% en 2028 en todo el territorio nacional. | B61: 1.8.3 La población usuaria recibe servicios hospitalarios fortalecidos, integrales y de calidad mediante la mejora continua de procesos y servicios, la optimización de la gestión y el fortalecimiento de la infraestructura, el equipamiento y las capacidades del personal. | C61: 1.8.3.20 | D61: Seguimiento a la ejecución de planes de mejora para la disminucion de las objeciones médicas, administrativas y el incremento de la facturación de los CEAS. | G61: 1 | J61: 1 | M61: 1 | P61: 1 | Q61: 4 | R61: Informe | S61: Plan | V61: Enc. De Auditoria Medica
A62: 2.1 Reducida la escasez de recursos humanos de salud, aumentando un 12% en el 2028 la dotación de personal en establecimientos públicos del país. | B62: 2.1.1 El personal del SNS recibe desarrollo de competencias (técnicas y blandas), evaluación del desempeño y gestión de seguridad y salud en el trabajo, con procesos efectivos de relaciones laborales, para mejorar el desempeño, el bienestar y el cumplimiento normativo en toda la red. | C62: 2.1.1.01 | D62: Ejecución Plan de Capacitación 2026. | G62: 1 | J62: 1 | M62: 1 | P62: 1 | Q62: 4 | R62: Informe | S62: Plan | U62: 1- El informe trimestral se realiza en el formulario estandarizado por el INAP. 2-Adicional presentar listados de asistencia y plan de capacitación 2026. | V62: Enc. De Recursos Humanos
A63: 2.1 Reducida la escasez de recursos humanos de salud, aumentando un 12% en el 2028 la dotación de personal en establecimientos públicos del país. | B63: 2.1.1 El personal del SNS recibe desarrollo de competencias (técnicas y blandas), evaluación del desempeño y gestión de seguridad y salud en el trabajo, con procesos efectivos de relaciones laborales, para mejorar el desempeño, el bienestar y el cumplimiento normativo en toda la red. | C63: 2.1.1.02 | D63: Detección necesidades capacitación por departamento CEAS Plan 2027. | M63: 1 | Q63: 1 | R63: Reporte | U63: Presentar anexo formulario por departamento, de acuerdo a la estructura organizativa de cada dependencia. | V63: Enc. De Recursos Humanos
A64: 2.1 Reducida la escasez de recursos humanos de salud, aumentando un 12% en el 2028 la dotación de personal en establecimientos públicos del país. | B64: 2.1.1 El personal del SNS recibe desarrollo de competencias (técnicas y blandas), evaluación del desempeño y gestión de seguridad y salud en el trabajo, con procesos efectivos de relaciones laborales, para mejorar el desempeño, el bienestar y el cumplimiento normativo en toda la red. | C64: 2.1.1.03 | D64: Elaboración del Plan de Capacitación CEAS 2027. | N64: 1 | Q64: 1 | R64: Plan | U64: Realizar plan de capacitación en formulario estándarizado por el INAP. | V64: Enc. De Recursos Humanos
A65: 2.1 Reducida la escasez de recursos humanos de salud, aumentando un 12% en el 2028 la dotación de personal en establecimientos públicos del país. | B65: 2.1.1 El personal del SNS recibe desarrollo de competencias (técnicas y blandas), evaluación del desempeño y gestión de seguridad y salud en el trabajo, con procesos efectivos de relaciones laborales, para mejorar el desempeño, el bienestar y el cumplimiento normativo en toda la red. | C65: 2.1.1.04 | D65: Consolidado de resultados de evaluación del desempeño laboral 2025. | E65: 1 | Q65: 1 | R65: Reporte | U65: Matriz para reportar resultados de evaluación del desempeño laboral 2025. | V65: Enc. De Recursos Humanos
A66: 2.1 Reducida la escasez de recursos humanos de salud, aumentando un 12% en el 2028 la dotación de personal en establecimientos públicos del país. | B66: 2.1.1 El personal del SNS recibe desarrollo de competencias (técnicas y blandas), evaluación del desempeño y gestión de seguridad y salud en el trabajo, con procesos efectivos de relaciones laborales, para mejorar el desempeño, el bienestar y el cumplimiento normativo en toda la red. | C66: 2.1.1.05 | D66: Consolidado de resultados de acuerdos del desempeño laboral 2026. | E66: 1 | Q66: 1 | R66: Reporte | U66: Matriz para reportar acuerdos del desempeño laboral 2026. | V66: Enc. De Recursos Humanos
A67: 2.1 Reducida la escasez de recursos humanos de salud, aumentando un 12% en el 2028 la dotación de personal en establecimientos públicos del país. | B67: 2.1.1 El personal del SNS recibe desarrollo de competencias (técnicas y blandas), evaluación del desempeño y gestión de seguridad y salud en el trabajo, con procesos efectivos de relaciones laborales, para mejorar el desempeño, el bienestar y el cumplimiento normativo en toda la red. | C67: 2.1.1.06 | D67: Elaboración informe técnico resultados de evaluación del desempeño laboral 2025 CEAS y remisión al SRS. | G67: 1 | Q67: 1 | R67: Informe | U67: Informe técnico de resultados evaluación del desempeño laboral 2025. | V67: Enc. De Recursos Humanos
A68: 2.1 Reducida la escasez de recursos humanos de salud, aumentando un 12% en el 2028 la dotación de personal en establecimientos públicos del país. | B68: 2.1.1 El personal del SNS recibe desarrollo de competencias (técnicas y blandas), evaluación del desempeño y gestión de seguridad y salud en el trabajo, con procesos efectivos de relaciones laborales, para mejorar el desempeño, el bienestar y el cumplimiento normativo en toda la red. | C68: 2.1.1.07 | D68: Monitoreo por departamento de los acuerdos de desempeño laboral 2027 | H68: 1 | K68: 1 | N68: 1 | Q68: 3 | R68: Minuta | U68: No se requiere listado de asistencia adicional, ya que la minuta estandarizada del MAP es firmada por los colaboradores que participan en la reunión de revisión. | V68: Enc. De Recursos Humanos
A69: 2.1 Reducida la escasez de recursos humanos de salud, aumentando un 12% en el 2028 la dotación de personal en establecimientos públicos del país. | B69: 2.1.1 El personal del SNS recibe desarrollo de competencias (técnicas y blandas), evaluación del desempeño y gestión de seguridad y salud en el trabajo, con procesos efectivos de relaciones laborales, para mejorar el desempeño, el bienestar y el cumplimiento normativo en toda la red. | C69: 2.1.1.08 | D69: Remisión al SRS consolidado trimestral de acuerdos de desempeño personal nuevo ingreso CEAS | H69: 1 | K69: 1 | N69: 1 | Q69: 3 | R69: Reporte | V69: Enc. De Recursos Humanos
A70: 3.1 Fortalecida la capacidad institucional para aumentar el acceso a servicios públicos de calidad mediante la optimización de procesos, empoderamiento del talento humano, articulación efectiva, incorporación de tecnologías de la información y comunicación, modernización de la infraestructura física y equipamiento adecuado. | B70: 3.1.1 Los Centros de Atención y Servicios (CEAS) y las Oficinas Regionales de Salud (ORS) reciben el Formulario de Levantamiento de Necesidades de Cooperación No Reembolsable como instrumento estandarizado, | C70: 3.1.1.01 | D70: Llenado y envío del formulario de levantamiento de necesidades de cooperación no reembolsable a la ORS. | E70: 1 | Q70: 1 | T70: 1. Formulario de levantamiento de necesidades de cooperación no reembolsable completo y firmado. 2. Remisión vía correo electrónico del formulario a la ORS. | V70: Enc. De Planificación
A71: 3.1 Fortalecida la capacidad institucional para aumentar el acceso a servicios públicos de calidad mediante la optimización de procesos, empoderamiento del talento humano, articulación efectiva, incorporación de tecnologías de la información y comunicación, modernización de la infraestructura física y equipamiento adecuado. | B71: 3.1.1 Los Centros de Atención y Servicios (CEAS) y las Oficinas Regionales de Salud (ORS) reciben el Formulario de Levantamiento de Necesidades de Cooperación No Reembolsable como instrumento estandarizado, | C71: 3.1.1.02 | D71: Llenado y envío del Formulario de Reporte de Donaciones a la ORS. | K71: 1 | P71: 1 | Q71: 2 | T71: 1. Formulario de Reporte de Donaciones sellado y firmado. 2. Remisión vía correo electrónico del formulario a la ORS. | V71: Enc. De Planificación
A72: 3.1 Fortalecida la capacidad institucional para aumentar el acceso a servicios públicos de calidad mediante la optimización de procesos, empoderamiento del talento humano, articulación efectiva, incorporación de tecnologías de la información y comunicación, modernización de la infraestructura física y equipamiento adecuado. | B72: 3.1.5 Personal y usuarios del SNS reciben servicios tecnológicos confiables | C72: 3.1.5.01 | D72: Actualización de portales web | G72: 1 | J72: 1 | M72: 1 | P72: 1 | Q72: 4 | R72: Reporte | V72: Enc. De Comunicaciones
A73: 3.1 Fortalecida la capacidad institucional para aumentar el acceso a servicios públicos de calidad mediante la optimización de procesos, empoderamiento del talento humano, articulación efectiva, incorporación de tecnologías de la información y comunicación, modernización de la infraestructura física y equipamiento adecuado. | B73: 3.1.5 Personal y usuarios del SNS reciben servicios tecnológicos confiables | C73: 3.1.5.02 | D73: Soportes incidencias tecnológicas atendidas | G73: 1 | J73: 1 | M73: 1 | P73: 1 | Q73: 4 | R73: Reporte | V73: Enc. De Tecnología
A74: 3.1 Fortalecida la capacidad institucional para aumentar el acceso a servicios públicos de calidad mediante la optimización de procesos, empoderamiento del talento humano, articulación efectiva, incorporación de tecnologías de la información y comunicación, modernización de la infraestructura física y equipamiento adecuado. | B74: 3.1.5 Personal y usuarios del SNS reciben servicios tecnológicos confiables | C74: 3.1.5.03 | D74: Inventario de activos tecnológicos | G74: 1 | J74: 1 | M74: 1 | P74: 1 | Q74: 4 | R74: Inventario | V74: Enc. De Tecnología
A75: 3.1 Fortalecida la capacidad institucional para aumentar el acceso a servicios públicos de calidad mediante la optimización de procesos, empoderamiento del talento humano, articulación efectiva, incorporación de tecnologías de la información y comunicación, modernización de la infraestructura física y equipamiento adecuado. | B75: 3.1.6 La población usuaria recibe servicios seguros y de calidad mediante el fortalecimiento del modelo institucional de gestión y monitoreo de la calidad, con estándares, indicadores, auditorías y acciones de mejora continua en todas las unidades. | C75: 3.1.6.01 | D75: Elaboración de la memoria institucional 2026 | O75: 1 | Q75: 1 | R75: Memoria | V75: Enc. De Planificación
A76: 3.1 Fortalecida la capacidad institucional para aumentar el acceso a servicios públicos de calidad mediante la optimización de procesos, empoderamiento del talento humano, articulación efectiva, incorporación de tecnologías de la información y comunicación, modernización de la infraestructura física y equipamiento adecuado. | B76: 3.1.6 La población usuaria recibe servicios seguros y de calidad mediante el fortalecimiento del modelo institucional de gestión y monitoreo de la calidad, con estándares, indicadores, auditorías y acciones de mejora continua en todas las unidades. | C76: 3.1.6.02 | D76: Elaboración del Plan Operativo Anual 2027 | M76: 1 | Q76: 1 | R76: Plan | V76: Enc. De Planificación
A77: 3.1 Fortalecida la capacidad institucional para aumentar el acceso a servicios públicos de calidad mediante la optimización de procesos, empoderamiento del talento humano, articulación efectiva, incorporación de tecnologías de la información y comunicación, modernización de la infraestructura física y equipamiento adecuado. | B77: 3.1.6 La población usuaria recibe servicios seguros y de calidad mediante el fortalecimiento del modelo institucional de gestión y monitoreo de la calidad, con estándares, indicadores, auditorías y acciones de mejora continua en todas las unidades. | C77: 3.1.6.03 | D77: Autoevaluación POA 2026 | E77: 1 | H77: 1 | K77: 1 | N77: 1 | Q77: 4 | T77: MEP | V77: Enc. De Planificación
A78: 3.1 Fortalecida la capacidad institucional para aumentar el acceso a servicios públicos de calidad mediante la optimización de procesos, empoderamiento del talento humano, articulación efectiva, incorporación de tecnologías de la información y comunicación, modernización de la infraestructura física y equipamiento adecuado. | B78: 3.1.6 La población usuaria recibe servicios seguros y de calidad mediante el fortalecimiento del modelo institucional de gestión y monitoreo de la calidad, con estándares, indicadores, auditorías y acciones de mejora continua en todas las unidades. | C78: 3.1.6.04 | D78: Elaboración y seguimiento a la ejecución de los planes de mejora acorde a los hallazgos del MEP | F78: 1 | I78: 1 | L78: 1 | O78: 1 | Q78: 4 | R78: Listado de participación | S78: Informe | T78: Plan | V78: Enc de Monitoreo
A79: 3.1 Fortalecida la capacidad institucional para aumentar el acceso a servicios públicos de calidad mediante la optimización de procesos, empoderamiento del talento humano, articulación efectiva, incorporación de tecnologías de la información y comunicación, modernización de la infraestructura física y equipamiento adecuado. | B79: 3.1.6 La población usuaria recibe servicios seguros y de calidad mediante el fortalecimiento del modelo institucional de gestión y monitoreo de la calidad, con estándares, indicadores, auditorías y acciones de mejora continua en todas las unidades. | C79: 3.1.6.05 | D79: Elaboración del informe de autodiagnóstico y sistema afinado de puntuación CAF | I79: 1 | Q79: 1 | R79: Informe | V79: Enca. De Calidad
A80: 3.1 Fortalecida la capacidad institucional para aumentar el acceso a servicios públicos de calidad mediante la optimización de procesos, empoderamiento del talento humano, articulación efectiva, incorporación de tecnologías de la información y comunicación, modernización de la infraestructura física y equipamiento adecuado. | B80: 3.1.6 La población usuaria recibe servicios seguros y de calidad mediante el fortalecimiento del modelo institucional de gestión y monitoreo de la calidad, con estándares, indicadores, auditorías y acciones de mejora continua en todas las unidades. | C80: 3.1.6.06 | D80: Informe de seguimiento a plan de mejora CAF año en curso | I80: 1 | Q80: 1 | R80: Informe | V80: Enca. De Calidad
A81: 3.1 Fortalecida la capacidad institucional para aumentar el acceso a servicios públicos de calidad mediante la optimización de procesos, empoderamiento del talento humano, articulación efectiva, incorporación de tecnologías de la información y comunicación, modernización de la infraestructura física y equipamiento adecuado. | B81: 3.1.6 La población usuaria recibe servicios seguros y de calidad mediante el fortalecimiento del modelo institucional de gestión y monitoreo de la calidad, con estándares, indicadores, auditorías y acciones de mejora continua en todas las unidades. | C81: 3.1.6.07 | D81: Elaboración plan de mejora CAF del próximo año | K81: 1 | Q81: 1 | R81: Plan | V81: Enca. De Calidad
A82: 3.1 Fortalecida la capacidad institucional para aumentar el acceso a servicios públicos de calidad mediante la optimización de procesos, empoderamiento del talento humano, articulación efectiva, incorporación de tecnologías de la información y comunicación, modernización de la infraestructura física y equipamiento adecuado. | B82: 3.1.6 La población usuaria recibe servicios seguros y de calidad mediante el fortalecimiento del modelo institucional de gestión y monitoreo de la calidad, con estándares, indicadores, auditorías y acciones de mejora continua en todas las unidades. | C82: 3.1.6.08 | D82: Implementación, renovación o actualización de CCC (Carta Compromiso al Ciudadano) según aplique | O82: 1 | Q82: 1 | T82: Resolución aprobatoria | V82: Enca. De Calidad
A83: 3.1 Fortalecida la capacidad institucional para aumentar el acceso a servicios públicos de calidad mediante la optimización de procesos, empoderamiento del talento humano, articulación efectiva, incorporación de tecnologías de la información y comunicación, modernización de la infraestructura física y equipamiento adecuado. | B83: 3.1.6 La población usuaria recibe servicios seguros y de calidad mediante el fortalecimiento del modelo institucional de gestión y monitoreo de la calidad, con estándares, indicadores, auditorías y acciones de mejora continua en todas las unidades. | C83: 3.1.6.09 | D83: Seguimiento al cumplimiento de la CCC (Carta Compromiso al Ciudadano) | G83: 1 | J83: 1 | M83: 1 | P83: 1 | Q83: 4 | R83: Reporte | V83: Enca. De Calidad
A84: 3.1 Fortalecida la capacidad institucional para aumentar el acceso a servicios públicos de calidad mediante la optimización de procesos, empoderamiento del talento humano, articulación efectiva, incorporación de tecnologías de la información y comunicación, modernización de la infraestructura física y equipamiento adecuado. | B84: 3.1.6 La población usuaria recibe servicios seguros y de calidad mediante el fortalecimiento del modelo institucional de gestión y monitoreo de la calidad, con estándares, indicadores, auditorías y acciones de mejora continua en todas las unidades. | C84: 3.1.6.10 | D84: Seguimiento a la implementación plan de mejora SISMAP Salud y Programa de Desempeño SNS | O84: 1 | Q84: 1 | R84: Informe | V84: Enca. De Calidad
A85: 3.1 Fortalecida la capacidad institucional para aumentar el acceso a servicios públicos de calidad mediante la optimización de procesos, empoderamiento del talento humano, articulación efectiva, incorporación de tecnologías de la información y comunicación, modernización de la infraestructura física y equipamiento adecuado. | B85: 3.1.6 La población usuaria recibe servicios seguros y de calidad mediante el fortalecimiento del modelo institucional de gestión y monitoreo de la calidad, con estándares, indicadores, auditorías y acciones de mejora continua en todas las unidades. | C85: 3.1.6.11 | D85: Ejecución de las sesiones del comité de calidad del CEAS | J85: 1 | Q85: 1 | R85: Listado de participación | S85: Minuta | V85: Enca. De Calidad
A86: 3.1 Fortalecida la capacidad institucional para aumentar el acceso a servicios públicos de calidad mediante la optimización de procesos, empoderamiento del talento humano, articulación efectiva, incorporación de tecnologías de la información y comunicación, modernización de la infraestructura física y equipamiento adecuado. | B86: 3.1.7 Los establecimientos de la red SNS disponen de bienes oportunos, custodiados y en condiciones óptimas mediante el fortalecimiento del Sistema de Administración de Bienes: registro e inventario, control y trazabilidad, mantenimiento, distribución y bajas, con enfoque de ciclo de vida y transparencia. | C86: 3.1.7.01 | D86: Actualizacion de Inventarios de la ORS | J86: 1 | P86: 1 | Q86: 2 | R86: Informe | S86: Inventario | V86: Enc. De Activos fijos
A87: 3.1 Fortalecida la capacidad institucional para aumentar el acceso a servicios públicos de calidad mediante la optimización de procesos, empoderamiento del talento humano, articulación efectiva, incorporación de tecnologías de la información y comunicación, modernización de la infraestructura física y equipamiento adecuado. | B87: 3.1.7 Los establecimientos de la red SNS disponen de bienes oportunos, custodiados y en condiciones óptimas mediante el fortalecimiento del Sistema de Administración de Bienes: registro e inventario, control y trazabilidad, mantenimiento, distribución y bajas, con enfoque de ciclo de vida y transparencia. | C87: 3.1.7.02 | D87: Registro de Activos en el Sistema de Administracion de Bienes (SIAB) | G87: 1 | J87: 1 | M87: 1 | P87: 1 | Q87: 4 | R87: Reporte | V87: Enc. De Activos fijos
A88: 3.2 Incrementada la satisfacción de usuarios y la calidad percibida de los servicios públicos | B88: 3.2.1 Los pacientes reciben cuidados seguros y de calidad mediante la continuidad en la implementación y aplicación de los siete estándares de calidad de los servicios de enfermería. | C88: 3.2.1.01 | D88: Supervisión y aplicación expediente clínico en el hospital | G88: 1 | J88: 1 | M88: 1 | O88: 1 | Q88: 4 | R88: Informe | V88: Enc. De Enfermería
A89: 3.2 Incrementada la satisfacción de usuarios y la calidad percibida de los servicios públicos | B89: 3.2.1 Los pacientes reciben cuidados seguros y de calidad mediante la continuidad en la implementación y aplicación de los siete estándares de calidad de los servicios de enfermería. | C89: 3.2.1.02 | D89: Capacitación y retroalimentación en dosificación y administración de medicamentos al personal de enfermería | F89: 1 | H89: 1 | J89: 1 | L89: 1 | N89: 1 | Q89: 5 | R89: Listado de participación | S89: Agenda | V89: Enc. De Recursos Humanos
A90: 3.2 Incrementada la satisfacción de usuarios y la calidad percibida de los servicios públicos | B90: 3.2.1 Los pacientes reciben cuidados seguros y de calidad mediante la continuidad en la implementación y aplicación de los siete estándares de calidad de los servicios de enfermería. | C90: 3.2.1.03 | D90: Seguimiento a la aplicación de los 7 estándares de cuidados de enfermería | M90: 1 | Q90: 1 | R90: Informe | V90: Enc. De Enfermería
A91: 3.2 Incrementada la satisfacción de usuarios y la calidad percibida de los servicios públicos | B91: 3.2.2 La población usuaria y los clínicos reciben diagnósticos confiables y oportunos mediante el fortalecimiento de la red del SNS: monitoreo y evaluación continua de la calidad para guiar decisiones, habilitación/acreditación de establecimientos y cumplimiento de estándares de seguridad, asegurando acceso eficiente a servicios de calidad. | C91: 3.2.2.01 | D91: Autoevaluacion SLIPTA para cumplimiento de SISMAP SALUD | H91: 1 | M91: 1 | Q91: 2 | T91: Lista de verificacion y paln de mejora | U91: Hosp. Regionales y Especializados/Hosp. Provinciales y Municipales | V91: Enc. De Laboratorios e Imágenes
A92: 3.2 Incrementada la satisfacción de usuarios y la calidad percibida de los servicios públicos | B92: 3.2.2 La población usuaria y los clínicos reciben diagnósticos confiables y oportunos mediante el fortalecimiento de la red del SNS: monitoreo y evaluación continua de la calidad para guiar decisiones, habilitación/acreditación de establecimientos y cumplimiento de estándares de seguridad, asegurando acceso eficiente a servicios de calidad. | C92: 3.2.2.02 | D92: Garantizar la disponibilidad de pruebas de laboratorios y estudios de imágenes que se realizan a embarazadas y recien nacidos en hospitales maternos. | F92: 1 | I92: 1 | L92: 1 | Q92: 3 | R92: Informe | T92: Hosp. Regionales y Especializados/Hosp. Provinciales y Municipales | U92: Febrero EES que apliquen de : ozama, el valle, higuamo Abril EES que apliquen de: valdesia, cibao noroeste Junio EES que apliquen de: enriquillo, cibao norte, cibao sur Agosto EES que apliquen de: cibao nordeste,yuma | V92: Enc. De Laboratorios e Imágenes
A93: 3.2 Incrementada la satisfacción de usuarios y la calidad percibida de los servicios públicos | B93: 3.2.2 La población usuaria y los clínicos reciben diagnósticos confiables y oportunos mediante el fortalecimiento de la red del SNS: monitoreo y evaluación continua de la calidad para guiar decisiones, habilitación/acreditación de establecimientos y cumplimiento de estándares de seguridad, asegurando acceso eficiente a servicios de calidad. | C93: 3.2.2.03 | D93: Automatización de los servicios/ mantenimiento a los equipos y calibracion de cabinas de los departamentos de microbiologia en los EES que cuentan con departamento de microbiologia clinica. | G93: 1 | M93: 1 | Q93: 2 | R93: Informe | T93: Hosp. Regionales y Especializados/Hosp. Provinciales y Municipales | V93: Enc. De Laboratorios e Imágenes
A94: 3.2 Incrementada la satisfacción de usuarios y la calidad percibida de los servicios públicos | B94: 3.2.2 La población usuaria y los clínicos reciben diagnósticos confiables y oportunos mediante el fortalecimiento de la red del SNS: monitoreo y evaluación continua de la calidad para guiar decisiones, habilitación/acreditación de establecimientos y cumplimiento de estándares de seguridad, asegurando acceso eficiente a servicios de calidad. | C94: 3.2.2.04 | D94: Cumplimiento la ruta de recolecion y/o envio y/o recepción de las muestras. | F94: 1 | I94: 1 | K94: 1 | Q94: 3 | T94: Cumplimiento la ruta de recolecion y/o envio y/o recepción de las muestras. (EES donde aplique) | U94: Enero EES que apliquen de : ozama, el valle, higuamo Abril EES de: valdesia, cibao noroeste Julio EES de: enriquillo, cibao norte, cibao sur Septiembre EES de : cibao nordeste,yuma | V94: Enc. De Laboratorios e Imágenes
A95: 3.2 Incrementada la satisfacción de usuarios y la calidad percibida de los servicios públicos | B95: 3.2.2 La población usuaria y los clínicos reciben diagnósticos confiables y oportunos mediante el fortalecimiento de la red del SNS: monitoreo y evaluación continua de la calidad para guiar decisiones, habilitación/acreditación de establecimientos y cumplimiento de estándares de seguridad, asegurando acceso eficiente a servicios de calidad. | C95: 3.2.2.05 | D95: Autoevaluacion para cumplimiento de habilitacion en los EES que cuentan con servicios de hemoterapia. | E95: 1 | J95: 1 | Q95: 2 | R95: Informe | V95: Enc. De Laboratorios e Imágenes
A96: 3.2 Incrementada la satisfacción de usuarios y la calidad percibida de los servicios públicos | B96: 3.2.2 La población usuaria y los clínicos reciben diagnósticos confiables y oportunos mediante el fortalecimiento de la red del SNS: monitoreo y evaluación continua de la calidad para guiar decisiones, habilitación/acreditación de establecimientos y cumplimiento de estándares de seguridad, asegurando acceso eficiente a servicios de calidad. | C96: 3.2.2.06 | D96: Conformación y/o actualización de clubes de donantes de sangre en EES que cuentan con servicios de hemoterapia. | E96: 1 | J96: 1 | Q96: 2 | T96: Acta de formación/ Listado actualizado del club de donantes. | V96: Enc. De Laboratorios e Imágenes
A97: 3.2 Incrementada la satisfacción de usuarios y la calidad percibida de los servicios públicos | B97: 3.2.2 La población usuaria y los clínicos reciben diagnósticos confiables y oportunos mediante el fortalecimiento de la red del SNS: monitoreo y evaluación continua de la calidad para guiar decisiones, habilitación/acreditación de establecimientos y cumplimiento de estándares de seguridad, asegurando acceso eficiente a servicios de calidad. | C97: 3.2.2.07 | D97: Mantenimiento a los equipos y calibracion de cabinas. | F97: 1 | I97: 1 | L97: 1 | Q97: 3 | R97: Reporte | T97: Reporte de los mantenimientos de equipos y calibración de cabinas. | U97: EES donde aplique, Marzo: enriquillo, cibao norte, cibao sur mayo: ozama, el valle, higuamo agosto: valdesia, cibao noroeste,Yuma y cibao nordeste | V97: Enc. De Laboratorios e Imágenes
A98: 3.2 Incrementada la satisfacción de usuarios y la calidad percibida de los servicios públicos | B98: 3.2.2 La población usuaria y los clínicos reciben diagnósticos confiables y oportunos mediante el fortalecimiento de la red del SNS: monitoreo y evaluación continua de la calidad para guiar decisiones, habilitación/acreditación de establecimientos y cumplimiento de estándares de seguridad, asegurando acceso eficiente a servicios de calidad. | C98: 3.2.2.08 | D98: Compra de insumos para la toma de las muestras. | G98: 1 | M98: 1 | Q98: 2 | T98: Listado de disponibilidad de insumos de toma de muestras. Evidencia de compra de insumos actualizada. | V98: Enc. De Laboratorios e Imágenes
A99: 3.2 Incrementada la satisfacción de usuarios y la calidad percibida de los servicios públicos | B99: 3.2.2 La población usuaria y los clínicos reciben diagnósticos confiables y oportunos mediante el fortalecimiento de la red del SNS: monitoreo y evaluación continua de la calidad para guiar decisiones, habilitación/acreditación de establecimientos y cumplimiento de estándares de seguridad, asegurando acceso eficiente a servicios de calidad. | C99: 3.2.2.09 | D99: Envio mensual Infolab a SRS | E99: 1 | F99: 1 | G99: 1 | H99: 1 | I99: 1 | J99: 1 | K99: 1 | L99: 1 | M99: 1 | N99: 1 | O99: 1 | P99: 1 | Q99: 12 | T99: Captura de envio a SRS | V99: Enc. De Laboratorios e Imágenes
A100: 3.2 Incrementada la satisfacción de usuarios y la calidad percibida de los servicios públicos | B100: 3.2.2 La población usuaria y los clínicos reciben diagnósticos confiables y oportunos mediante el fortalecimiento de la red del SNS: monitoreo y evaluación continua de la calidad para guiar decisiones, habilitación/acreditación de establecimientos y cumplimiento de estándares de seguridad, asegurando acceso eficiente a servicios de calidad. | C100: 3.2.2.10 | D100: Reunion con DPS cordinar entrega insumos de malaria | H100: 1 | O100: 1 | Q100: 2 | R100: Minuta | S100: Listado de participación | V100: Enc. De Laboratorios e Imágenes
A101: 3.2 Incrementada la satisfacción de usuarios y la calidad percibida de los servicios públicos | B101: 3.2.2 La población usuaria y los clínicos reciben diagnósticos confiables y oportunos mediante el fortalecimiento de la red del SNS: monitoreo y evaluación continua de la calidad para guiar decisiones, habilitación/acreditación de establecimientos y cumplimiento de estándares de seguridad, asegurando acceso eficiente a servicios de calidad. | C101: 3.2.2.11 | D101: Ejecución del Monitoreo Interno en Adherencia a Protocolos, Guías de Atención y otras Normativas de Salud. | E101: 1 | F101: 1 | G101: 1 | I101: 1 | J101: 1 | K101: 1 | M101: 1 | N101: 1 | O101: 1 | Q101: =SUM(E101:P101) -> 9 | R101: Formularios | U101: Aplica solo a CEAS que no estén en remozamiento/remoción y que ofrezcan el servicio a monitorear. En caso de no realizar el monitoreo, debe entregarse una carta justificativa firmada y sellada por la Dirección. ENERO-MARZO: consulta prenatal, morbilidades maternas y lista de seguridad en cirugía. MAYO-JULIO: morbilidades neonatales, pediátricas y de salud pública. SEPTIEMBRE-NOVIEMBRE: completitud de expedientes. | V101: Enc. De Calidad de los Servicios de Salud
A102: 3.2 Incrementada la satisfacción de usuarios y la calidad percibida de los servicios públicos | B102: 3.2.2 La población usuaria y los clínicos reciben diagnósticos confiables y oportunos mediante el fortalecimiento de la red del SNS: monitoreo y evaluación continua de la calidad para guiar decisiones, habilitación/acreditación de establecimientos y cumplimiento de estándares de seguridad, asegurando acceso eficiente a servicios de calidad. | C102: 3.2.2.12 | D102: Elaboración y/o Actualización de los Planes de Mejora asociados al Monitoreo Interno de la Adherencia a Protocolos, Guias de Atención y Otras Normativas de Salud. | H102: 1 | L102: 1 | P102: 1 | Q102: 3 | R102: Planes de Mejora | U102: Cada establecimiento debe contar con planes de mejora aprobados (firmados y sellados), con actividades acorde a los hallazgos identificados en el Monitoreo Interno de la Adherencia a Protocolos, Guias de Atención y Otras Normativas de Salud. OJO: Es una evidencia a cargar para SISMAP Salud. | V102: Enc. De Calidad de los Servicios de Salud
A103: 3.2 Incrementada la satisfacción de usuarios y la calidad percibida de los servicios públicos | B103: 3.2.2 La población usuaria y los clínicos reciben diagnósticos confiables y oportunos mediante el fortalecimiento de la red del SNS: monitoreo y evaluación continua de la calidad para guiar decisiones, habilitación/acreditación de establecimientos y cumplimiento de estándares de seguridad, asegurando acceso eficiente a servicios de calidad. | C103: 3.2.2.13 | D103: Avances en la Ejecución de los Planes de Mejora asociados al Monitoreo Interno de la Adherencia a Protocolos, Guias de Atención y Otras Normativas de Salud. | J103: 1 | O103: 1 | Q103: 2 | R103: Informe | U103: El informe (firmado y sellado) debe reflejar los avances en la ejecución de las actividades aprobadas en los planes de mejora. OJO: Es una evidencia a cargar para SISMAP Salud. | V103: Enc. De Calidad de los Servicios de Salud
A104: 3.2 Incrementada la satisfacción de usuarios y la calidad percibida de los servicios públicos | B104: 3.2.2 La población usuaria y los clínicos reciben diagnósticos confiables y oportunos mediante el fortalecimiento de la red del SNS: monitoreo y evaluación continua de la calidad para guiar decisiones, habilitación/acreditación de establecimientos y cumplimiento de estándares de seguridad, asegurando acceso eficiente a servicios de calidad. | C104: 3.2.2.14 | D104: Informe de seguimiento a la implementación y correcto llenado de la Lista de Verificación de la Seguridad de la Cirugía. | H104: 1 | Q104: 1 | R104: Informe | U104: El informe (firmado y sellado) debe mencionar los resultados del monitoreo interno, brechas detectadas, aciones de seguimiento y análisis comparativo con monitoreos anteriores para conocer el nivel de avance. OJO: Es una evidencia a cargar para SISMAP Salud. | V104: Enc. De Calidad de los Servicios de Salud
A105: 3.2 Incrementada la satisfacción de usuarios y la calidad percibida de los servicios públicos | B105: 3.2.2 La población usuaria y los clínicos reciben diagnósticos confiables y oportunos mediante el fortalecimiento de la red del SNS: monitoreo y evaluación continua de la calidad para guiar decisiones, habilitación/acreditación de establecimientos y cumplimiento de estándares de seguridad, asegurando acceso eficiente a servicios de calidad. | C105: 3.2.2.15 | D105: Conformación vigente del Comité de Mejora Continua de la Calidad de la Atención y Seguridad del Paciente en el establecimiento de salud. | E105: 1 | K105: 1 | Q105: 2 | R105: Acta Constitutiva | U105: Cada establecimiento debe contar con un acta vigente del comité (firmada, sellada, con todos sus campos llenos). Se actualiza solo ante cambios en sus integrantes o inactividad igual o mayor a 3 meses. OJO: Es una evidencia a cargar para SISMAP Salud. | V105: Enc. De Calidad de los Servicios de Salud
A106: 3.2 Incrementada la satisfacción de usuarios y la calidad percibida de los servicios públicos | B106: 3.2.2 La población usuaria y los clínicos reciben diagnósticos confiables y oportunos mediante el fortalecimiento de la red del SNS: monitoreo y evaluación continua de la calidad para guiar decisiones, habilitación/acreditación de establecimientos y cumplimiento de estándares de seguridad, asegurando acceso eficiente a servicios de calidad. | C106: 3.2.2.16 | D106: Reuniones del Comité de Mejora Continua de la Calidad de la Atención y Seguridad del Paciente. | E106: 1 | F106: 1 | G106: 1 | H106: 1 | I106: 1 | J106: 1 | K106: 1 | L106: 1 | M106: 1 | N106: 1 | O106: 1 | P106: 1 | Q106: 12 | R106: Actas de Reunión (Minutas); Listados de participación | U106: El Comité debe reunirse MENSUAL. Las actas de reuniones (minutas) deben tener todos los campos llenos, firmada y sellada. Su contenido debe reflejar los temas tratados por el comité, con seguimiento a acuerdos y compromisos. OJO: Es una evidencia a cargar para SISMAP Salud. | V106: Enc. De Calidad de los Servicios de Salud
A107: 3.2 Incrementada la satisfacción de usuarios y la calidad percibida de los servicios públicos | B107: 3.2.2 La población usuaria y los clínicos reciben diagnósticos confiables y oportunos mediante el fortalecimiento de la red del SNS: monitoreo y evaluación continua de la calidad para guiar decisiones, habilitación/acreditación de establecimientos y cumplimiento de estándares de seguridad, asegurando acceso eficiente a servicios de calidad. | C107: 3.2.2.17 | D107: Capacitación en Humanización de los Servicios | G107: 1 | K107: 1 | O107: 1 | Q107: 3 | R107: Agenda; Listados de participación; Fotos | U107: Agenda con el sello del establecimiento; listado de participación firmado y sellado, sin campos vacíos. Mínimo 3 fotografías. OJO: Es una evidencia a cargar para SISMAP Salud. | V107: Enc. De Recursos Humanos
A108: 3.2 Incrementada la satisfacción de usuarios y la calidad percibida de los servicios públicos | B108: 3.2.2 La población usuaria y los clínicos reciben diagnósticos confiables y oportunos mediante el fortalecimiento de la red del SNS: monitoreo y evaluación continua de la calidad para guiar decisiones, habilitación/acreditación de establecimientos y cumplimiento de estándares de seguridad, asegurando acceso eficiente a servicios de calidad. | C108: 3.2.2.18 | D108: Capacitación en la Guía Técnica para la Implementación de la Lista de Verificación de la Seguridad de la Cirugía del Ministerio de Salud Pública. | F108: 1 | Q108: 1 | R108: Agenda; Listados de participación; Fotos | U108: Dirigida a cirujanos, anestesiólogos, instrumentistas, enfermeras de cirugía y personal de enfermería de las salas de recuperación, así como otros que se consideren necesarios. OJO: Es una evidencia a cargar para SISMAP Salud. | V108: Enc. De Recursos Humanos
A109: 3.2 Incrementada la satisfacción de usuarios y la calidad percibida de los servicios públicos | B109: 3.2.2 La población usuaria y los clínicos reciben diagnósticos confiables y oportunos mediante el fortalecimiento de la red del SNS: monitoreo y evaluación continua de la calidad para guiar decisiones, habilitación/acreditación de establecimientos y cumplimiento de estándares de seguridad, asegurando acceso eficiente a servicios de calidad. | C109: 3.2.2.19 | D109: Capacitación en Protocolos y Guías de Atención emitidos por el Ministerio de Salud Pública (los que apliquen según su cartera de servicios). | H109: 1 | M109: 1 | Q109: 2 | R109: Agenda; Listados de participación; Fotos | U109: La agenda y la lista de participantes deben especificar claramente el nombre oficial del protocolo o guía nacional abordado en la capacitación, según lo establecido por el Ministerio de Salud Pública. Mínimo 3 fotografías. OJO: Es una evidencia a cargar para SISMAP Salud. | V109: Enc. De Recursos Humanos
A110: 3.2 Incrementada la satisfacción de usuarios y la calidad percibida de los servicios públicos | B110: 3.2.3 Establecimientos de salud garantizan un entorno de atención seguro y confiable para los usuarios, conforme a estándares nacionales e internacionales | C110: 3.2.3.01 | D110: Aplicación del formulario de evaluación del programa de Prevención y Control de Infecciones (PCI) | F110: 1 | Q110: 1 | R110: Informe | T110: Formulario completados | U110: Formulario de Evaluación de los Programas de Prevención y Control de Infecciones de OMS (provistos por PCR) | V110: Enc. De Bioseguridad
A111: 3.2 Incrementada la satisfacción de usuarios y la calidad percibida de los servicios públicos | B111: 3.2.3 Establecimientos de salud garantizan un entorno de atención seguro y confiable para los usuarios, conforme a estándares nacionales e internacionales | C111: 3.2.3.02 | D111: Elaboración de plan de mejora del programa de prevención y control de infecciones , con base en los hallazgos de las autoevaluaciones . | G111: 1 | Q111: =SUM(E111:P111) -> 1 | R111: Plan | U111: Cada establecimiento debe contar con un plan de mejora, aprobado por su dirección y área administrativa (firmado y sellado), que incluya actividades alineadas con los hallazgos identificados en los resultados de las evaluaciones de PCI y bioseguridad. OJO: EVIDENCIA SISMAP. | V111: Enc. De Bioseguridad
A112: 3.2 Incrementada la satisfacción de usuarios y la calidad percibida de los servicios públicos | B112: 3.2.3 Establecimientos de salud garantizan un entorno de atención seguro y confiable para los usuarios, conforme a estándares nacionales e internacionales | C112: 3.2.3.03 | D112: Seguimiento a la ejecución del plan de mejora de prevencion y control de infecciones | L112: 1 | Q112: 1 | R112: Informe | U112: El informe, debidamente aprobado por la dirección y el área administrativa (firmado y sellado), debe incluir las evidencias de las mejoras alcanzadas y las acciones realizadas para gestionar el cierre de las brechas pendientes. OJO: EVIDENCIA SISMAP. | V112: Enc. De Bioseguridad
A113: 3.2 Incrementada la satisfacción de usuarios y la calidad percibida de los servicios públicos | B113: 3.2.3 Establecimientos de salud garantizan un entorno de atención seguro y confiable para los usuarios, conforme a estándares nacionales e internacionales | C113: 3.2.3.04 | D113: Monitoreo de la calidad del agua | G113: 1 | J113: 1 | M113: 1 | P113: 1 | Q113: 4 | R113: Informe, matriz de registro diario de cloro residual, resultado de estudios microbiológicos | U113: El establecimiento deberá elaborar un informe trimestral que integre los hallazgos del monitoreo diario del cloro residual en fuentes y puntos críticos de agua (intensivos, urgencias, quirófano, cocina, etc), así como los resultados de los análisis microbiológicos (mensuales o, como mínimo, trimestrales). El informe deberá incluir las medidas correctivas aplicadas ante desviaciones o contaminaciones detectadas y la última fecha de limpieza y desinfección de cisterna y/o red de distribución de agua. OJO: EVIDENCIA SISMAP | V113: Enc. De Bioseguridad
A114: 3.2 Incrementada la satisfacción de usuarios y la calidad percibida de los servicios públicos | B114: 3.2.3 Establecimientos de salud garantizan un entorno de atención seguro y confiable para los usuarios, conforme a estándares nacionales e internacionales | C114: 3.2.3.05 | D114: Limpieza y desinfección de la cisterna y/o red de distribución de agua del establecimiento | M114: 1 | Q114: 1 | R114: Fotografias del proceso, constancia de servicio recibido, en caso de terceros | U114: Limpieza y desinfección semestral o, como mínimo, anual y de manera inmediata si se detecta: | V114: Enc. De Bioseguridad
A115: 3.2 Incrementada la satisfacción de usuarios y la calidad percibida de los servicios públicos | B115: 3.2.3 Establecimientos de salud garantizan un entorno de atención seguro y confiable para los usuarios, conforme a estándares nacionales e internacionales | C115: 3.2.3.06 | D115: Registro y análisis de eventos adversos: IAAS, caída de pacientes, errores de medicación, relacionados a cirugía, transfusiones, embarazo, parto y puerperio. | G115: 1 | J115: 1 | M115: 1 | P115: 1 | Q115: 4 | R115: Formularios completados | U115: - Presencia de sedimentos o suciedad visible. | V115: Enc. De Epidemiologia
A116: 3.2 Incrementada la satisfacción de usuarios y la calidad percibida de los servicios públicos | B116: 3.2.3 Establecimientos de salud garantizan un entorno de atención seguro y confiable para los usuarios, conforme a estándares nacionales e internacionales | C116: 3.2.3.07 | D116: Capacitación a personal de servicios generales en higiene de manos, uso de EPP y gestión de desechos. | E116: 1 | K116: 1 | Q116: 2 | R116: Listado de participantes | U116: - Resultados microbiológicos con patógenos indicadores (ej. E. coli, coliformes totales, Pseudomonas). | V116: Enc. De Recursos Humanos
A117: 3.2 Incrementada la satisfacción de usuarios y la calidad percibida de los servicios públicos | B117: 3.2.3 Establecimientos de salud garantizan un entorno de atención seguro y confiable para los usuarios, conforme a estándares nacionales e internacionales | C117: 3.2.3.08 | D117: Capacitación a personal médico, enfermería y laboratorio en higiene de manos, uso de EPP y gestión de desechos. | F117: 1 | L117: 1 | Q117: 2 | R117: Listado de participantes | U117: - Reparaciones o interrupciones prolongadas en el suministro de agua. | V117: Enc. De Recursos Humanos
A118: 3.5 Atendidas las solicitudes de información recibidas en los plazos establecidos, con reportes de cumplimiento mensual y mecanismos de retroalimentación al usuario. | B118: 3.5.1 La ciudadanía y los usuarios del SNS acceden a información pública y mecanismos de participación (consultas, veedurías y control social), fortaleciendo la transparencia, la rendición de cuentas y la mejora continua de los servicios. | C118: 3.5.1.01 | D118: Actualización del Portal de Transparencia. | E118: 1 | F118: 1 | G118: 1 | H118: 1 | I118: 1 | J118: 1 | K118: 1 | L118: 1 | M118: 1 | N118: 1 | P118: 1 | Q118: =SUM(E118:P118) -> 11 | R118: Reporte | U118: Formulario de registro compartido por PCR y Formularios de reportes y accion preventiva de eventos adversos (DGCSS-FO-071) | V118: Enc. De OAI
A119: 3.5 Atendidas las solicitudes de información recibidas en los plazos establecidos, con reportes de cumplimiento mensual y mecanismos de retroalimentación al usuario. | B119: 3.5.1 La ciudadanía y los usuarios del SNS acceden a información pública y mecanismos de participación (consultas, veedurías y control social), fortaleciendo la transparencia, la rendición de cuentas y la mejora continua de los servicios. | C119: 3.5.1.02 | D119: Levantamiento del estatus y necesidades de la Oficina de Acceso la Información | F119: 1 | L119: 1 | Q119: 2 | R119: Reporte | U119: OJO: EVIDENCIA SISMAP. | V119: Enc. De OAI
A120: 3.5 Atendidas las solicitudes de información recibidas en los plazos establecidos, con reportes de cumplimiento mensual y mecanismos de retroalimentación al usuario. | B120: 3.5.1 La ciudadanía y los usuarios del SNS acceden a información pública y mecanismos de participación (consultas, veedurías y control social), fortaleciendo la transparencia, la rendición de cuentas y la mejora continua de los servicios. | C120: 3.5.1.03 | D120: Capacitación en la Ley 200-04 y la Resolución No. 002-21de la Dirección General de Ética e Integridad Gubernamental, dirigida al personal administrativo del Hospital. | J120: 1 | Q120: 1 | R120: Listado de participación | S120: Agenda | U120: OJO: EVIDENCIA SISMAP. | V120: Enc. De OAI
A121: 3.5 Atendidas las solicitudes de información recibidas en los plazos establecidos, con reportes de cumplimiento mensual y mecanismos de retroalimentación al usuario. | B121: 3.5.1 La ciudadanía y los usuarios del SNS acceden a información pública y mecanismos de participación (consultas, veedurías y control social), fortaleciendo la transparencia, la rendición de cuentas y la mejora continua de los servicios. | C121: 3.5.1.04 | D121: Capacitación en el Sistema Nacional de Atención Ciudadana 311, dirigida al personal del Hospital. | L121: 1 | Q121: 1 | R121: Listado de participación | S121: Agenda | U121: El RAI tiene dos opciones para realizar esta actividad: 1. Solicitar al Ministerio de la Presidencia que imparta la capacitación; o, 2. Solicitar al RAIs de la regional la capacitación. | V121: Enc. De OAI
A122: 3.5 Atendidas las solicitudes de información recibidas en los plazos establecidos, con reportes de cumplimiento mensual y mecanismos de retroalimentación al usuario. | B122: 3.5.1 La ciudadanía y los usuarios del SNS acceden a información pública y mecanismos de participación (consultas, veedurías y control social), fortaleciendo la transparencia, la rendición de cuentas y la mejora continua de los servicios. | C122: 3.5.1.05 | D122: Capacitación sobre declaración jurada de bienes, a los funcionarios competentes, de conformidad con la Ley 311-14. | P122: 1 | Q122: 1 | R122: Listado de participación | S122: Agenda | U122: El RAI tiene dos opciones para realizar esta actividad: 1. Solicitar a la Cámara de Cuentas que imparta la capacitación; o, 2. Preparar la capacitación e impartirla a todo el personal que le corresponda presentarla | V122: Enc. De OAI
A123: 3.5 Atendidas las solicitudes de información recibidas en los plazos establecidos, con reportes de cumplimiento mensual y mecanismos de retroalimentación al usuario. | B123: 3.5.1 La ciudadanía y los usuarios del SNS acceden a información pública y mecanismos de participación (consultas, veedurías y control social), fortaleciendo la transparencia, la rendición de cuentas y la mejora continua de los servicios. | C123: 3.5.1.06 | D123: Capacitación en la Ley No. 172-13 sobre Protección de Datos Personales a todo el personal del hospital. | M123: 1 | Q123: 1 | R123: Listado de participación | S123: Agenda | U123: El RAI debe preparar la capacitación e impartirla a todo el personal de la hospitales. | V123: Enc. De OAI
A124: 3.5 Atendidas las solicitudes de información recibidas en los plazos establecidos, con reportes de cumplimiento mensual y mecanismos de retroalimentación al usuario. | B124: 3.5.1 La ciudadanía y los usuarios del SNS acceden a información pública y mecanismos de participación (consultas, veedurías y control social), fortaleciendo la transparencia, la rendición de cuentas y la mejora continua de los servicios. | C124: 3.5.1.07 | D124: Creación de la Matriz de Responsabilidad y socialización con el personal del hospital | G124: 1 | Q124: 1 | R124: Registro Digital | U124: El RAI es el responsable de crear, socializar y actualizar la Matriz de Responsabilidad Informacional. También debe agotar el proceso de registro ante la DIGEIG. Cada vez que se produzca un cambio (desvinculación o renuncia) de una de las personas responsables de suministrar la información, se debe modificar la Matriz de Responsabilidad Informacional y agotar nuevamente todo el proceso. Este documento debe estar publicado en el Portal de Transparencia. Ver Resolución 03-2012 emitida por la DIGEIG en fecha 7 de diciembre de 2012. | V124: Enc. De OAI
A125: 3.5 Atendidas las solicitudes de información recibidas en los plazos establecidos, con reportes de cumplimiento mensual y mecanismos de retroalimentación al usuario. | B125: 3.5.1 La ciudadanía y los usuarios del SNS acceden a información pública y mecanismos de participación (consultas, veedurías y control social), fortaleciendo la transparencia, la rendición de cuentas y la mejora continua de los servicios. | C125: 3.5.1.08 | D125: Creación y/ o actualización de la Resolución de Información Clasificada, si aplica | H125: 1 | Q125: 1 | R125: Resolución | U125: El RAI es el responsable de crear y actualizar la Resolución de Información Clasificada. | V125: Enc. De OAI
A126: 3.6 Registradas y procesadas en el Sistema Electrónico de Compras Públicas las adquisiciones y contrataciones institucionales y de la Red Pública. | B126: 3.6.1 Los establecimientos de la red y unidades usuarias del SNS disponen oportunamente de bienes y servicios esenciales mediante la eficientización de la gestión de compras y contrataciones, asegurando planificación, transparencia, competencia y ahorro. | C126: 3.6.1.01 | D126: Consolidación y validación de la plantilla para el Plan Anual de Compras y Contrataciones 2027 | M126: 1 | Q126: 1 | T126: Matriz PACC | V126: Enc. De Planificación
A127: 3.6 Registradas y procesadas en el Sistema Electrónico de Compras Públicas las adquisiciones y contrataciones institucionales y de la Red Pública. | B127: 3.6.1 Los establecimientos de la red y unidades usuarias del SNS disponen oportunamente de bienes y servicios esenciales mediante la eficientización de la gestión de compras y contrataciones, asegurando planificación, transparencia, competencia y ahorro. | C127: 3.6.1.02 | D127: Seguimiento a la formulación del presupuesto 2027 | M127: 1 | Q127: 1 | R127: Reporte | T127: Matrix Presupuesto | V127: Enc. De Planificación
A128: 3.6 Registradas y procesadas en el Sistema Electrónico de Compras Públicas las adquisiciones y contrataciones institucionales y de la Red Pública. | B128: 3.6.1 Los establecimientos de la red y unidades usuarias del SNS disponen oportunamente de bienes y servicios esenciales mediante la eficientización de la gestión de compras y contrataciones, asegurando planificación, transparencia, competencia y ahorro. | C128: 3.6.1.03 | D128: Reporte ejecución Metas Físicas y Financieras en el SIGEF 2026 | G128: 1 | J128: 1 | M128: 1 | P128: 1 | Q128: 4 | R128: Reporte | U128: Sólo aplica a hospitales autogestionados | V128: Enc. De Planificación
A129: 3.6 Registradas y procesadas en el Sistema Electrónico de Compras Públicas las adquisiciones y contrataciones institucionales y de la Red Pública. | B129: 3.6.1 Los establecimientos de la red y unidades usuarias del SNS disponen oportunamente de bienes y servicios esenciales mediante la eficientización de la gestión de compras y contrataciones, asegurando planificación, transparencia, competencia y ahorro. | C129: 3.6.1.04 | D129: Autoevaluación del desempeño hospitalario del SISCOMPRA y elaboración de un plan de mejora conforme hallazgos | G129: 1 | J129: 1 | M129: 1 | P129: 1 | Q129: 4 | R129: Informe | U129: Solo aplica a hospitales que tienen SECP | V129: Enc. De Compras
A130: 3.8 Implementados y operativos los controles internos definidos por las NOBACI, con revisiones de cumplimiento semestrales y planes de mejora continua. | B130: 3.8.1 Los establecimientos de la red y las unidades gestoras del SNS reciben fortalecimiento de la gestión financiera mediante la fiscalización del gasto, la evaluación del control interno, el seguimiento de indicadores financieros y la regularización de anticipos según su naturaleza, asegurando uso eficiente, transparente y oportuno de los recursos. | C130: 3.8.1.01 | D130: Implementación del plan de mejora con las recomendaciones resultados de las auditorías realizadas. | E130: 1 | H130: 1 | L130: 1 | P130: 1 | Q130: 4 | R130: Informe | S130: Plan | T130: Soportes de la ejecución | U130: 22 Hospitales convencionales y hospitales de autogestión. | V130: Enc. De Fiscalización
A131: 3.8 Implementados y operativos los controles internos definidos por las NOBACI, con revisiones de cumplimiento semestrales y planes de mejora continua. | B131: 3.8.1 Los establecimientos de la red y las unidades gestoras del SNS reciben fortalecimiento de la gestión financiera mediante la fiscalización del gasto, la evaluación del control interno, el seguimiento de indicadores financieros y la regularización de anticipos según su naturaleza, asegurando uso eficiente, transparente y oportuno de los recursos. | C131: 3.8.1.02 | D131: Elaboración y remisión de nóminas de Incentivo Rendimiento Individual y guardias presenciales en los plazos establecidos. | E131: 1 | F131: 1 | G131: 1 | H131: 1 | I131: 1 | J131: 1 | K131: 1 | L131: 1 | M131: 1 | N131: 1 | O131: 1 | P131: 1 | Q131: 12 | T131: No Objeción MAP DFC-F0-015 DFC-F0-016 Formularios reporte diario y mensual guardias presenciales | U131: Los incentivos aplican a todos los establecimientos, las guardias presenciales excluye los establecimientos de autogestión | V131: Enc. De Fiscalización
A132: 3.8 Implementados y operativos los controles internos definidos por las NOBACI, con revisiones de cumplimiento semestrales y planes de mejora continua. | B132: 3.8.1 Los establecimientos de la red y las unidades gestoras del SNS reciben fortalecimiento de la gestión financiera mediante la fiscalización del gasto, la evaluación del control interno, el seguimiento de indicadores financieros y la regularización de anticipos según su naturaleza, asegurando uso eficiente, transparente y oportuno de los recursos. | C132: 3.8.1.03 | D132: Ejecución de planes de mejora resultados de la evaluación de control interno aplicada. | E132: 1 | H132: 1 | L132: 1 | P132: 1 | Q132: 4 | R132: Informe | S132: Plan | T132: Soportes de la ejecución | U132: Hospitales bajo seguimiento en el SISMAP Salud | V132: Enc. De Fiscalización
A133: 3.8 Implementados y operativos los controles internos definidos por las NOBACI, con revisiones de cumplimiento semestrales y planes de mejora continua. | B133: 3.8.1 Los establecimientos de la red y las unidades gestoras del SNS reciben fortalecimiento de la gestión financiera mediante la fiscalización del gasto, la evaluación del control interno, el seguimiento de indicadores financieros y la regularización de anticipos según su naturaleza, asegurando uso eficiente, transparente y oportuno de los recursos. | C133: 3.8.1.04 | D133: Reunión con las áreas para identificación de cumplimiento de las actividades programadas del plan piloto Proyecto Sistema de Fiscalización y Control Regional. | E133: 1 | G133: 1 | I133: 1 | K133: 1 | M133: 1 | O133: 1 | Q133: 6 | R133: Listado de participación | S133: Minuta | U133: Establecimientos de salud de la región Valdesia (Juan Pablo Pina). | V133: Enc. De Fiscalización
A134: 3.8 Implementados y operativos los controles internos definidos por las NOBACI, con revisiones de cumplimiento semestrales y planes de mejora continua. | B134: 3.8.1 Los establecimientos de la red y las unidades gestoras del SNS reciben fortalecimiento de la gestión financiera mediante la fiscalización del gasto, la evaluación del control interno, el seguimiento de indicadores financieros y la regularización de anticipos según su naturaleza, asegurando uso eficiente, transparente y oportuno de los recursos. | C134: 3.8.1.05 | D134: Remisión reporte comportamiento de indicadores financieros en seguimiento (disminución de deuda, eficientización de la nómina e incremento de captación recursos directos).. | E134: 1 | F134: 1 | G134: 1 | H134: 1 | I134: 1 | J134: 1 | K134: 1 | L134: 1 | M134: 1 | N134: 1 | O134: 1 | P134: 1 | Q134: 12 | R134: Reporte | V134: Enc. De Fiscalización
A135: 3.8 Implementados y operativos los controles internos definidos por las NOBACI, con revisiones de cumplimiento semestrales y planes de mejora continua. | B135: 3.8.1 Los establecimientos de la red y las unidades gestoras del SNS reciben fortalecimiento de la gestión financiera mediante la fiscalización del gasto, la evaluación del control interno, el seguimiento de indicadores financieros y la regularización de anticipos según su naturaleza, asegurando uso eficiente, transparente y oportuno de los recursos. | C135: 3.8.1.06 | D135: Ejecución de fondos del anticipo financiero en los plazos establecidos. | E135: 1 | G135: 1 | H135: 1 | I135: 1 | J135: 1 | K135: 1 | L135: 1 | M135: 1 | N135: 1 | O135: 1 | P135: 1 | Q135: 11 | T135: Formulario de recepción expediente de rendición de cuenta de anticipo financiero | U135: Por favor excluir, Somos Autogestion / La misma se mantiene por directiz del area. | V135: Enc. De Fiscalización
A136: 3.8 Implementados y operativos los controles internos definidos por las NOBACI, con revisiones de cumplimiento semestrales y planes de mejora continua. | B136: 3.8.1 Los establecimientos de la red y las unidades gestoras del SNS reciben fortalecimiento de la gestión financiera mediante la fiscalización del gasto, la evaluación del control interno, el seguimiento de indicadores financieros y la regularización de anticipos según su naturaleza, asegurando uso eficiente, transparente y oportuno de los recursos. | C136: 3.8.1.07 | D136: Tramitación oportuna ante la ORS de los registros de firmas en cuentas bancarias a nuevos directores y administradores. | E136: 1 | F136: 1 | G136: 1 | H136: 1 | I136: 1 | J136: 1 | K136: 1 | L136: 1 | M136: 1 | N136: 1 | O136: 1 | P136: 1 | Q136: 12 | T136: Oficio de solicitud | V136: Enc. De Fiscalización
A137: 3.8 Implementados y operativos los controles internos definidos por las NOBACI, con revisiones de cumplimiento semestrales y planes de mejora continua. | B137: 3.8.1 Los establecimientos de la red y las unidades gestoras del SNS reciben fortalecimiento de la gestión financiera mediante la fiscalización del gasto, la evaluación del control interno, el seguimiento de indicadores financieros y la regularización de anticipos según su naturaleza, asegurando uso eficiente, transparente y oportuno de los recursos. | C137: 3.8.1.08 | D137: Contratación de firma privada para realizar auditoría interna | G137: 1 | Q137: 1 | T137: Contrato | U137: Hospitales de autogestión | V137: Enc. De Fiscalización
A138: 3.8 Implementados y operativos los controles internos definidos por las NOBACI, con revisiones de cumplimiento semestrales y planes de mejora continua. | B138: 3.8.1 Los establecimientos de la red y las unidades gestoras del SNS reciben fortalecimiento de la gestión financiera mediante la fiscalización del gasto, la evaluación del control interno, el seguimiento de indicadores financieros y la regularización de anticipos según su naturaleza, asegurando uso eficiente, transparente y oportuno de los recursos. | C138: 3.8.1.09 | D138: Seguimiento a la realización de auditoría interna, mediante una contratación de servicio en los hospitales de autogestión | H138: 1 | K138: 1 | Q138: 2 | R138: Informe | U138: Hospitales de autogestión | V138: Direccion
A139: 3.9 Instalaciones físicas remodeladas y equipadas conforme a estándares de centros de salud incrementando su capacidad resolutiva. | B139: 3.9.3 Establecimientos de salud logran y sostienen su habilitación conforme a la normativa vigente | C139: 3.9.3.01 | D139: Implementación de Autoinspecciones de Habilitación | G139: 1 | Q139: 1 | T139: Formularios autorizados por DSHH | V139: Enc. De Calidad de los Servicios de Salud
A140: 3.9 Instalaciones físicas remodeladas y equipadas conforme a estándares de centros de salud incrementando su capacidad resolutiva. | B140: 3.9.3 Establecimientos de salud logran y sostienen su habilitación conforme a la normativa vigente | C140: 3.9.3.02 | D140: Elaboración de Plan de Mejora | H140: 1 | Q140: 1 | R140: Plan | T140: Plan de Mejora en el formato autorizado DGCSS-FO-005 | V140: Enc. De Calidad de los Servicios de Salud
A141: 3.9 Instalaciones físicas remodeladas y equipadas conforme a estándares de centros de salud incrementando su capacidad resolutiva. | B141: 3.9.3 Establecimientos de salud logran y sostienen su habilitación conforme a la normativa vigente | C141: 3.9.3.03 | D141: Notificación de Estatus de Habilitación | F141: 1 | Q141: 1 | T141: Certificado Vigente/ Recibo de renovación MSP | V141: Enc. De Calidad de los Servicios de Salud
A142: 3.9 Instalaciones físicas remodeladas y equipadas conforme a estándares de centros de salud incrementando su capacidad resolutiva. | B142: 3.9.3 Establecimientos de salud logran y sostienen su habilitación conforme a la normativa vigente | C142: 3.9.3.04 | D142: Implementación de Acciones de Plan de Mejora de Habilitación | O142: 1 | Q142: 1 | T142: Plan actualizado y evidencias de ejecución | V142: Enc. De Calidad de los Servicios de Salud
A143: 3.10 Implementado un sistema integral de medición y gestión de la satisfacción de usuarios, con reportes trimestrales y planes de mejora continua para elevar la calidad percibida de los servicios públicos. | B143: 3.10.1 Personas usuarias de los servicios públicos reciben acceso oportuno y eficiente a servicios públicos de calidad | C143: 3.10.1.01 | D143: Aplicación de encuestas de satisfacción de usuarios acorde a cuota establecida mensualmente y Generación de reporte de nivel de satisfacción de usuarios | E143: 1 | F143: 1 | G143: 1 | H143: 1 | I143: 1 | J143: 1 | K143: 1 | L143: 1 | M143: 1 | N143: 1 | O143: 1 | P143: 1 | Q143: 12 | R143: Reporte digital (fuente tablero BI) | V143: Enc. De Atención a Usuarios
A144: 3.10 Implementado un sistema integral de medición y gestión de la satisfacción de usuarios, con reportes trimestrales y planes de mejora continua para elevar la calidad percibida de los servicios públicos. | B144: 3.10.1 Personas usuarias de los servicios públicos reciben acceso oportuno y eficiente a servicios públicos de calidad | C144: 3.10.1.02 | D144: Formulación y/o actualización del plan de mejora de la experiencia del paciente | E144: 1 | Q144: 1 | R144: Plan de Mejora elaborado/actualizado | V144: Enc. De Atención a Usuarios
A145: 3.10 Implementado un sistema integral de medición y gestión de la satisfacción de usuarios, con reportes trimestrales y planes de mejora continua para elevar la calidad percibida de los servicios públicos. | B145: 3.10.1 Personas usuarias de los servicios públicos reciben acceso oportuno y eficiente a servicios públicos de calidad | C145: 3.10.1.03 | D145: Seguimiento del cumplimiento de acciones del plan de mejora de la experiencia del paciente (alineado con los resultados de las supervisones, encuestas de satisfacción, grupos focales, QDRS). | F145: 1 | I145: 1 | L145: 1 | O145: 1 | Q145: 4 | R145: Reporte | V145: Enc. De Atención a Usuarios
A146: 3.10 Implementado un sistema integral de medición y gestión de la satisfacción de usuarios, con reportes trimestrales y planes de mejora continua para elevar la calidad percibida de los servicios públicos. | B146: 3.10.1 Personas usuarias de los servicios públicos reciben acceso oportuno y eficiente a servicios públicos de calidad | C146: 3.10.1.04 | D146: Gestión de los buzones de sugerencias (QDRS) | E146: 1 | F146: 1 | G146: 1 | H146: 1 | I146: 1 | J146: 1 | K146: 1 | L146: 1 | M146: 1 | N146: 1 | O146: 1 | P146: 1 | Q146: 12 | R146: Reporte | V146: Enc. De Atención a Usuarios
A147: 3.10 Implementado un sistema integral de medición y gestión de la satisfacción de usuarios, con reportes trimestrales y planes de mejora continua para elevar la calidad percibida de los servicios públicos. | B147: 3.10.1 Personas usuarias de los servicios públicos reciben acceso oportuno y eficiente a servicios públicos de calidad | C147: 3.10.1.05 | D147: Registro de las referencias y contrareferencias de la Red. | E147: 1 | F147: 1 | G147: 1 | H147: 1 | I147: 1 | J147: 1 | K147: 1 | L147: 1 | M147: 1 | N147: 1 | O147: 1 | P147: 1 | Q147: 12 | R147: Reporte | U147: En caso no tener registros, Deben fechar y colocar el comentario de que no hubo | V147: Enc. De Atención a Usuarios
A148: 3.10 Implementado un sistema integral de medición y gestión de la satisfacción de usuarios, con reportes trimestrales y planes de mejora continua para elevar la calidad percibida de los servicios públicos. | B148: 3.10.1 Personas usuarias de los servicios públicos reciben acceso oportuno y eficiente a servicios públicos de calidad | C148: 3.10.1.06 | D148: Cumplimiento indicadores de AU | G148: 1 | J148: 1 | M148: 1 | P148: 1 | Q148: 4 | R148: Reporte | U148: Reporte (enviado desde el SRS) | V148: Enc. De Atención a Usuarios
E149: =SUM(E16:E148) -> 30 | F149: 28 | G149: 56 | H149: 38 | I149: 31 | J149: 56 | K149: 33 | L149: 32 | M149: 59 | N149: 32 | O149: 32 | P149: 49 | Q149: 476

Sheet Sheet1 (hidden)
E2: Informe | F2: 1.1 Reducidos los niveles de morbilidad y mortalidad materna e infantil por causas prevenibles en la población materno-infantil del país, disminuyendo la mortalidad materna de 127.33 y la mortalidad infantil de 18.44 en 2023 a 89.13 y 16.56 en 2028 en todas las regiones del territorio nacional.
E3: Listado de participación | F3: 1.2 Aumentado el cumplimiento normativo para reducir la incidencia de complicaciones neonatales y maternas, pasando de un promedio del 75.5% en el año 2023 al 88% en el año 2028 en todas las regiones de la Red Pública de Servicios de Salud.
E4: Fotos | F4: 1.3 Reducido el embarazo en adolescentes atendidas en los establecimientos de la Red Pública en un 20% al año 2028, mediante el fortalecimiento del acceso a servicios integrales de salud sexual y reproductiva.
E5: Agenda | F5: 1.4 Disminuida la proporción de partos por cesárea en hospitales del sector público pasando de 48.83 en el 2023 a 34 en el 2028.
E6: Plan | F6: 1.5 Reducida la morbilidad y mortalidad prematura por enfermedades no transmisibles en personas de 30 a 69 años, en un 20% al año 2028, mediante la implementación de intervenciones integrales de prevención, diagnóstico temprano y tratamiento oportuno en los establecimientos de la Red Pública.
E7: Protocolo | F7: 1.6 Incrementado el acceso oportuno a servicios de salud de calidad, aumentando el acceso a servicios preventivos de 2.23% de la población prioritaria en 2023 al 5.24% en 2028 en todas las regiones del país.
E8: Manual | F8: 1.7 Aumentada la disponibilidad de medicamentos esenciales en los establecimientos de la Red Pública de Servicios de Salud, incrementando el cumplimiento promedio de abastecimiento del 88% en 2023 al 93% en 2028 en todas las regiones del país.
E9: Resolución | F9: 1.8 Superadas las deficiencias en la organización e implementación de las Redes Integradas de Servicios de Salud (RISS) beneficiando a toda la población que utiliza los servicios de salud de la Red Pública, aumentando del 38% en 2023 al 50% en 2028 en todo el territorio nacional.
E10: Boletin | F10: 1.9 Fortalecida la implementación del Modelo de Atención en Salud beneficiando a la población usuaria del primer nivel de atención, incrementando la adscripción del 7% en 2023 al 80% en 2028, en todas las regiones del país.
E11: Reporte | F11: 1.10 Mejorada la distribución y presencia del Primer Nivel de Atención respecto a la sectorización, incrementando la presencia del Primer Nivel del 70% en 2023 al 71% en 2028 en todas las regiones del territorio nacional.
E12: Minuta | F12: 1.11 Fortalecida la continuidad en la atención de las puérperas y recién nacidos, aumentando la captación oportuna del 30% en 2023 al 50% en 2028 en el Primer Nivel de Atención.
E13: Hoja de supervisión | F13: 1.12 Superadas las deficiencias en la organización e implementación de las Redes Integradas de Servicios de Salud (RISS) beneficiando a toda la población que utiliza los servicios de salud de la Red Pública, aumentando del 38% en 2023 al 50% en 2028 en todo el territorio nacional.
E14: Inventario | F14: 1.13 Fortalecida la continuidad en la atención de las puérperas y recién nacidos, aumentando la captación oportuna del 30% en 2023 al 50% en 2028 en el Primer Nivel de Atención.
E15: Reglamento | F15: 2.1 Reducida la escasez de recursos humanos de salud, aumentando un 12% en el 2028 la dotación de personal en establecimientos públicos del país.
E16: Memoria | F16: 2.2 Incrementada la eficacia de los procesos de contratación y retención de recursos humanos de salud en establecimientos públicos, reduciendo vacantes y mejorando la dotación de personal.
E17: Encuesta | F17: 3.1 Fortalecida la capacidad institucional para aumentar el acceso a servicios públicos de calidad mediante la optimización de procesos, empoderamiento del talento humano, articulación efectiva, incorporación de tecnologías de la información y comunicación, modernización de la infraestructura física y equipamiento adecuado.
E18: Registro Digital | F18: 3.2 Incrementada la satisfacción de usuarios y la calidad percibida de los servicios públicos
E19: Base de datos | F19: 3.3 Cumplidos los indicadores de gestión pública institucional, garantizando disponibilidad oportuna de la información para la toma de decisiones.
E20: Otros | F20: 3.4 Alcanzado un cumplimiento mínimo del 90% de las metas de planificación y ejecución presupuestaria, optimizando la asignación y uso de recursos.
F21: 3.5 Atendidas las solicitudes de información recibidas en los plazos establecidos, con reportes de cumplimiento mensual y mecanismos de retroalimentación al usuario.
F22: 3.6 Registradas y procesadas en el Sistema Electrónico de Compras Públicas las adquisiciones y contrataciones institucionales y de la Red Pública.
F23: 3.7 Incrementando progresivamente el índice de uso de las TIC y Gobierno Digital en la Red Pública de Servicios de Salud.
F24: 3.8 Implementados y operativos los controles internos definidos por las NOBACI, con revisiones de cumplimiento semestrales y planes de mejora continua.
F25: 3.9 Instalaciones físicas remodeladas y equipadas conforme a estándares de centros de salud incrementando su capacidad resolutiva.
F26: 3.10 Implementado un sistema integral de medición y gestión de la satisfacción de usuarios, con reportes trimestrales y planes de mejora continua para elevar la calidad percibida de los servicios públicos.

Sheet PPNE2.1
O1: Venta Servicios
G2: Servicio Nacional de Salud | S2: Anticipo Financiero
G3: Dirección de Planificación y Desarrollo | S3: Venta de Servicios
G4: Programación de Insumos | S4: Donaciones
J5: =+#REF! -> 
G6: CEAS | H6: =+#REF! -> 
B7: ID_Dependendencia | C7: POA | D7: SRS | E7: AREA | F7: TIPO | G7: Código_Actividad | H7: Insumos | I7: Unidad de Medida | J7: Cantidad de Insumos | K7: Precio Unitario | L7: Valor Total | M7: Código Presupuestario | N7: Fuente de Financiamiento
B8: =IF(Tabla13[[#This Row],[Código_Actividad]]="","",CONCATENATE(Tabla13[[#This Row],[POA]],".",Tabla13[[#This Row],[SRS]],".",Tabla13[[#This Row],[AREA]],".",Tabla13[[#This Row],[TIPO]])) -> ... | G8: 1.6.5.04 | H8: Anestesia al 2% | I8: unidad | J8: 500 | K8: 3,000.00 | L8: =+Tabla13[[#This Row],[Precio Unitario]]*Tabla13[[#This Row],[Cantidad de Insumos]] -> 1,500,000.00 | M8: 2.3.9.3.01
B9: =IF(Tabla13[[#This Row],[Código_Actividad]]="","",CONCATENATE(Tabla13[[#This Row],[POA]],".",Tabla13[[#This Row],[SRS]],".",Tabla13[[#This Row],[AREA]],".",Tabla13[[#This Row],[TIPO]])) -> ... | G9: 1.6.5.04 | H9: Anestesia al 3% | I9: unidad | J9: 500 | K9: 3,000.00 | L9: =+Tabla13[[#This Row],[Precio Unitario]]*Tabla13[[#This Row],[Cantidad de Insumos]] -> 1,500,000.00 | M9: 2.3.9.3.01
B10: =IF(Tabla13[[#This Row],[Código_Actividad]]="","",CONCATENATE(Tabla13[[#This Row],[POA]],".",Tabla13[[#This Row],[SRS]],".",Tabla13[[#This Row],[AREA]],".",Tabla13[[#This Row],[TIPO]])) -> ... | G10: 1.6.5.04 | H10: Agujas cortas | I10: unidad | J10: 500 | K10: 12.00 | L10: =+Tabla13[[#This Row],[Precio Unitario]]*Tabla13[[#This Row],[Cantidad de Insumos]] -> 6,000.00 | M10: 2.3.9.3.01
B11: =IF(Tabla13[[#This Row],[Código_Actividad]]="","",CONCATENATE(Tabla13[[#This Row],[POA]],".",Tabla13[[#This Row],[SRS]],".",Tabla13[[#This Row],[AREA]],".",Tabla13[[#This Row],[TIPO]])) -> ... | G11: 1.6.5.04 | H11: Agujas Largas | I11: unidad | J11: 500 | K11: 12.00 | L11: =+Tabla13[[#This Row],[Precio Unitario]]*Tabla13[[#This Row],[Cantidad de Insumos]] -> 6,000.00 | M11: 2.3.9.3.01
B12: =IF(Tabla13[[#This Row],[Código_Actividad]]="","",CONCATENATE(Tabla13[[#This Row],[POA]],".",Tabla13[[#This Row],[SRS]],".",Tabla13[[#This Row],[AREA]],".",Tabla13[[#This Row],[TIPO]])) -> ... | G12: 1.6.5.04 | H12: Gaza | I12: unidad | J12: 500 | K12: 1,300.00 | L12: =+Tabla13[[#This Row],[Precio Unitario]]*Tabla13[[#This Row],[Cantidad de Insumos]] -> 650,000.00 | M12: 2.3.9.3.01
B13: =IF(Tabla13[[#This Row],[Código_Actividad]]="","",CONCATENATE(Tabla13[[#This Row],[POA]],".",Tabla13[[#This Row],[SRS]],".",Tabla13[[#This Row],[AREA]],".",Tabla13[[#This Row],[TIPO]])) -> ... | G13: 1.6.5.04 | H13: Sutura | I13: unidad | J13: 500 | K13: 5,600.00 | L13: =+Tabla13[[#This Row],[Precio Unitario]]*Tabla13[[#This Row],[Cantidad de Insumos]] -> 2,800,000.00 | M13: 2.3.9.3.01
B14: =IF(Tabla13[[#This Row],[Código_Actividad]]="","",CONCATENATE(Tabla13[[#This Row],[POA]],".",Tabla13[[#This Row],[SRS]],".",Tabla13[[#This Row],[AREA]],".",Tabla13[[#This Row],[TIPO]])) -> ... | G14: 1.6.5.04 | H14: Guantes | I14: Caja | J14: 6 | K14: 595.00 | L14: =+Tabla13[[#This Row],[Precio Unitario]]*Tabla13[[#This Row],[Cantidad de Insumos]] -> 3,570.00 | M14: 2.3.9.3.01
B15: =IF(Tabla13[[#This Row],[Código_Actividad]]="","",CONCATENATE(Tabla13[[#This Row],[POA]],".",Tabla13[[#This Row],[SRS]],".",Tabla13[[#This Row],[AREA]],".",Tabla13[[#This Row],[TIPO]])) -> ... | G15: 1.6.5.04 | H15: Pasta profilactica | I15: Frasco | J15: 7 | K15: 3,000.00 | L15: =+Tabla13[[#This Row],[Precio Unitario]]*Tabla13[[#This Row],[Cantidad de Insumos]] -> 21,000.00 | M15: 2.3.7.2.03
B16: =IF(Tabla13[[#This Row],[Código_Actividad]]="","",CONCATENATE(Tabla13[[#This Row],[POA]],".",Tabla13[[#This Row],[SRS]],".",Tabla13[[#This Row],[AREA]],".",Tabla13[[#This Row],[TIPO]])) -> ... | G16: 1.6.5.04 | H16: Brochitas | I16: unidad | J16: 500 | K16: 300.00 | L16: =+Tabla13[[#This Row],[Precio Unitario]]*Tabla13[[#This Row],[Cantidad de Insumos]] -> 150,000.00 | M16: 2.3.6.3.04
B17: =IF(Tabla13[[#This Row],[Código_Actividad]]="","",CONCATENATE(Tabla13[[#This Row],[POA]],".",Tabla13[[#This Row],[SRS]],".",Tabla13[[#This Row],[AREA]],".",Tabla13[[#This Row],[TIPO]])) -> ... | G17: 1.6.5.04 | H17: Resina A2 | I17: Frasco | J17: 50 | K17: 1,800.00 | L17: =+Tabla13[[#This Row],[Precio Unitario]]*Tabla13[[#This Row],[Cantidad de Insumos]] -> 90,000.00 | M17: 2.3.7.2.03
B18: =IF(Tabla13[[#This Row],[Código_Actividad]]="","",CONCATENATE(Tabla13[[#This Row],[POA]],".",Tabla13[[#This Row],[SRS]],".",Tabla13[[#This Row],[AREA]],".",Tabla13[[#This Row],[TIPO]])) -> ... | G18: 1.6.5.04 | H18: Resina A3 | I18: Frasco | J18: 50 | K18: 1,800.00 | L18: =+Tabla13[[#This Row],[Precio Unitario]]*Tabla13[[#This Row],[Cantidad de Insumos]] -> 90,000.00 | M18: 2.3.7.2.03
B19: =IF(Tabla13[[#This Row],[Código_Actividad]]="","",CONCATENATE(Tabla13[[#This Row],[POA]],".",Tabla13[[#This Row],[SRS]],".",Tabla13[[#This Row],[AREA]],".",Tabla13[[#This Row],[TIPO]])) -> ... | G19: 1.6.5.04 | H19: Resina Dentina A2 | I19: Frasco | J19: 50 | K19: 1,800.00 | L19: =+Tabla13[[#This Row],[Precio Unitario]]*Tabla13[[#This Row],[Cantidad de Insumos]] -> 90,000.00 | M19: 2.3.7.2.03
B20: =IF(Tabla13[[#This Row],[Código_Actividad]]="","",CONCATENATE(Tabla13[[#This Row],[POA]],".",Tabla13[[#This Row],[SRS]],".",Tabla13[[#This Row],[AREA]],".",Tabla13[[#This Row],[TIPO]])) -> ... | G20: 1.6.5.04 | H20: Resina Dentina A3 | I20: Frasco | J20: 50 | K20: 1,800.00 | L20: =+Tabla13[[#This Row],[Precio Unitario]]*Tabla13[[#This Row],[Cantidad de Insumos]] -> 90,000.00 | M20: 2.3.7.2.03
B21: =IF(Tabla13[[#This Row],[Código_Actividad]]="","",CONCATENATE(Tabla13[[#This Row],[POA]],".",Tabla13[[#This Row],[SRS]],".",Tabla13[[#This Row],[AREA]],".",Tabla13[[#This Row],[TIPO]])) -> ... | G21: 1.6.5.04 | H21: Grabado acido | I21: Frasco | J21: 100 | K21: 500.00 | L21: =+Tabla13[[#This Row],[Precio Unitario]]*Tabla13[[#This Row],[Cantidad de Insumos]] -> 50,000.00 | M21: 2.6.3.1.01
B22: =IF(Tabla13[[#This Row],[Código_Actividad]]="","",CONCATENATE(Tabla13[[#This Row],[POA]],".",Tabla13[[#This Row],[SRS]],".",Tabla13[[#This Row],[AREA]],".",Tabla13[[#This Row],[TIPO]])) -> ... | G22: 1.6.5.04 | H22: Bonding | I22: Frasco | J22: 200 | K22: 1,200.00 | L22: =+Tabla13[[#This Row],[Precio Unitario]]*Tabla13[[#This Row],[Cantidad de Insumos]] -> 240,000.00 | M22: 2.3.9.3.01
B23: =IF(Tabla13[[#This Row],[Código_Actividad]]="","",CONCATENATE(Tabla13[[#This Row],[POA]],".",Tabla13[[#This Row],[SRS]],".",Tabla13[[#This Row],[AREA]],".",Tabla13[[#This Row],[TIPO]])) -> ... | G23: 1.6.5.04 | H23: Hidrocido de Calcio foto curable | I23: Frasco | J23: 50 | K23: 3,400.00 | L23: =+Tabla13[[#This Row],[Precio Unitario]]*Tabla13[[#This Row],[Cantidad de Insumos]] -> 170,000.00 | M23: 2.3.6.1.02
B24: =IF(Tabla13[[#This Row],[Código_Actividad]]="","",CONCATENATE(Tabla13[[#This Row],[POA]],".",Tabla13[[#This Row],[SRS]],".",Tabla13[[#This Row],[AREA]],".",Tabla13[[#This Row],[TIPO]])) -> ... | G24: 1.6.5.04 | H24: Clohexidina | I24: Galon | J24: 3 | K24: 250.00 | L24: =+Tabla13[[#This Row],[Precio Unitario]]*Tabla13[[#This Row],[Cantidad de Insumos]] -> 750.00 | M24: 2.3.4.1.01
B25: =IF(Tabla13[[#This Row],[Código_Actividad]]="","",CONCATENATE(Tabla13[[#This Row],[POA]],".",Tabla13[[#This Row],[SRS]],".",Tabla13[[#This Row],[AREA]],".",Tabla13[[#This Row],[TIPO]])) -> ... | G25: 1.6.5.04 | H25: Aginato | I25: Paquete | J25: 3 | K25: 6,000.00 | L25: =+Tabla13[[#This Row],[Precio Unitario]]*Tabla13[[#This Row],[Cantidad de Insumos]] -> 18,000.00 | M25: 2.3.4.1.01
B26: =IF(Tabla13[[#This Row],[Código_Actividad]]="","",CONCATENATE(Tabla13[[#This Row],[POA]],".",Tabla13[[#This Row],[SRS]],".",Tabla13[[#This Row],[AREA]],".",Tabla13[[#This Row],[TIPO]])) -> ... | G26: 1.6.5.04 | H26: Cera | I26: Lamina | J26: 3 | K26: 400.00 | L26: =+Tabla13[[#This Row],[Precio Unitario]]*Tabla13[[#This Row],[Cantidad de Insumos]] -> 1,200.00 | M26: 2.3.7.2.99
B27: =IF(Tabla13[[#This Row],[Código_Actividad]]="","",CONCATENATE(Tabla13[[#This Row],[POA]],".",Tabla13[[#This Row],[SRS]],".",Tabla13[[#This Row],[AREA]],".",Tabla13[[#This Row],[TIPO]])) -> ... | G27: 3.2.2.17 | H27: Picadera | I27: Unidad | J27: 300 | K27: 350.00 | L27: =+Tabla13[[#This Row],[Precio Unitario]]*Tabla13[[#This Row],[Cantidad de Insumos]] -> 105,000.00 | M27: 2.2.9.2.03
B28: =IF(Tabla13[[#This Row],[Código_Actividad]]="","",CONCATENATE(Tabla13[[#This Row],[POA]],".",Tabla13[[#This Row],[SRS]],".",Tabla13[[#This Row],[AREA]],".",Tabla13[[#This Row],[TIPO]])) -> ... | G28: 3.2.2.17 | H28: Souveniles | I28: Unidad | J28: 75 | K28: 500.00 | L28: =+Tabla13[[#This Row],[Precio Unitario]]*Tabla13[[#This Row],[Cantidad de Insumos]] -> 37,500.00 | M28: 2.3.9.9.05
B29: =IF(Tabla13[[#This Row],[Código_Actividad]]="","",CONCATENATE(Tabla13[[#This Row],[POA]],".",Tabla13[[#This Row],[SRS]],".",Tabla13[[#This Row],[AREA]],".",Tabla13[[#This Row],[TIPO]])) -> ... | G29: 3.2.2.17 | H29: agua | I29: Unidad | J29: 75 | K29: 70.00 | L29: =+Tabla13[[#This Row],[Precio Unitario]]*Tabla13[[#This Row],[Cantidad de Insumos]] -> 5,250.00 | M29: 2.3.1.1.01
B30: =IF(Tabla13[[#This Row],[Código_Actividad]]="","",CONCATENATE(Tabla13[[#This Row],[POA]],".",Tabla13[[#This Row],[SRS]],".",Tabla13[[#This Row],[AREA]],".",Tabla13[[#This Row],[TIPO]])) -> ... | G30: 3.2.2.17 | H30: Café | I30: Unidad | J30: 75 | K30: 350.00 | L30: =+Tabla13[[#This Row],[Precio Unitario]]*Tabla13[[#This Row],[Cantidad de Insumos]] -> 26,250.00 | M30: 2.3.1.1.01
B31: =IF(Tabla13[[#This Row],[Código_Actividad]]="","",CONCATENATE(Tabla13[[#This Row],[POA]],".",Tabla13[[#This Row],[SRS]],".",Tabla13[[#This Row],[AREA]],".",Tabla13[[#This Row],[TIPO]])) -> ... | G31: 3.1.6.03 | H31: Transporte | I31: Unidad | J31: 4 | K31: 2,000.00 | L31: =+Tabla13[[#This Row],[Precio Unitario]]*Tabla13[[#This Row],[Cantidad de Insumos]] -> 8,000.00 | M31: 2.2.9.2.01
B32: =IF(Tabla13[[#This Row],[Código_Actividad]]="","",CONCATENATE(Tabla13[[#This Row],[POA]],".",Tabla13[[#This Row],[SRS]],".",Tabla13[[#This Row],[AREA]],".",Tabla13[[#This Row],[TIPO]])) -> ... | G32: 3.8.1.08 | H32: Contratación de firma privada para realizar auditoría interna | I32: Unidad | J32: 1 | K32: 400,000.00 | L32: =+Tabla13[[#This Row],[Precio Unitario]]*Tabla13[[#This Row],[Cantidad de Insumos]] -> 400,000.00 | M32: 2.2.8.7.03
B33: =IF(Tabla13[[#This Row],[Código_Actividad]]="","",CONCATENATE(Tabla13[[#This Row],[POA]],".",Tabla13[[#This Row],[SRS]],".",Tabla13[[#This Row],[AREA]],".",Tabla13[[#This Row],[TIPO]])) -> ... | G33: 2.1.1.01 | H33: Picadera | I33: Unidad | J33: 1,000 | K33: 350.00 | L33: =+Tabla13[[#This Row],[Precio Unitario]]*Tabla13[[#This Row],[Cantidad de Insumos]] -> 350,000.00 | M33: 2.2.9.2.03
B34: =IF(Tabla13[[#This Row],[Código_Actividad]]="","",CONCATENATE(Tabla13[[#This Row],[POA]],".",Tabla13[[#This Row],[SRS]],".",Tabla13[[#This Row],[AREA]],".",Tabla13[[#This Row],[TIPO]])) -> ... | G34: 2.1.1.01 | H34: agua | I34: Unidad | J34: 1,000 | K34: 70.00 | L34: =+Tabla13[[#This Row],[Precio Unitario]]*Tabla13[[#This Row],[Cantidad de Insumos]] -> 70,000.00 | M34: 2.3.1.1.01
B35: =IF(Tabla13[[#This Row],[Código_Actividad]]="","",CONCATENATE(Tabla13[[#This Row],[POA]],".",Tabla13[[#This Row],[SRS]],".",Tabla13[[#This Row],[AREA]],".",Tabla13[[#This Row],[TIPO]])) -> ... | G35: 2.1.1.01 | H35: Café | I35: Unidad | J35: 40 | K35: 350.00 | L35: =+Tabla13[[#This Row],[Precio Unitario]]*Tabla13[[#This Row],[Cantidad de Insumos]] -> 14,000.00 | M35: 2.3.1.1.01
B36: =IF(Tabla13[[#This Row],[Código_Actividad]]="","",CONCATENATE(Tabla13[[#This Row],[POA]],".",Tabla13[[#This Row],[SRS]],".",Tabla13[[#This Row],[AREA]],".",Tabla13[[#This Row],[TIPO]])) -> ... | G36: 2.1.1.01 | H36: Almuerzo | I36: Unidad | J36: 1,000 | K36: 600.00 | L36: =+Tabla13[[#This Row],[Precio Unitario]]*Tabla13[[#This Row],[Cantidad de Insumos]] -> 600,000.00 | M36: 2.2.9.2.03
B37: =IF(Tabla13[[#This Row],[Código_Actividad]]="","",CONCATENATE(Tabla13[[#This Row],[POA]],".",Tabla13[[#This Row],[SRS]],".",Tabla13[[#This Row],[AREA]],".",Tabla13[[#This Row],[TIPO]])) -> ... | G37: 2.1.1.01 | H37: Acuerdo INAP | I37: Unidad | J37: 3 | K37: 300,000.00 | L37: =+Tabla13[[#This Row],[Precio Unitario]]*Tabla13[[#This Row],[Cantidad de Insumos]] -> 900,000.00 | M37: 2.2.9.1.01
B38: =IF(Tabla13[[#This Row],[Código_Actividad]]="","",CONCATENATE(Tabla13[[#This Row],[POA]],".",Tabla13[[#This Row],[SRS]],".",Tabla13[[#This Row],[AREA]],".",Tabla13[[#This Row],[TIPO]])) -> ... | G38: 3.2.2.08 | H38: GALON AGUA BI-DESTILADA | I38: UND | J38: 1,668 | K38: 8,000.00 | L38: =+Tabla13[[#This Row],[Precio Unitario]]*Tabla13[[#This Row],[Cantidad de Insumos]] -> 13,344,000.00 | M38: 2.37.2.03
B39: =IF(Tabla13[[#This Row],[Código_Actividad]]="","",CONCATENATE(Tabla13[[#This Row],[POA]],".",Tabla13[[#This Row],[SRS]],".",Tabla13[[#This Row],[AREA]],".",Tabla13[[#This Row],[TIPO]])) -> ... | G39: 3.2.2.08 | H39: CD80 DETERGENTE FRASCO 2L | I39: UND | J39: 200 | K39: 8,000.00 | L39: =+Tabla13[[#This Row],[Precio Unitario]]*Tabla13[[#This Row],[Cantidad de Insumos]] -> 1,600,000.00 | M39: 2.3.9.1.01
B40: =IF(Tabla13[[#This Row],[Código_Actividad]]="","",CONCATENATE(Tabla13[[#This Row],[POA]],".",Tabla13[[#This Row],[SRS]],".",Tabla13[[#This Row],[AREA]],".",Tabla13[[#This Row],[TIPO]])) -> ... | G40: 3.2.2.08 | H40: TGO 10X50ML MANUAL KIT | I40: UND | J40: 64 | K40: 8,000.00 | L40: =+Tabla13[[#This Row],[Precio Unitario]]*Tabla13[[#This Row],[Cantidad de Insumos]] -> 512,000.00 | M40: 2.3.7.2.03
B41: =IF(Tabla13[[#This Row],[Código_Actividad]]="","",CONCATENATE(Tabla13[[#This Row],[POA]],".",Tabla13[[#This Row],[SRS]],".",Tabla13[[#This Row],[AREA]],".",Tabla13[[#This Row],[TIPO]])) -> ... | G41: 3.2.2.08 | H41: TGO BS-380 KIT 4X40ML | I41: UND | J41: 88 | K41: 8,000.00 | L41: =+Tabla13[[#This Row],[Precio Unitario]]*Tabla13[[#This Row],[Cantidad de Insumos]] -> 704,000.00 | M41: 2.3.7.2.03
B42: =IF(Tabla13[[#This Row],[Código_Actividad]]="","",CONCATENATE(Tabla13[[#This Row],[POA]],".",Tabla13[[#This Row],[SRS]],".",Tabla13[[#This Row],[AREA]],".",Tabla13[[#This Row],[TIPO]])) -> ... | G42: 3.2.2.08 | H42: HDL DIRECTO BS-380 KIT 4X30ML 2X20 | I42: UND | J42: 60 | K42: 8,000.00 | L42: =+Tabla13[[#This Row],[Precio Unitario]]*Tabla13[[#This Row],[Cantidad de Insumos]] -> 480,000.00 | M42: 2.3.7.2.03
B43: =IF(Tabla13[[#This Row],[Código_Actividad]]="","",CONCATENATE(Tabla13[[#This Row],[POA]],".",Tabla13[[#This Row],[SRS]],".",Tabla13[[#This Row],[AREA]],".",Tabla13[[#This Row],[TIPO]])) -> ... | G43: 3.2.2.08 | H43: UREA BS-380 KIT 4X40ML/ 2X20ML | I43: UND | J43: 68 | K43: 8,000.00 | L43: =+Tabla13[[#This Row],[Precio Unitario]]*Tabla13[[#This Row],[Cantidad de Insumos]] -> 544,000.00 | M43: 2.3.7.2.03
B44: =IF(Tabla13[[#This Row],[Código_Actividad]]="","",CONCATENATE(Tabla13[[#This Row],[POA]],".",Tabla13[[#This Row],[SRS]],".",Tabla13[[#This Row],[AREA]],".",Tabla13[[#This Row],[TIPO]])) -> ... | G44: 3.2.2.08 | H44: UREA 10X 50ML MANUAL KIT | I44: UND | J44: 64 | K44: 8,000.00 | L44: =+Tabla13[[#This Row],[Precio Unitario]]*Tabla13[[#This Row],[Cantidad de Insumos]] -> 512,000.00 | M44: 2.3.7.2.03
B45: =IF(Tabla13[[#This Row],[Código_Actividad]]="","",CONCATENATE(Tabla13[[#This Row],[POA]],".",Tabla13[[#This Row],[SRS]],".",Tabla13[[#This Row],[AREA]],".",Tabla13[[#This Row],[TIPO]])) -> ... | G45: 3.2.2.08 | H45: ACIDO URICO 3X40ML BS-380 KIT | I45: UND | J45: 28 | K45: 8,000.00 | L45: =+Tabla13[[#This Row],[Precio Unitario]]*Tabla13[[#This Row],[Cantidad de Insumos]] -> 224,000.00 | M45: 2.3.7.2.03
B46: =IF(Tabla13[[#This Row],[Código_Actividad]]="","",CONCATENATE(Tabla13[[#This Row],[POA]],".",Tabla13[[#This Row],[SRS]],".",Tabla13[[#This Row],[AREA]],".",Tabla13[[#This Row],[TIPO]])) -> ... | G46: 3.2.2.08 | H46: ACIDO URICO 10X20ML MANUAL KIT | I46: UND | J46: 28 | K46: 8,000.00 | L46: =+Tabla13[[#This Row],[Precio Unitario]]*Tabla13[[#This Row],[Cantidad de Insumos]] -> 224,000.00 | M46: 2.3.7.2.03
B47: =IF(Tabla13[[#This Row],[Código_Actividad]]="","",CONCATENATE(Tabla13[[#This Row],[POA]],".",Tabla13[[#This Row],[SRS]],".",Tabla13[[#This Row],[AREA]],".",Tabla13[[#This Row],[TIPO]])) -> ... | G47: 3.2.2.08 | H47: LDH BS-380 4X40/2X20 ML KIT | I47: UND | J47: 68 | K47: 8,000.00 | L47: =+Tabla13[[#This Row],[Precio Unitario]]*Tabla13[[#This Row],[Cantidad de Insumos]] -> 544,000.00 | M47: 2.3.7.2.03
B48: =IF(Tabla13[[#This Row],[Código_Actividad]]="","",CONCATENATE(Tabla13[[#This Row],[POA]],".",Tabla13[[#This Row],[SRS]],".",Tabla13[[#This Row],[AREA]],".",Tabla13[[#This Row],[TIPO]])) -> ... | G48: 3.2.2.08 | H48: LDH MANUAL 20X3ML KIT | I48: UND | J48: 64 | K48: 8,000.00 | L48: =+Tabla13[[#This Row],[Precio Unitario]]*Tabla13[[#This Row],[Cantidad de Insumos]] -> 512,000.00 | M48: 2.3.7.2.03
B49: =IF(Tabla13[[#This Row],[Código_Actividad]]="","",CONCATENATE(Tabla13[[#This Row],[POA]],".",Tabla13[[#This Row],[SRS]],".",Tabla13[[#This Row],[AREA]],".",Tabla13[[#This Row],[TIPO]])) -> ... | G49: 3.2.2.08 | H49: CREATININA BS-380 2X150ML KIT | I49: UND | J49: 68 | K49: 8,000.00 | L49: =+Tabla13[[#This Row],[Precio Unitario]]*Tabla13[[#This Row],[Cantidad de Insumos]] -> 544,000.00 | M49: 2.3.7.2.03
B50: =IF(Tabla13[[#This Row],[Código_Actividad]]="","",CONCATENATE(Tabla13[[#This Row],[POA]],".",Tabla13[[#This Row],[SRS]],".",Tabla13[[#This Row],[AREA]],".",Tabla13[[#This Row],[TIPO]])) -> ... | G50: 3.2.2.08 | H50: CREATININA MANUAL 3X40ML KIT | I50: UND | J50: 64 | K50: 8,000.00 | L50: =+Tabla13[[#This Row],[Precio Unitario]]*Tabla13[[#This Row],[Cantidad de Insumos]] -> 512,000.00 | M50: 2.3.7.2.03
B51: =IF(Tabla13[[#This Row],[Código_Actividad]]="","",CONCATENATE(Tabla13[[#This Row],[POA]],".",Tabla13[[#This Row],[SRS]],".",Tabla13[[#This Row],[AREA]],".",Tabla13[[#This Row],[TIPO]])) -> ... | G51: 3.2.2.08 | H51: TGP MANUAL 10X50ML KIT | I51: UND | J51: 64 | K51: 8,000.00 | L51: =+Tabla13[[#This Row],[Precio Unitario]]*Tabla13[[#This Row],[Cantidad de Insumos]] -> 512,000.00 | M51: 2.3.7.2.03
B52: =IF(Tabla13[[#This Row],[Código_Actividad]]="","",CONCATENATE(Tabla13[[#This Row],[POA]],".",Tabla13[[#This Row],[SRS]],".",Tabla13[[#This Row],[AREA]],".",Tabla13[[#This Row],[TIPO]])) -> ... | G52: 3.2.2.08 | H52: TGP BS-380 5X25ML/1X32ML KIT | I52: UND | J52: 68 | K52: 8,000.00 | L52: =+Tabla13[[#This Row],[Precio Unitario]]*Tabla13[[#This Row],[Cantidad de Insumos]] -> 544,000.00 | M52: 2.3.7.2.03
B53: =IF(Tabla13[[#This Row],[Código_Actividad]]="","",CONCATENATE(Tabla13[[#This Row],[POA]],".",Tabla13[[#This Row],[SRS]],".",Tabla13[[#This Row],[AREA]],".",Tabla13[[#This Row],[TIPO]])) -> ... | G53: 3.2.2.08 | H53: GLUCOSA BS-380 6X40ML KIT | I53: UND | J53: 68 | K53: 8,000.00 | L53: =+Tabla13[[#This Row],[Precio Unitario]]*Tabla13[[#This Row],[Cantidad de Insumos]] -> 544,000.00 | M53: 2.3.7.2.03
B54: =IF(Tabla13[[#This Row],[Código_Actividad]]="","",CONCATENATE(Tabla13[[#This Row],[POA]],".",Tabla13[[#This Row],[SRS]],".",Tabla13[[#This Row],[AREA]],".",Tabla13[[#This Row],[TIPO]])) -> ... | G54: 3.2.2.08 | H54: GLUCOSA MANUAL 4X125ML KIT | I54: UND | J54: 64 | K54: 8,000.00 | L54: =+Tabla13[[#This Row],[Precio Unitario]]*Tabla13[[#This Row],[Cantidad de Insumos]] -> 512,000.00 | M54: 2.3.7.2.03
B55: =IF(Tabla13[[#This Row],[Código_Actividad]]="","",CONCATENATE(Tabla13[[#This Row],[POA]],".",Tabla13[[#This Row],[SRS]],".",Tabla13[[#This Row],[AREA]],".",Tabla13[[#This Row],[TIPO]])) -> ... | G55: 3.2.2.08 | H55: AMILASA BS-380 6X40ML KIT | I55: UND | J55: 16 | K55: 8,000.00 | L55: =+Tabla13[[#This Row],[Precio Unitario]]*Tabla13[[#This Row],[Cantidad de Insumos]] -> 128,000.00 | M55: 2.3.7.2.03
B56: =IF(Tabla13[[#This Row],[Código_Actividad]]="","",CONCATENATE(Tabla13[[#This Row],[POA]],".",Tabla13[[#This Row],[SRS]],".",Tabla13[[#This Row],[AREA]],".",Tabla13[[#This Row],[TIPO]])) -> ... | G56: 3.2.2.08 | H56: FOSFATASA ALCALINA BS-380 4X40/2X20ML KIT | I56: UND | J56: 16 | K56: 8,000.00 | L56: =+Tabla13[[#This Row],[Precio Unitario]]*Tabla13[[#This Row],[Cantidad de Insumos]] -> 128,000.00 | M56: 2.3.7.2.03
B57: =IF(Tabla13[[#This Row],[Código_Actividad]]="","",CONCATENATE(Tabla13[[#This Row],[POA]],".",Tabla13[[#This Row],[SRS]],".",Tabla13[[#This Row],[AREA]],".",Tabla13[[#This Row],[TIPO]])) -> ... | G57: 3.2.2.08 | H57: ALBUMINA BS-380 6X40ML KIT | I57: UND | J57: 16 | K57: 8,000.00 | L57: =+Tabla13[[#This Row],[Precio Unitario]]*Tabla13[[#This Row],[Cantidad de Insumos]] -> 128,000.00 | M57: 2.3.7.2.03
B58: =IF(Tabla13[[#This Row],[Código_Actividad]]="","",CONCATENATE(Tabla13[[#This Row],[POA]],".",Tabla13[[#This Row],[SRS]],".",Tabla13[[#This Row],[AREA]],".",Tabla13[[#This Row],[TIPO]])) -> ... | G58: 3.2.2.08 | H58: ALBUMINA MANUAL 2X250ML KIT | I58: UND | J58: 16 | K58: 8,000.00 | L58: =+Tabla13[[#This Row],[Precio Unitario]]*Tabla13[[#This Row],[Cantidad de Insumos]] -> 128,000.00 | M58: 2.3.7.2.03
B59: =IF(Tabla13[[#This Row],[Código_Actividad]]="","",CONCATENATE(Tabla13[[#This Row],[POA]],".",Tabla13[[#This Row],[SRS]],".",Tabla13[[#This Row],[AREA]],".",Tabla13[[#This Row],[TIPO]])) -> ... | G59: 3.2.2.08 | H59: TRIGLICERIDOS BS-380 6X40ML KIT | I59: UND | J59: 16 | K59: 8,000.00 | L59: =+Tabla13[[#This Row],[Precio Unitario]]*Tabla13[[#This Row],[Cantidad de Insumos]] -> 128,000.00 | M59: 2.3.7.2.03
B60: =IF(Tabla13[[#This Row],[Código_Actividad]]="","",CONCATENATE(Tabla13[[#This Row],[POA]],".",Tabla13[[#This Row],[SRS]],".",Tabla13[[#This Row],[AREA]],".",Tabla13[[#This Row],[TIPO]])) -> ... | G60: 3.2.2.08 | H60: TRIGLICERIDOS MANUAL 4X125ML KIT | I60: UND | J60: 16 | K60: 8,000.00 | L60: =+Tabla13[[#This Row],[Precio Unitario]]*Tabla13[[#This Row],[Cantidad de Insumos]] -> 128,000.00 | M60: 2.3.7.2.03
B61: =IF(Tabla13[[#This Row],[Código_Actividad]]="","",CONCATENATE(Tabla13[[#This Row],[POA]],".",Tabla13[[#This Row],[SRS]],".",Tabla13[[#This Row],[AREA]],".",Tabla13[[#This Row],[TIPO]])) -> ... | G61: 3.2.2.08 | H61: COLESTEROL BS-380 6X40ML KIT | I61: UND | J61: 16 | K61: 8,000.00 | L61: =+Tabla13[[#This Row],[Precio Unitario]]*Tabla13[[#This Row],[Cantidad de Insumos]] -> 128,000.00 | M61: 2.3.7.2.03
B62: =IF(Tabla13[[#This Row],[Código_Actividad]]="","",CONCATENATE(Tabla13[[#This Row],[POA]],".",Tabla13[[#This Row],[SRS]],".",Tabla13[[#This Row],[AREA]],".",Tabla13[[#This Row],[TIPO]])) -> ... | G62: 3.2.2.08 | H62: COLESTEROL MANUAL 10X20ML KIT | I62: UND | J62: 16 | K62: 8,000.00 | L62: =+Tabla13[[#This Row],[Precio Unitario]]*Tabla13[[#This Row],[Cantidad de Insumos]] -> 128,000.00 | M62: 2.3.7.2.03
B63: =IF(Tabla13[[#This Row],[Código_Actividad]]="","",CONCATENATE(Tabla13[[#This Row],[POA]],".",Tabla13[[#This Row],[SRS]],".",Tabla13[[#This Row],[AREA]],".",Tabla13[[#This Row],[TIPO]])) -> ... | G63: 3.2.2.08 | H63: BILIRRUBINA T+D JENDRA MANUAL 1X150ML KIT | I63: UND | J63: 68 | K63: 8,000.00 | L63: =+Tabla13[[#This Row],[Precio Unitario]]*Tabla13[[#This Row],[Cantidad de Insumos]] -> 544,000.00 | M63: 2.3.7.2.03
B64: =IF(Tabla13[[#This Row],[Código_Actividad]]="","",CONCATENATE(Tabla13[[#This Row],[POA]],".",Tabla13[[#This Row],[SRS]],".",Tabla13[[#This Row],[AREA]],".",Tabla13[[#This Row],[TIPO]])) -> ... | G64: 3.2.2.08 | H64: CALCIO BS-380 6X40ML KIT | I64: UND | J64: 16 | K64: 8,000.00 | L64: =+Tabla13[[#This Row],[Precio Unitario]]*Tabla13[[#This Row],[Cantidad de Insumos]] -> 128,000.00 | M64: 2.3.7.2.03
B65: =IF(Tabla13[[#This Row],[Código_Actividad]]="","",CONCATENATE(Tabla13[[#This Row],[POA]],".",Tabla13[[#This Row],[SRS]],".",Tabla13[[#This Row],[AREA]],".",Tabla13[[#This Row],[TIPO]])) -> ... | G65: 3.2.2.08 | H65: FERRITINA BS-380 2X30/1X15ML KIT | I65: UND | J65: 12 | K65: 8,000.00 | L65: =+Tabla13[[#This Row],[Precio Unitario]]*Tabla13[[#This Row],[Cantidad de Insumos]] -> 96,000.00 | M65: 2.3.7.2.03
B66: =IF(Tabla13[[#This Row],[Código_Actividad]]="","",CONCATENATE(Tabla13[[#This Row],[POA]],".",Tabla13[[#This Row],[SRS]],".",Tabla13[[#This Row],[AREA]],".",Tabla13[[#This Row],[TIPO]])) -> ... | G66: 3.2.2.08 | H66: PROTEINA EN LIQUIDO CEFALORRAQUIDEO MANUAL 6X30ML KIT | I66: UND | J66: 12 | K66: 6,000.00 | L66: =+Tabla13[[#This Row],[Precio Unitario]]*Tabla13[[#This Row],[Cantidad de Insumos]] -> 72,000.00 | M66: 2.3.7.2.03
B67: =IF(Tabla13[[#This Row],[Código_Actividad]]="","",CONCATENATE(Tabla13[[#This Row],[POA]],".",Tabla13[[#This Row],[SRS]],".",Tabla13[[#This Row],[AREA]],".",Tabla13[[#This Row],[TIPO]])) -> ... | G67: 3.2.2.08 | H67: LIPASA BS-380 2X40/2X8ML KIT | I67: UND | J67: 12 | K67: 6,000.00 | L67: =+Tabla13[[#This Row],[Precio Unitario]]*Tabla13[[#This Row],[Cantidad de Insumos]] -> 72,000.00 | M67: 2.3.7.2.03
B68: =IF(Tabla13[[#This Row],[Código_Actividad]]="","",CONCATENATE(Tabla13[[#This Row],[POA]],".",Tabla13[[#This Row],[SRS]],".",Tabla13[[#This Row],[AREA]],".",Tabla13[[#This Row],[TIPO]])) -> ... | G68: 3.2.2.08 | H68: PROTEINA TOTAL MANUAL 2X150ML KIT | I68: UND | J68: 12 | K68: 6,000.00 | L68: =+Tabla13[[#This Row],[Precio Unitario]]*Tabla13[[#This Row],[Cantidad de Insumos]] -> 72,000.00 | M68: 2.3.7.2.03
B69: =IF(Tabla13[[#This Row],[Código_Actividad]]="","",CONCATENATE(Tabla13[[#This Row],[POA]],".",Tabla13[[#This Row],[SRS]],".",Tabla13[[#This Row],[AREA]],".",Tabla13[[#This Row],[TIPO]])) -> ... | G69: 3.2.2.08 | H69: PROTEINA TOTAL BS-380 6X40ML KIT | I69: UND | J69: 16 | K69: 6,000.00 | L69: =+Tabla13[[#This Row],[Precio Unitario]]*Tabla13[[#This Row],[Cantidad de Insumos]] -> 96,000.00 | M69: 2.3.7.2.03
B70: =IF(Tabla13[[#This Row],[Código_Actividad]]="","",CONCATENATE(Tabla13[[#This Row],[POA]],".",Tabla13[[#This Row],[SRS]],".",Tabla13[[#This Row],[AREA]],".",Tabla13[[#This Row],[TIPO]])) -> ... | G70: 3.2.2.08 | H70: SPINTROL NORMAL 4X5ML KIT | I70: UND | J70: 12 | K70: 6,000.00 | L70: =+Tabla13[[#This Row],[Precio Unitario]]*Tabla13[[#This Row],[Cantidad de Insumos]] -> 72,000.00 | M70: 2.3.7.2.03
B71: =IF(Tabla13[[#This Row],[Código_Actividad]]="","",CONCATENATE(Tabla13[[#This Row],[POA]],".",Tabla13[[#This Row],[SRS]],".",Tabla13[[#This Row],[AREA]],".",Tabla13[[#This Row],[TIPO]])) -> ... | G71: 3.2.2.08 | H71: SPINTROL CALIBRADOR 4X5ML KIT | I71: UND | J71: 12 | K71: 6,000.00 | L71: =+Tabla13[[#This Row],[Precio Unitario]]*Tabla13[[#This Row],[Cantidad de Insumos]] -> 72,000.00 | M71: 2.3.7.2.03
B72: =IF(Tabla13[[#This Row],[Código_Actividad]]="","",CONCATENATE(Tabla13[[#This Row],[POA]],".",Tabla13[[#This Row],[SRS]],".",Tabla13[[#This Row],[AREA]],".",Tabla13[[#This Row],[TIPO]])) -> ... | G72: 3.2.2.08 | H72: SPINTROL PATOLOGICO 4X5ML KIT | I72: UND | J72: 12 | K72: 6,000.00 | L72: =+Tabla13[[#This Row],[Precio Unitario]]*Tabla13[[#This Row],[Cantidad de Insumos]] -> 72,000.00 | M72: 2.3.7.2.03
B73: =IF(Tabla13[[#This Row],[Código_Actividad]]="","",CONCATENATE(Tabla13[[#This Row],[POA]],".",Tabla13[[#This Row],[SRS]],".",Tabla13[[#This Row],[AREA]],".",Tabla13[[#This Row],[TIPO]])) -> ... | G73: 3.2.2.08 | H73: SOLUCION ALCALINA | I73: FRASCO | J73: 8 | K73: 6,000.00 | L73: =+Tabla13[[#This Row],[Precio Unitario]]*Tabla13[[#This Row],[Cantidad de Insumos]] -> 48,000.00 | M73: 2.3.7.2.03
B74: =IF(Tabla13[[#This Row],[Código_Actividad]]="","",CONCATENATE(Tabla13[[#This Row],[POA]],".",Tabla13[[#This Row],[SRS]],".",Tabla13[[#This Row],[AREA]],".",Tabla13[[#This Row],[TIPO]])) -> ... | G74: 3.2.2.08 | H74: SOLUCION ACIDA | I74: FRASCO | J74: 8 | K74: 6,000.00 | L74: =+Tabla13[[#This Row],[Precio Unitario]]*Tabla13[[#This Row],[Cantidad de Insumos]] -> 48,000.00 | M74: 2.3.7.2.03
B75: =IF(Tabla13[[#This Row],[Código_Actividad]]="","",CONCATENATE(Tabla13[[#This Row],[POA]],".",Tabla13[[#This Row],[SRS]],".",Tabla13[[#This Row],[AREA]],".",Tabla13[[#This Row],[TIPO]])) -> ... | G75: 3.2.2.08 | H75: TUBOS TAPON MORADO 1ML 13X75 100 UNDS | I75: KIT | J75: 500 | K75: 6,000.00 | L75: =+Tabla13[[#This Row],[Precio Unitario]]*Tabla13[[#This Row],[Cantidad de Insumos]] -> 3,000,000.00 | M75: 2.3.9.3.01
B76: =IF(Tabla13[[#This Row],[Código_Actividad]]="","",CONCATENATE(Tabla13[[#This Row],[POA]],".",Tabla13[[#This Row],[SRS]],".",Tabla13[[#This Row],[AREA]],".",Tabla13[[#This Row],[TIPO]])) -> ... | G76: 3.2.2.08 | H76: PLACA GRUPO SANGUINEO | I76: UND | J76: 4 | K76: 6,000.00 | L76: =+Tabla13[[#This Row],[Precio Unitario]]*Tabla13[[#This Row],[Cantidad de Insumos]] -> 24,000.00 | M76: 2.3.7.2.03
B77: =IF(Tabla13[[#This Row],[Código_Actividad]]="","",CONCATENATE(Tabla13[[#This Row],[POA]],".",Tabla13[[#This Row],[SRS]],".",Tabla13[[#This Row],[AREA]],".",Tabla13[[#This Row],[TIPO]])) -> ... | G77: 3.2.2.08 | H77: TIRILLA DE ORINA | I77: UND | J77: 252 | K77: 6,000.00 | L77: =+Tabla13[[#This Row],[Precio Unitario]]*Tabla13[[#This Row],[Cantidad de Insumos]] -> 1,512,000.00 | M77: 2.3.7.2.03
B78: =IF(Tabla13[[#This Row],[Código_Actividad]]="","",CONCATENATE(Tabla13[[#This Row],[POA]],".",Tabla13[[#This Row],[SRS]],".",Tabla13[[#This Row],[AREA]],".",Tabla13[[#This Row],[TIPO]])) -> ... | G78: 3.2.2.08 | H78: VDRL LIQUIDO 250 TEST | I78: UND | J78: 4 | K78: 6,000.00 | L78: =+Tabla13[[#This Row],[Precio Unitario]]*Tabla13[[#This Row],[Cantidad de Insumos]] -> 24,000.00 | M78: 2.3.7.2.03
B79: =IF(Tabla13[[#This Row],[Código_Actividad]]="","",CONCATENATE(Tabla13[[#This Row],[POA]],".",Tabla13[[#This Row],[SRS]],".",Tabla13[[#This Row],[AREA]],".",Tabla13[[#This Row],[TIPO]])) -> ... | G79: 3.2.2.08 | H79: HBC CORE PARA LA MAQUINA ANALIZADOR MAGLUMI 800 (PRUEBAS ESPECIALES Y VIRALES) KIT | I79: UND | J79: 60 | K79: 6,000.00 | L79: =+Tabla13[[#This Row],[Precio Unitario]]*Tabla13[[#This Row],[Cantidad de Insumos]] -> 360,000.00 | M79: 2.3.7.2.03
B80: =IF(Tabla13[[#This Row],[Código_Actividad]]="","",CONCATENATE(Tabla13[[#This Row],[POA]],".",Tabla13[[#This Row],[SRS]],".",Tabla13[[#This Row],[AREA]],".",Tabla13[[#This Row],[TIPO]])) -> ... | G80: 3.2.2.08 | H80: HTLV PARA LA MAQUINA ANALIZADOR MAGLUMI 800 (PRUEBAS ESPECIALES Y VIRALES) KIT | I80: UND | J80: 60 | K80: 6,000.00 | L80: =+Tabla13[[#This Row],[Precio Unitario]]*Tabla13[[#This Row],[Cantidad de Insumos]] -> 360,000.00 | M80: 2.3.7.2.03
B81: =IF(Tabla13[[#This Row],[Código_Actividad]]="","",CONCATENATE(Tabla13[[#This Row],[POA]],".",Tabla13[[#This Row],[SRS]],".",Tabla13[[#This Row],[AREA]],".",Tabla13[[#This Row],[TIPO]])) -> ... | G81: 3.2.2.08 | H81: HBSAG PARA LA MAQUINA ANALIZADOR MAGLUMI 800 (PRUEBAS ESPECIALES Y VIRALES) KIT | I81: UND | J81: 60 | K81: 6,000.00 | L81: =+Tabla13[[#This Row],[Precio Unitario]]*Tabla13[[#This Row],[Cantidad de Insumos]] -> 360,000.00 | M81: 2.3.7.2.03
B82: =IF(Tabla13[[#This Row],[Código_Actividad]]="","",CONCATENATE(Tabla13[[#This Row],[POA]],".",Tabla13[[#This Row],[SRS]],".",Tabla13[[#This Row],[AREA]],".",Tabla13[[#This Row],[TIPO]])) -> ... | G82: 3.2.2.08 | H82: HCV PARA LA MAQUINA ANALIZADOR MAGLUMI 800 (PRUEBAS ESPECIALES Y VIRALES) KIT | I82: UND | J82: 60 | K82: 6,000.00 | L82: =+Tabla13[[#This Row],[Precio Unitario]]*Tabla13[[#This Row],[Cantidad de Insumos]] -> 360,000.00 | M82: 2.3.7.2.03
B83: =IF(Tabla13[[#This Row],[Código_Actividad]]="","",CONCATENATE(Tabla13[[#This Row],[POA]],".",Tabla13[[#This Row],[SRS]],".",Tabla13[[#This Row],[AREA]],".",Tabla13[[#This Row],[TIPO]])) -> ... | G83: 3.2.2.08 | H83: HIV PARA LA MAQUINA ANALIZADOR MAGLUMI 800 (PRUEBAS ESPECIALES Y VIRALES) KIT | I83: UND | J83: 60 | K83: 6,000.00 | L83: =+Tabla13[[#This Row],[Precio Unitario]]*Tabla13[[#This Row],[Cantidad de Insumos]] -> 360,000.00 | M83: 2.3.7.2.03
B84: =IF(Tabla13[[#This Row],[Código_Actividad]]="","",CONCATENATE(Tabla13[[#This Row],[POA]],".",Tabla13[[#This Row],[SRS]],".",Tabla13[[#This Row],[AREA]],".",Tabla13[[#This Row],[TIPO]])) -> ... | G84: 3.2.2.08 | H84: T4 LIBRE MAGLUMI 800 KIT | I84: UND | J84: 68 | K84: 6,000.00 | L84: =+Tabla13[[#This Row],[Precio Unitario]]*Tabla13[[#This Row],[Cantidad de Insumos]] -> 408,000.00 | M84: 2.3.7.2.03
B85: =IF(Tabla13[[#This Row],[Código_Actividad]]="","",CONCATENATE(Tabla13[[#This Row],[POA]],".",Tabla13[[#This Row],[SRS]],".",Tabla13[[#This Row],[AREA]],".",Tabla13[[#This Row],[TIPO]])) -> ... | G85: 3.2.2.08 | H85: T3 MAGLUMI 800 KIT | I85: UND | J85: 100 | K85: 6,000.00 | L85: =+Tabla13[[#This Row],[Precio Unitario]]*Tabla13[[#This Row],[Cantidad de Insumos]] -> 600,000.00 | M85: 2.3.7.2.03
B86: =IF(Tabla13[[#This Row],[Código_Actividad]]="","",CONCATENATE(Tabla13[[#This Row],[POA]],".",Tabla13[[#This Row],[SRS]],".",Tabla13[[#This Row],[AREA]],".",Tabla13[[#This Row],[TIPO]])) -> ... | G86: 3.2.2.08 | H86: T4 MAGLUMI 800 KIT | I86: UND | J86: 68 | K86: 6,000.00 | L86: =+Tabla13[[#This Row],[Precio Unitario]]*Tabla13[[#This Row],[Cantidad de Insumos]] -> 408,000.00 | M86: 2.3.7.2.03
B87: =IF(Tabla13[[#This Row],[Código_Actividad]]="","",CONCATENATE(Tabla13[[#This Row],[POA]],".",Tabla13[[#This Row],[SRS]],".",Tabla13[[#This Row],[AREA]],".",Tabla13[[#This Row],[TIPO]])) -> ... | G87: 3.2.2.08 | H87: TSH MAGLUMI 800 KIT | I87: UND | J87: 100 | K87: 6,000.00 | L87: =+Tabla13[[#This Row],[Precio Unitario]]*Tabla13[[#This Row],[Cantidad de Insumos]] -> 600,000.00 | M87: 2.3.7.2.03
B88: =IF(Tabla13[[#This Row],[Código_Actividad]]="","",CONCATENATE(Tabla13[[#This Row],[POA]],".",Tabla13[[#This Row],[SRS]],".",Tabla13[[#This Row],[AREA]],".",Tabla13[[#This Row],[TIPO]])) -> ... | G88: 3.2.2.08 | H88: PROLACTINA MAGLUMI 800 KIT | I88: UND | J88: 12 | K88: 6,000.00 | L88: =+Tabla13[[#This Row],[Precio Unitario]]*Tabla13[[#This Row],[Cantidad de Insumos]] -> 72,000.00 | M88: 2.3.7.2.03
B89: =IF(Tabla13[[#This Row],[Código_Actividad]]="","",CONCATENATE(Tabla13[[#This Row],[POA]],".",Tabla13[[#This Row],[SRS]],".",Tabla13[[#This Row],[AREA]],".",Tabla13[[#This Row],[TIPO]])) -> ... | G89: 3.2.2.08 | H89: MAGLUMI TUBING CLEANING SOLUCION | I89: UND | J89: 16 | K89: 6,000.00 | L89: =+Tabla13[[#This Row],[Precio Unitario]]*Tabla13[[#This Row],[Cantidad de Insumos]] -> 96,000.00 | M89: 2.3.7.2.03
B90: =IF(Tabla13[[#This Row],[Código_Actividad]]="","",CONCATENATE(Tabla13[[#This Row],[POA]],".",Tabla13[[#This Row],[SRS]],".",Tabla13[[#This Row],[AREA]],".",Tabla13[[#This Row],[TIPO]])) -> ... | G90: 3.2.2.08 | H90: MAGLUMI REACTION MODULES KIT | I90: UND | J90: 40 | K90: 6,000.00 | L90: =+Tabla13[[#This Row],[Precio Unitario]]*Tabla13[[#This Row],[Cantidad de Insumos]] -> 240,000.00 | M90: 2.3.7.2.03
B91: =IF(Tabla13[[#This Row],[Código_Actividad]]="","",CONCATENATE(Tabla13[[#This Row],[POA]],".",Tabla13[[#This Row],[SRS]],".",Tabla13[[#This Row],[AREA]],".",Tabla13[[#This Row],[TIPO]])) -> ... | G91: 3.2.2.08 | H91: MAGLUMI LIGHT CHECK 1X5 KIT | I91: UND | J91: 16 | K91: 6,000.00 | L91: =+Tabla13[[#This Row],[Precio Unitario]]*Tabla13[[#This Row],[Cantidad de Insumos]] -> 96,000.00 | M91: 2.3.7.2.03
B92: =IF(Tabla13[[#This Row],[Código_Actividad]]="","",CONCATENATE(Tabla13[[#This Row],[POA]],".",Tabla13[[#This Row],[SRS]],".",Tabla13[[#This Row],[AREA]],".",Tabla13[[#This Row],[TIPO]])) -> ... | G92: 3.2.2.08 | H92: MAGLUMI WASH SYSTEM LIQUIDO | I92: UND | J92: 68 | K92: 6,000.00 | L92: =+Tabla13[[#This Row],[Precio Unitario]]*Tabla13[[#This Row],[Cantidad de Insumos]] -> 408,000.00 | M92: 2.3.7.2.03
B93: =IF(Tabla13[[#This Row],[Código_Actividad]]="","",CONCATENATE(Tabla13[[#This Row],[POA]],".",Tabla13[[#This Row],[SRS]],".",Tabla13[[#This Row],[AREA]],".",Tabla13[[#This Row],[TIPO]])) -> ... | G93: 3.2.2.08 | H93: MAGLUMI AFP CLIA KIT | I93: UND | J93: 12 | K93: 6,000.00 | L93: =+Tabla13[[#This Row],[Precio Unitario]]*Tabla13[[#This Row],[Cantidad de Insumos]] -> 72,000.00 | M93: 2.3.7.2.03
B94: =IF(Tabla13[[#This Row],[Código_Actividad]]="","",CONCATENATE(Tabla13[[#This Row],[POA]],".",Tabla13[[#This Row],[SRS]],".",Tabla13[[#This Row],[AREA]],".",Tabla13[[#This Row],[TIPO]])) -> ... | G94: 3.2.2.08 | H94: MAGLUMI CEA CLIA 100 TEST KIT | I94: UND | J94: 12 | K94: 6,000.00 | L94: =+Tabla13[[#This Row],[Precio Unitario]]*Tabla13[[#This Row],[Cantidad de Insumos]] -> 72,000.00 | M94: 2.3.7.2.03
B95: =IF(Tabla13[[#This Row],[Código_Actividad]]="","",CONCATENATE(Tabla13[[#This Row],[POA]],".",Tabla13[[#This Row],[SRS]],".",Tabla13[[#This Row],[AREA]],".",Tabla13[[#This Row],[TIPO]])) -> ... | G95: 3.2.2.08 | H95: MAGLUMI CA 15-3 KIT | I95: UND | J95: 12 | K95: 6,000.00 | L95: =+Tabla13[[#This Row],[Precio Unitario]]*Tabla13[[#This Row],[Cantidad de Insumos]] -> 72,000.00 | M95: 2.3.7.2.03
B96: =IF(Tabla13[[#This Row],[Código_Actividad]]="","",CONCATENATE(Tabla13[[#This Row],[POA]],".",Tabla13[[#This Row],[SRS]],".",Tabla13[[#This Row],[AREA]],".",Tabla13[[#This Row],[TIPO]])) -> ... | G96: 3.2.2.08 | H96: MAGLUMI CA-125 KIT | I96: UND | J96: 12 | K96: 6,000.00 | L96: =+Tabla13[[#This Row],[Precio Unitario]]*Tabla13[[#This Row],[Cantidad de Insumos]] -> 72,000.00 | M96: 2.3.7.2.03
B97: =IF(Tabla13[[#This Row],[Código_Actividad]]="","",CONCATENATE(Tabla13[[#This Row],[POA]],".",Tabla13[[#This Row],[SRS]],".",Tabla13[[#This Row],[AREA]],".",Tabla13[[#This Row],[TIPO]])) -> ... | G97: 3.2.2.08 | H97: MAGLUMI CA 19-9 CLIA KIT | I97: UND | J97: 12 | K97: 6,000.00 | L97: =+Tabla13[[#This Row],[Precio Unitario]]*Tabla13[[#This Row],[Cantidad de Insumos]] -> 72,000.00 | M97: 2.3.7.2.03
B98: =IF(Tabla13[[#This Row],[Código_Actividad]]="","",CONCATENATE(Tabla13[[#This Row],[POA]],".",Tabla13[[#This Row],[SRS]],".",Tabla13[[#This Row],[AREA]],".",Tabla13[[#This Row],[TIPO]])) -> ... | G98: 3.2.2.08 | H98: MAGLUMI ESTRADIOL CLIA KIT | I98: UND | J98: 12 | K98: 6,000.00 | L98: =+Tabla13[[#This Row],[Precio Unitario]]*Tabla13[[#This Row],[Cantidad de Insumos]] -> 72,000.00 | M98: 2.3.7.2.03
B99: =IF(Tabla13[[#This Row],[Código_Actividad]]="","",CONCATENATE(Tabla13[[#This Row],[POA]],".",Tabla13[[#This Row],[SRS]],".",Tabla13[[#This Row],[AREA]],".",Tabla13[[#This Row],[TIPO]])) -> ... | G99: 3.2.2.08 | H99: MAGLUMI STARTER KIT 1-2 | I99: UND | J99: 52 | K99: 6,000.00 | L99: =+Tabla13[[#This Row],[Precio Unitario]]*Tabla13[[#This Row],[Cantidad de Insumos]] -> 312,000.00 | M99: 2.3.7.2.03
B100: =IF(Tabla13[[#This Row],[Código_Actividad]]="","",CONCATENATE(Tabla13[[#This Row],[POA]],".",Tabla13[[#This Row],[SRS]],".",Tabla13[[#This Row],[AREA]],".",Tabla13[[#This Row],[TIPO]])) -> ... | G100: 3.2.2.08 | H100: CELLPACK CAJA 20L | I100: UND | J100: 60 | K100: 6,000.00 | L100: =+Tabla13[[#This Row],[Precio Unitario]]*Tabla13[[#This Row],[Cantidad de Insumos]] -> 360,000.00 | M100: 2.3.7.2.03
B101: =IF(Tabla13[[#This Row],[Código_Actividad]]="","",CONCATENATE(Tabla13[[#This Row],[POA]],".",Tabla13[[#This Row],[SRS]],".",Tabla13[[#This Row],[AREA]],".",Tabla13[[#This Row],[TIPO]])) -> ... | G101: 3.2.2.08 | H101: STROMATOLYZER | I101: FRASCO | J101: 68 | K101: 6,000.00 | L101: =+Tabla13[[#This Row],[Precio Unitario]]*Tabla13[[#This Row],[Cantidad de Insumos]] -> 408,000.00 | M101: 2.3.7.2.03
B102: =IF(Tabla13[[#This Row],[Código_Actividad]]="","",CONCATENATE(Tabla13[[#This Row],[POA]],".",Tabla13[[#This Row],[SRS]],".",Tabla13[[#This Row],[AREA]],".",Tabla13[[#This Row],[TIPO]])) -> ... | G102: 3.2.2.08 | H102: CUBETAS CON MAGNETO KIT | I102: CAJA | J102: 60 | K102: 6,000.00 | L102: =+Tabla13[[#This Row],[Precio Unitario]]*Tabla13[[#This Row],[Cantidad de Insumos]] -> 360,000.00 | M102: 2.3.7.2.03
B103: =IF(Tabla13[[#This Row],[Código_Actividad]]="","",CONCATENATE(Tabla13[[#This Row],[POA]],".",Tabla13[[#This Row],[SRS]],".",Tabla13[[#This Row],[AREA]],".",Tabla13[[#This Row],[TIPO]])) -> ... | G103: 3.2.2.08 | H103: PT 4ML | I103: FRASCOS | J103: 608 | K103: 6,000.00 | L103: =+Tabla13[[#This Row],[Precio Unitario]]*Tabla13[[#This Row],[Cantidad de Insumos]] -> 3,648,000.00 | M103: 2.3.7.2.03
B104: =IF(Tabla13[[#This Row],[Código_Actividad]]="","",CONCATENATE(Tabla13[[#This Row],[POA]],".",Tabla13[[#This Row],[SRS]],".",Tabla13[[#This Row],[AREA]],".",Tabla13[[#This Row],[TIPO]])) -> ... | G104: 3.2.2.08 | H104: APTT 2ML | I104: FRASCOS | J104: 608 | K104: 6,000.00 | L104: =+Tabla13[[#This Row],[Precio Unitario]]*Tabla13[[#This Row],[Cantidad de Insumos]] -> 3,648,000.00 | M104: 2.3.7.2.03
B105: =IF(Tabla13[[#This Row],[Código_Actividad]]="","",CONCATENATE(Tabla13[[#This Row],[POA]],".",Tabla13[[#This Row],[SRS]],".",Tabla13[[#This Row],[AREA]],".",Tabla13[[#This Row],[TIPO]])) -> ... | G105: 3.2.2.08 | H105: CONTROL APTT 1 ML | I105: FRASCOS | J105: 192 | K105: 6,000.00 | L105: =+Tabla13[[#This Row],[Precio Unitario]]*Tabla13[[#This Row],[Cantidad de Insumos]] -> 1,152,000.00 | M105: 2.3.7.2.03
B106: =IF(Tabla13[[#This Row],[Código_Actividad]]="","",CONCATENATE(Tabla13[[#This Row],[POA]],".",Tabla13[[#This Row],[SRS]],".",Tabla13[[#This Row],[AREA]],".",Tabla13[[#This Row],[TIPO]])) -> ... | G106: 3.2.2.08 | H106: CALCIO TP,TPT 15ML | I106: FRASCOS | J106: 120 | K106: 6,000.00 | L106: =+Tabla13[[#This Row],[Precio Unitario]]*Tabla13[[#This Row],[Cantidad de Insumos]] -> 720,000.00 | M106: 2.3.7.2.03
B107: =IF(Tabla13[[#This Row],[Código_Actividad]]="","",CONCATENATE(Tabla13[[#This Row],[POA]],".",Tabla13[[#This Row],[SRS]],".",Tabla13[[#This Row],[AREA]],".",Tabla13[[#This Row],[TIPO]])) -> ... | G107: 3.2.2.08 | H107: FIBRINOGENO | I107: KIT | J107: 16 | K107: 6,000.00 | L107: =+Tabla13[[#This Row],[Precio Unitario]]*Tabla13[[#This Row],[Cantidad de Insumos]] -> 96,000.00 | M107: 2.3.4.1.01
B108: =IF(Tabla13[[#This Row],[Código_Actividad]]="","",CONCATENATE(Tabla13[[#This Row],[POA]],".",Tabla13[[#This Row],[SRS]],".",Tabla13[[#This Row],[AREA]],".",Tabla13[[#This Row],[TIPO]])) -> ... | G108: 3.2.2.08 | H108: HIV ELISA | I108: KIT | J108: 68 | K108: 6,000.00 | L108: =+Tabla13[[#This Row],[Precio Unitario]]*Tabla13[[#This Row],[Cantidad de Insumos]] -> 408,000.00 | M108: 2.3.7.2.03
B109: =IF(Tabla13[[#This Row],[Código_Actividad]]="","",CONCATENATE(Tabla13[[#This Row],[POA]],".",Tabla13[[#This Row],[SRS]],".",Tabla13[[#This Row],[AREA]],".",Tabla13[[#This Row],[TIPO]])) -> ... | G109: 3.2.2.08 | H109: HCV ELISA | I109: KIT | J109: 68 | K109: 6,000.00 | L109: =+Tabla13[[#This Row],[Precio Unitario]]*Tabla13[[#This Row],[Cantidad de Insumos]] -> 408,000.00 | M109: 2.3.7.2.03
B110: =IF(Tabla13[[#This Row],[Código_Actividad]]="","",CONCATENATE(Tabla13[[#This Row],[POA]],".",Tabla13[[#This Row],[SRS]],".",Tabla13[[#This Row],[AREA]],".",Tabla13[[#This Row],[TIPO]])) -> ... | G110: 3.2.2.08 | H110: HBSAG ELISA | I110: KIT | J110: 68 | K110: 6,000.00 | L110: =+Tabla13[[#This Row],[Precio Unitario]]*Tabla13[[#This Row],[Cantidad de Insumos]] -> 408,000.00 | M110: 2.3.7.2.03
B111: =IF(Tabla13[[#This Row],[Código_Actividad]]="","",CONCATENATE(Tabla13[[#This Row],[POA]],".",Tabla13[[#This Row],[SRS]],".",Tabla13[[#This Row],[AREA]],".",Tabla13[[#This Row],[TIPO]])) -> ... | G111: 3.2.2.08 | H111: HTLV ELISA | I111: KIT | J111: 68 | K111: 6,000.00 | L111: =+Tabla13[[#This Row],[Precio Unitario]]*Tabla13[[#This Row],[Cantidad de Insumos]] -> 408,000.00 | M111: 2.3.7.2.03
B112: =IF(Tabla13[[#This Row],[Código_Actividad]]="","",CONCATENATE(Tabla13[[#This Row],[POA]],".",Tabla13[[#This Row],[SRS]],".",Tabla13[[#This Row],[AREA]],".",Tabla13[[#This Row],[TIPO]])) -> ... | G112: 3.2.2.08 | H112: HBC CORE ELISA | I112: KIT | J112: 68 | K112: 6,000.00 | L112: =+Tabla13[[#This Row],[Precio Unitario]]*Tabla13[[#This Row],[Cantidad de Insumos]] -> 408,000.00 | M112: 2.3.7.2.03
B113: =IF(Tabla13[[#This Row],[Código_Actividad]]="","",CONCATENATE(Tabla13[[#This Row],[POA]],".",Tabla13[[#This Row],[SRS]],".",Tabla13[[#This Row],[AREA]],".",Tabla13[[#This Row],[TIPO]])) -> ... | G113: 3.2.2.08 | H113: BOLSA DE SANGRE 450ML | I113: UND | J113: 2,400 | K113: 6,000.00 | L113: =+Tabla13[[#This Row],[Precio Unitario]]*Tabla13[[#This Row],[Cantidad de Insumos]] -> 14,400,000.00 | M113: 2.3.9.3.01
B114: =IF(Tabla13[[#This Row],[Código_Actividad]]="","",CONCATENATE(Tabla13[[#This Row],[POA]],".",Tabla13[[#This Row],[SRS]],".",Tabla13[[#This Row],[AREA]],".",Tabla13[[#This Row],[TIPO]])) -> ... | G114: 3.2.2.08 | H114: TRANSFER 150 ML | I114: UND | J114: 1,200 | K114: 6,000.00 | L114: =+Tabla13[[#This Row],[Precio Unitario]]*Tabla13[[#This Row],[Cantidad de Insumos]] -> 7,200,000.00 | M114: 2.6.3.2.01
B115: =IF(Tabla13[[#This Row],[Código_Actividad]]="","",CONCATENATE(Tabla13[[#This Row],[POA]],".",Tabla13[[#This Row],[SRS]],".",Tabla13[[#This Row],[AREA]],".",Tabla13[[#This Row],[TIPO]])) -> ... | G115: 3.2.2.08 | H115: TRANSFER 300 ML | I115: UND | J115: 1,000 | K115: 6,000.00 | L115: =+Tabla13[[#This Row],[Precio Unitario]]*Tabla13[[#This Row],[Cantidad de Insumos]] -> 6,000,000.00 | M115: 2.6.3.2.01
B116: =IF(Tabla13[[#This Row],[Código_Actividad]]="","",CONCATENATE(Tabla13[[#This Row],[POA]],".",Tabla13[[#This Row],[SRS]],".",Tabla13[[#This Row],[AREA]],".",Tabla13[[#This Row],[TIPO]])) -> ... | G116: 3.2.2.08 | H116: DILUENT 20 LITROS | I116: CAJA | J116: 148 | K116: 6,000.00 | L116: =+Tabla13[[#This Row],[Precio Unitario]]*Tabla13[[#This Row],[Cantidad de Insumos]] -> 888,000.00 | M116: 2.3.7.2.03
B117: =IF(Tabla13[[#This Row],[Código_Actividad]]="","",CONCATENATE(Tabla13[[#This Row],[POA]],".",Tabla13[[#This Row],[SRS]],".",Tabla13[[#This Row],[AREA]],".",Tabla13[[#This Row],[TIPO]])) -> ... | G117: 3.2.2.08 | H117: LISADOR SLD 500ML | I117: FRASCOS | J117: 60 | K117: 6,000.00 | L117: =+Tabla13[[#This Row],[Precio Unitario]]*Tabla13[[#This Row],[Cantidad de Insumos]] -> 360,000.00 | M117: 2.3.7.2.03
B118: =IF(Tabla13[[#This Row],[Código_Actividad]]="","",CONCATENATE(Tabla13[[#This Row],[POA]],".",Tabla13[[#This Row],[SRS]],".",Tabla13[[#This Row],[AREA]],".",Tabla13[[#This Row],[TIPO]])) -> ... | G118: 3.2.2.08 | H118: LISADOR SLH 500ML | I118: FRASCOS | J118: 60 | K118: 6,000.00 | L118: =+Tabla13[[#This Row],[Precio Unitario]]*Tabla13[[#This Row],[Cantidad de Insumos]] -> 360,000.00 | M118: 2.3.7.2.03
B119: =IF(Tabla13[[#This Row],[Código_Actividad]]="","",CONCATENATE(Tabla13[[#This Row],[POA]],".",Tabla13[[#This Row],[SRS]],".",Tabla13[[#This Row],[AREA]],".",Tabla13[[#This Row],[TIPO]])) -> ... | G119: 3.2.2.08 | H119: CLEANER 1LT | I119: FRASCOS | J119: 28 | K119: 6,000.00 | L119: =+Tabla13[[#This Row],[Precio Unitario]]*Tabla13[[#This Row],[Cantidad de Insumos]] -> 168,000.00 | M119: 2.3.7.2.01
B120: =IF(Tabla13[[#This Row],[Código_Actividad]]="","",CONCATENATE(Tabla13[[#This Row],[POA]],".",Tabla13[[#This Row],[SRS]],".",Tabla13[[#This Row],[AREA]],".",Tabla13[[#This Row],[TIPO]])) -> ... | G120: 3.2.2.08 | H120: CLEANER CONCENTRADOR 100ML | I120: FRASCOS | J120: 2 | K120: 6,000.00 | L120: =+Tabla13[[#This Row],[Precio Unitario]]*Tabla13[[#This Row],[Cantidad de Insumos]] -> 12,000.00 | M120: 2.3.7.2.03
B121: =IF(Tabla13[[#This Row],[Código_Actividad]]="","",CONCATENATE(Tabla13[[#This Row],[POA]],".",Tabla13[[#This Row],[SRS]],".",Tabla13[[#This Row],[AREA]],".",Tabla13[[#This Row],[TIPO]])) -> ... | G121: 3.2.2.08 | H121: APLICADOR MADERA | I121: KIT | J121: 52 | K121: 6,000.00 | L121: =+Tabla13[[#This Row],[Precio Unitario]]*Tabla13[[#This Row],[Cantidad de Insumos]] -> 312,000.00 | M121: 2.3.9.3.01
B122: =IF(Tabla13[[#This Row],[Código_Actividad]]="","",CONCATENATE(Tabla13[[#This Row],[POA]],".",Tabla13[[#This Row],[SRS]],".",Tabla13[[#This Row],[AREA]],".",Tabla13[[#This Row],[TIPO]])) -> ... | G122: 3.2.2.08 | H122: REACTIVO 1 BIO-WRIGHT GALON | I122: UND | J122: 2 | K122: 6,000.00 | L122: =+Tabla13[[#This Row],[Precio Unitario]]*Tabla13[[#This Row],[Cantidad de Insumos]] -> 12,000.00 | M122: 2.3.7.2.03
B123: =IF(Tabla13[[#This Row],[Código_Actividad]]="","",CONCATENATE(Tabla13[[#This Row],[POA]],".",Tabla13[[#This Row],[SRS]],".",Tabla13[[#This Row],[AREA]],".",Tabla13[[#This Row],[TIPO]])) -> ... | G123: 3.2.2.08 | H123: REACTIVO 2 BIO-WRIGHT GALON | I123: UND | J123: 2 | K123: 6,000.00 | L123: =+Tabla13[[#This Row],[Precio Unitario]]*Tabla13[[#This Row],[Cantidad de Insumos]] -> 12,000.00 | M123: 2.3.7.2.03
B124: =IF(Tabla13[[#This Row],[Código_Actividad]]="","",CONCATENATE(Tabla13[[#This Row],[POA]],".",Tabla13[[#This Row],[SRS]],".",Tabla13[[#This Row],[AREA]],".",Tabla13[[#This Row],[TIPO]])) -> ... | G124: 3.2.2.08 | H124: REACTIVO 3 BIO-WRIGHT GALON | I124: UND | J124: 2 | K124: 6,000.00 | L124: =+Tabla13[[#This Row],[Precio Unitario]]*Tabla13[[#This Row],[Cantidad de Insumos]] -> 12,000.00 | M124: 2.3.7.2.03
B125: =IF(Tabla13[[#This Row],[Código_Actividad]]="","",CONCATENATE(Tabla13[[#This Row],[POA]],".",Tabla13[[#This Row],[SRS]],".",Tabla13[[#This Row],[AREA]],".",Tabla13[[#This Row],[TIPO]])) -> ... | G125: 3.2.2.08 | H125: PCT FIA PARA EQUIPÓ F200 KIT | I125: UND | J125: 200 | K125: 6,000.00 | L125: =+Tabla13[[#This Row],[Precio Unitario]]*Tabla13[[#This Row],[Cantidad de Insumos]] -> 1,200,000.00 | M125: 2.3.7.2.03
B126: =IF(Tabla13[[#This Row],[Código_Actividad]]="","",CONCATENATE(Tabla13[[#This Row],[POA]],".",Tabla13[[#This Row],[SRS]],".",Tabla13[[#This Row],[AREA]],".",Tabla13[[#This Row],[TIPO]])) -> ... | G126: 3.2.2.08 | H126: HBA1C FIA PARA EQUIPO F200 KIT | I126: UND | J126: 252 | K126: 6,000.00 | L126: =+Tabla13[[#This Row],[Precio Unitario]]*Tabla13[[#This Row],[Cantidad de Insumos]] -> 1,512,000.00 | M126: 2.3.7.2.03
B127: =IF(Tabla13[[#This Row],[Código_Actividad]]="","",CONCATENATE(Tabla13[[#This Row],[POA]],".",Tabla13[[#This Row],[SRS]],".",Tabla13[[#This Row],[AREA]],".",Tabla13[[#This Row],[TIPO]])) -> ... | G127: 3.2.2.08 | H127: DIMERO-D FIA PARA EQUIPO F200 KIT | I127: UND | J127: 68 | K127: 6,000.00 | L127: =+Tabla13[[#This Row],[Precio Unitario]]*Tabla13[[#This Row],[Cantidad de Insumos]] -> 408,000.00 | M127: 2.3.7.2.03
B128: =IF(Tabla13[[#This Row],[Código_Actividad]]="","",CONCATENATE(Tabla13[[#This Row],[POA]],".",Tabla13[[#This Row],[SRS]],".",Tabla13[[#This Row],[AREA]],".",Tabla13[[#This Row],[TIPO]])) -> ... | G128: 3.2.2.08 | H128: TROMPONINA FIA PARA EQUIPO F200 KIT | I128: UND | J128: 20 | K128: 6,000.00 | L128: =+Tabla13[[#This Row],[Precio Unitario]]*Tabla13[[#This Row],[Cantidad de Insumos]] -> 120,000.00 | M128: 2.3.7.2.03
B129: =IF(Tabla13[[#This Row],[Código_Actividad]]="","",CONCATENATE(Tabla13[[#This Row],[POA]],".",Tabla13[[#This Row],[SRS]],".",Tabla13[[#This Row],[AREA]],".",Tabla13[[#This Row],[TIPO]])) -> ... | G129: 3.2.2.08 | H129: B-HCG FIA PARA EQUIPO F200 KIT | I129: UND | J129: 68 | K129: 6,000.00 | L129: =+Tabla13[[#This Row],[Precio Unitario]]*Tabla13[[#This Row],[Cantidad de Insumos]] -> 408,000.00 | M129: 2.3.7.2.03
B130: =IF(Tabla13[[#This Row],[Código_Actividad]]="","",CONCATENATE(Tabla13[[#This Row],[POA]],".",Tabla13[[#This Row],[SRS]],".",Tabla13[[#This Row],[AREA]],".",Tabla13[[#This Row],[TIPO]])) -> ... | G130: 3.2.2.08 | H130: PAPEL TERMICO | I130: UND | J130: 180 | K130: 6,000.00 | L130: =+Tabla13[[#This Row],[Precio Unitario]]*Tabla13[[#This Row],[Cantidad de Insumos]] -> 1,080,000.00 | M130: 2.3.3.2.01
B131: =IF(Tabla13[[#This Row],[Código_Actividad]]="","",CONCATENATE(Tabla13[[#This Row],[POA]],".",Tabla13[[#This Row],[SRS]],".",Tabla13[[#This Row],[AREA]],".",Tabla13[[#This Row],[TIPO]])) -> ... | G131: 3.2.2.08 | H131: VDRL CARBON | I131: UND | J131: 180 | K131: 6,000.00 | L131: =+Tabla13[[#This Row],[Precio Unitario]]*Tabla13[[#This Row],[Cantidad de Insumos]] -> 1,080,000.00 | M131: 2.3.7.2.01
B132: =IF(Tabla13[[#This Row],[Código_Actividad]]="","",CONCATENATE(Tabla13[[#This Row],[POA]],".",Tabla13[[#This Row],[SRS]],".",Tabla13[[#This Row],[AREA]],".",Tabla13[[#This Row],[TIPO]])) -> ... | G132: 3.2.2.08 | H132: TUBOS CRYSTAL 13X100 KIT | I132: UND | J132: 68 | K132: 350.00 | L132: =+Tabla13[[#This Row],[Precio Unitario]]*Tabla13[[#This Row],[Cantidad de Insumos]] -> 23,800.00 | M132: 2.3.9.3.01
B133: =IF(Tabla13[[#This Row],[Código_Actividad]]="","",CONCATENATE(Tabla13[[#This Row],[POA]],".",Tabla13[[#This Row],[SRS]],".",Tabla13[[#This Row],[AREA]],".",Tabla13[[#This Row],[TIPO]])) -> ... | G133: 3.2.2.08 | H133: TUBOS CRYSTAL 12X75 KIT | I133: UND | J133: 68 | K133: 352.00 | L133: =+Tabla13[[#This Row],[Precio Unitario]]*Tabla13[[#This Row],[Cantidad de Insumos]] -> 23,936.00 | M133: 2.3.9.3.01
B134: =IF(Tabla13[[#This Row],[Código_Actividad]]="","",CONCATENATE(Tabla13[[#This Row],[POA]],".",Tabla13[[#This Row],[SRS]],".",Tabla13[[#This Row],[AREA]],".",Tabla13[[#This Row],[TIPO]])) -> ... | G134: 3.2.2.08 | H134: FALCEMIA KIT | I134: UND | J134: 120 | K134: 18,000.00 | L134: =+Tabla13[[#This Row],[Precio Unitario]]*Tabla13[[#This Row],[Cantidad de Insumos]] -> 2,160,000.00 | M134: 2.3.7.2.03
B135: =IF(Tabla13[[#This Row],[Código_Actividad]]="","",CONCATENATE(Tabla13[[#This Row],[POA]],".",Tabla13[[#This Row],[SRS]],".",Tabla13[[#This Row],[AREA]],".",Tabla13[[#This Row],[TIPO]])) -> ... | G135: 3.2.2.08 | H135: CHIKUNGUNYA IGG/IGM 25P KIT | I135: UND | J135: 16 | K135: 18,000.00 | L135: =+Tabla13[[#This Row],[Precio Unitario]]*Tabla13[[#This Row],[Cantidad de Insumos]] -> 288,000.00 | M135: 2.3.7.2.03
B136: =IF(Tabla13[[#This Row],[Código_Actividad]]="","",CONCATENATE(Tabla13[[#This Row],[POA]],".",Tabla13[[#This Row],[SRS]],".",Tabla13[[#This Row],[AREA]],".",Tabla13[[#This Row],[TIPO]])) -> ... | G136: 3.2.2.08 | H136: LEPTOSPIRA IGG/IGM 25P KIT | I136: UND | J136: 16 | K136: 18,000.00 | L136: =+Tabla13[[#This Row],[Precio Unitario]]*Tabla13[[#This Row],[Cantidad de Insumos]] -> 288,000.00 | M136: 2.3.7.2.03
B137: =IF(Tabla13[[#This Row],[Código_Actividad]]="","",CONCATENATE(Tabla13[[#This Row],[POA]],".",Tabla13[[#This Row],[SRS]],".",Tabla13[[#This Row],[AREA]],".",Tabla13[[#This Row],[TIPO]])) -> ... | G137: 3.2.2.08 | H137: DENGUE IGG/IGM 25P KIT | I137: UND | J137: 48 | K137: 18,000.00 | L137: =+Tabla13[[#This Row],[Precio Unitario]]*Tabla13[[#This Row],[Cantidad de Insumos]] -> 864,000.00 | M137: 2.3.7.2.03
B138: =IF(Tabla13[[#This Row],[Código_Actividad]]="","",CONCATENATE(Tabla13[[#This Row],[POA]],".",Tabla13[[#This Row],[SRS]],".",Tabla13[[#This Row],[AREA]],".",Tabla13[[#This Row],[TIPO]])) -> ... | G138: 3.2.2.08 | H138: ASO KIT | I138: UND | J138: 16 | K138: 18,000.00 | L138: =+Tabla13[[#This Row],[Precio Unitario]]*Tabla13[[#This Row],[Cantidad de Insumos]] -> 288,000.00 | M138: 2.3.7.2.03
B139: =IF(Tabla13[[#This Row],[Código_Actividad]]="","",CONCATENATE(Tabla13[[#This Row],[POA]],".",Tabla13[[#This Row],[SRS]],".",Tabla13[[#This Row],[AREA]],".",Tabla13[[#This Row],[TIPO]])) -> ... | G139: 3.2.2.08 | H139: FACTOR REUMATOIDE KIT | I139: UND | J139: 16 | K139: 18,000.00 | L139: =+Tabla13[[#This Row],[Precio Unitario]]*Tabla13[[#This Row],[Cantidad de Insumos]] -> 288,000.00 | M139: 2.3.7.2.03
B140: =IF(Tabla13[[#This Row],[Código_Actividad]]="","",CONCATENATE(Tabla13[[#This Row],[POA]],".",Tabla13[[#This Row],[SRS]],".",Tabla13[[#This Row],[AREA]],".",Tabla13[[#This Row],[TIPO]])) -> ... | G140: 3.2.2.08 | H140: ACEITE DE INMERSION | I140: FRASCO | J140: 2 | K140: 18,000.00 | L140: =+Tabla13[[#This Row],[Precio Unitario]]*Tabla13[[#This Row],[Cantidad de Insumos]] -> 36,000.00 | M140: 2.3.9.3.01
B141: =IF(Tabla13[[#This Row],[Código_Actividad]]="","",CONCATENATE(Tabla13[[#This Row],[POA]],".",Tabla13[[#This Row],[SRS]],".",Tabla13[[#This Row],[AREA]],".",Tabla13[[#This Row],[TIPO]])) -> ... | G141: 3.2.2.08 | H141: TIRILLA DE GLUCOMETRO | I141: KIT | J141: 36 | K141: 18,000.00 | L141: =+Tabla13[[#This Row],[Precio Unitario]]*Tabla13[[#This Row],[Cantidad de Insumos]] -> 648,000.00 | M141: 2.3.9.3.01
B142: =IF(Tabla13[[#This Row],[Código_Actividad]]="","",CONCATENATE(Tabla13[[#This Row],[POA]],".",Tabla13[[#This Row],[SRS]],".",Tabla13[[#This Row],[AREA]],".",Tabla13[[#This Row],[TIPO]])) -> ... | G142: 3.2.2.08 | H142: ELECTROLITOS EXIAS 150P | I142: KIT | J142: 52 | K142: 18,000.00 | L142: =+Tabla13[[#This Row],[Precio Unitario]]*Tabla13[[#This Row],[Cantidad de Insumos]] -> 936,000.00 | M142: 2.3.7.2.01
B143: =IF(Tabla13[[#This Row],[Código_Actividad]]="","",CONCATENATE(Tabla13[[#This Row],[POA]],".",Tabla13[[#This Row],[SRS]],".",Tabla13[[#This Row],[AREA]],".",Tabla13[[#This Row],[TIPO]])) -> ... | G143: 3.2.2.08 | H143: HCV RAPIDA | I143: KIT | J143: 372 | K143: 18,000.00 | L143: =+Tabla13[[#This Row],[Precio Unitario]]*Tabla13[[#This Row],[Cantidad de Insumos]] -> 6,696,000.00 | M143: 2.3.7.203
B144: =IF(Tabla13[[#This Row],[Código_Actividad]]="","",CONCATENATE(Tabla13[[#This Row],[POA]],".",Tabla13[[#This Row],[SRS]],".",Tabla13[[#This Row],[AREA]],".",Tabla13[[#This Row],[TIPO]])) -> ... | G144: 3.2.2.08 | H144: HBSAG RAPIDA | I144: KIT | J144: 372 | K144: 18,000.00 | L144: =+Tabla13[[#This Row],[Precio Unitario]]*Tabla13[[#This Row],[Cantidad de Insumos]] -> 6,696,000.00 | M144: 2.3.7.2.03
B145: =IF(Tabla13[[#This Row],[Código_Actividad]]="","",CONCATENATE(Tabla13[[#This Row],[POA]],".",Tabla13[[#This Row],[SRS]],".",Tabla13[[#This Row],[AREA]],".",Tabla13[[#This Row],[TIPO]])) -> ... | G145: 3.2.2.08 | H145: HCG | I145: KIT | J145: 192 | K145: 18,000.00 | L145: =+Tabla13[[#This Row],[Precio Unitario]]*Tabla13[[#This Row],[Cantidad de Insumos]] -> 3,456,000.00 | M145: 2.3.7.2.03
B146: =IF(Tabla13[[#This Row],[Código_Actividad]]="","",CONCATENATE(Tabla13[[#This Row],[POA]],".",Tabla13[[#This Row],[SRS]],".",Tabla13[[#This Row],[AREA]],".",Tabla13[[#This Row],[TIPO]])) -> ... | G146: 3.2.2.08 | H146: PCR | I146: KIT | J146: 180 | K146: 18,000.00 | L146: =+Tabla13[[#This Row],[Precio Unitario]]*Tabla13[[#This Row],[Cantidad de Insumos]] -> 3,240,000.00 | M146: 2.3.7.203
B147: =IF(Tabla13[[#This Row],[Código_Actividad]]="","",CONCATENATE(Tabla13[[#This Row],[POA]],".",Tabla13[[#This Row],[SRS]],".",Tabla13[[#This Row],[AREA]],".",Tabla13[[#This Row],[TIPO]])) -> ... | G147: 3.2.2.08 | H147: TUBOS TAPON ROJO 7ML | I147: KIT | J147: 600 | K147: 18,000.00 | L147: =+Tabla13[[#This Row],[Precio Unitario]]*Tabla13[[#This Row],[Cantidad de Insumos]] -> 10,800,000.00 | M147: 2.3.9.3.01
B148: =IF(Tabla13[[#This Row],[Código_Actividad]]="","",CONCATENATE(Tabla13[[#This Row],[POA]],".",Tabla13[[#This Row],[SRS]],".",Tabla13[[#This Row],[AREA]],".",Tabla13[[#This Row],[TIPO]])) -> ... | G148: 3.2.2.08 | H148: ANTI-A 10ML | I148: UND | J148: 240 | K148: 18,000.00 | L148: =+Tabla13[[#This Row],[Precio Unitario]]*Tabla13[[#This Row],[Cantidad de Insumos]] -> 4,320,000.00 | M148: 2.3.7.2.03
B149: =IF(Tabla13[[#This Row],[Código_Actividad]]="","",CONCATENATE(Tabla13[[#This Row],[POA]],".",Tabla13[[#This Row],[SRS]],".",Tabla13[[#This Row],[AREA]],".",Tabla13[[#This Row],[TIPO]])) -> ... | G149: 3.2.2.08 | H149: ANTI-B 10ML | I149: UND | J149: 300 | K149: 18,000.00 | L149: =+Tabla13[[#This Row],[Precio Unitario]]*Tabla13[[#This Row],[Cantidad de Insumos]] -> 5,400,000.00 | M149: 2.3.7.2.03
B150: =IF(Tabla13[[#This Row],[Código_Actividad]]="","",CONCATENATE(Tabla13[[#This Row],[POA]],".",Tabla13[[#This Row],[SRS]],".",Tabla13[[#This Row],[AREA]],".",Tabla13[[#This Row],[TIPO]])) -> ... | G150: 3.2.2.08 | H150: ANTI-D 10ML | I150: UND | J150: 300 | K150: 18,000.00 | L150: =+Tabla13[[#This Row],[Precio Unitario]]*Tabla13[[#This Row],[Cantidad de Insumos]] -> 5,400,000.00 | M150: 2.3.7.2.03
B151: =IF(Tabla13[[#This Row],[Código_Actividad]]="","",CONCATENATE(Tabla13[[#This Row],[POA]],".",Tabla13[[#This Row],[SRS]],".",Tabla13[[#This Row],[AREA]],".",Tabla13[[#This Row],[TIPO]])) -> ... | G151: 3.2.2.08 | H151: ANTI- A,B 10ML | I151: UND | J151: 240 | K151: 18,000.00 | L151: =+Tabla13[[#This Row],[Precio Unitario]]*Tabla13[[#This Row],[Cantidad de Insumos]] -> 4,320,000.00 | M151: 2.3.7.2.03
B152: =IF(Tabla13[[#This Row],[Código_Actividad]]="","",CONCATENATE(Tabla13[[#This Row],[POA]],".",Tabla13[[#This Row],[SRS]],".",Tabla13[[#This Row],[AREA]],".",Tabla13[[#This Row],[TIPO]])) -> ... | G152: 3.2.2.08 | H152: BOVINA ALBUMINA AL 22% | I152: UND | J152: 240 | K152: 18,000.00 | L152: =+Tabla13[[#This Row],[Precio Unitario]]*Tabla13[[#This Row],[Cantidad de Insumos]] -> 4,320,000.00 | M152: 2.3.7.2.03
B153: =IF(Tabla13[[#This Row],[Código_Actividad]]="","",CONCATENATE(Tabla13[[#This Row],[POA]],".",Tabla13[[#This Row],[SRS]],".",Tabla13[[#This Row],[AREA]],".",Tabla13[[#This Row],[TIPO]])) -> ... | G153: 3.2.2.08 | H153: ANTIGLOBULINA HUMANA 10ML | I153: UND | J153: 240 | K153: 18,000.00 | L153: =+Tabla13[[#This Row],[Precio Unitario]]*Tabla13[[#This Row],[Cantidad de Insumos]] -> 4,320,000.00 | M153: 2.3.7.2.03
B154: =IF(Tabla13[[#This Row],[Código_Actividad]]="","",CONCATENATE(Tabla13[[#This Row],[POA]],".",Tabla13[[#This Row],[SRS]],".",Tabla13[[#This Row],[AREA]],".",Tabla13[[#This Row],[TIPO]])) -> ... | G154: 3.2.2.08 | H154: TUBOS TAPON MORADOS 3ML | I154: KIT | J154: 600 | K154: 26,000.00 | L154: =+Tabla13[[#This Row],[Precio Unitario]]*Tabla13[[#This Row],[Cantidad de Insumos]] -> 15,600,000.00 | M154: 2.3.9.3.01
B155: =IF(Tabla13[[#This Row],[Código_Actividad]]="","",CONCATENATE(Tabla13[[#This Row],[POA]],".",Tabla13[[#This Row],[SRS]],".",Tabla13[[#This Row],[AREA]],".",Tabla13[[#This Row],[TIPO]])) -> ... | G155: 3.2.2.08 | H155: TUBOS TAPON MORADOS 2ML | I155: KIT | J155: 600 | K155: 26,000.00 | L155: =+Tabla13[[#This Row],[Precio Unitario]]*Tabla13[[#This Row],[Cantidad de Insumos]] -> 15,600,000.00 | M155: 2.3.9.3.01
B156: =IF(Tabla13[[#This Row],[Código_Actividad]]="","",CONCATENATE(Tabla13[[#This Row],[POA]],".",Tabla13[[#This Row],[SRS]],".",Tabla13[[#This Row],[AREA]],".",Tabla13[[#This Row],[TIPO]])) -> ... | G156: 3.2.2.08 | H156: TUBOS TAPON AMARILLO 6ML | I156: KIT | J156: 600 | K156: 26,000.00 | L156: =+Tabla13[[#This Row],[Precio Unitario]]*Tabla13[[#This Row],[Cantidad de Insumos]] -> 15,600,000.00 | M156: 2.3.9.3.01
B157: =IF(Tabla13[[#This Row],[Código_Actividad]]="","",CONCATENATE(Tabla13[[#This Row],[POA]],".",Tabla13[[#This Row],[SRS]],".",Tabla13[[#This Row],[AREA]],".",Tabla13[[#This Row],[TIPO]])) -> ... | G157: 3.2.2.08 | H157: TUBOS TAPON AZUL 2ML | I157: KIT | J157: 252 | K157: 26,000.00 | L157: =+Tabla13[[#This Row],[Precio Unitario]]*Tabla13[[#This Row],[Cantidad de Insumos]] -> 6,552,000.00 | M157: 2.3.9.3.01
B158: =IF(Tabla13[[#This Row],[Código_Actividad]]="","",CONCATENATE(Tabla13[[#This Row],[POA]],".",Tabla13[[#This Row],[SRS]],".",Tabla13[[#This Row],[AREA]],".",Tabla13[[#This Row],[TIPO]])) -> ... | G158: 3.2.2.08 | H158: UROCULTIVO | I158: UND | J158: 18,000 | K158: 21,000.00 | L158: =+Tabla13[[#This Row],[Precio Unitario]]*Tabla13[[#This Row],[Cantidad de Insumos]] -> 378,000,000.00 | M158: 2.3.9.3.01
B159: =IF(Tabla13[[#This Row],[Código_Actividad]]="","",CONCATENATE(Tabla13[[#This Row],[POA]],".",Tabla13[[#This Row],[SRS]],".",Tabla13[[#This Row],[AREA]],".",Tabla13[[#This Row],[TIPO]])) -> ... | G159: 3.2.2.08 | H159: RETICULOSITOS | I159: UND | J159: 200 | K159: 21,000.00 | L159: =+Tabla13[[#This Row],[Precio Unitario]]*Tabla13[[#This Row],[Cantidad de Insumos]] -> 4,200,000.00 | M159: 2.3.9.3.01
B160: =IF(Tabla13[[#This Row],[Código_Actividad]]="","",CONCATENATE(Tabla13[[#This Row],[POA]],".",Tabla13[[#This Row],[SRS]],".",Tabla13[[#This Row],[AREA]],".",Tabla13[[#This Row],[TIPO]])) -> ... | G160: 3.2.2.08 | H160: TIPS AMARILLO | I160: PAQ | J160: 180 | K160: 21,000.00 | L160: =+Tabla13[[#This Row],[Precio Unitario]]*Tabla13[[#This Row],[Cantidad de Insumos]] -> 3,780,000.00 | M160: 2.3.9.3.01
B161: =IF(Tabla13[[#This Row],[Código_Actividad]]="","",CONCATENATE(Tabla13[[#This Row],[POA]],".",Tabla13[[#This Row],[SRS]],".",Tabla13[[#This Row],[AREA]],".",Tabla13[[#This Row],[TIPO]])) -> ... | G161: 3.2.2.08 | H161: TIPS AZULES | I161: PAQ | J161: 16 | K161: 21,000.00 | L161: =+Tabla13[[#This Row],[Precio Unitario]]*Tabla13[[#This Row],[Cantidad de Insumos]] -> 336,000.00 | M161: 2.3.9.3.01
B162: =IF(Tabla13[[#This Row],[Código_Actividad]]="","",CONCATENATE(Tabla13[[#This Row],[POA]],".",Tabla13[[#This Row],[SRS]],".",Tabla13[[#This Row],[AREA]],".",Tabla13[[#This Row],[TIPO]])) -> ... | G162: 3.2.2.08 | H162: PLACA ESMERILADA | I162: KIT | J162: 180 | K162: 21,000.00 | L162: =+Tabla13[[#This Row],[Precio Unitario]]*Tabla13[[#This Row],[Cantidad de Insumos]] -> 3,780,000.00 | M162: 2.3.9.3.01
B163: =IF(Tabla13[[#This Row],[Código_Actividad]]="","",CONCATENATE(Tabla13[[#This Row],[POA]],".",Tabla13[[#This Row],[SRS]],".",Tabla13[[#This Row],[AREA]],".",Tabla13[[#This Row],[TIPO]])) -> ... | G163: 3.2.2.08 | H163: HISOPOS ESTERILES | I163: KIT | J163: 16 | K163: 21,000.00 | L163: =+Tabla13[[#This Row],[Precio Unitario]]*Tabla13[[#This Row],[Cantidad de Insumos]] -> 336,000.00 | M163: 2.3.9.3.01
B164: =IF(Tabla13[[#This Row],[Código_Actividad]]="","",CONCATENATE(Tabla13[[#This Row],[POA]],".",Tabla13[[#This Row],[SRS]],".",Tabla13[[#This Row],[AREA]],".",Tabla13[[#This Row],[TIPO]])) -> ... | G164: 3.2.2.08 | H164: CUBRE OBJETO 22X22 | I164: UND | J164: 60 | K164: 21,000.00 | L164: =+Tabla13[[#This Row],[Precio Unitario]]*Tabla13[[#This Row],[Cantidad de Insumos]] -> 1,260,000.00 | M164: 2.3.9.3.01
B165: =IF(Tabla13[[#This Row],[Código_Actividad]]="","",CONCATENATE(Tabla13[[#This Row],[POA]],".",Tabla13[[#This Row],[SRS]],".",Tabla13[[#This Row],[AREA]],".",Tabla13[[#This Row],[TIPO]])) -> ... | G165: 3.2.2.08 | H165: GOTEROS PLASTICOS 3ML | I165: KIT | J165: 36 | K165: 21,000.00 | L165: =+Tabla13[[#This Row],[Precio Unitario]]*Tabla13[[#This Row],[Cantidad de Insumos]] -> 756,000.00 | M165: 2.3.9.3.01
B166: =IF(Tabla13[[#This Row],[Código_Actividad]]="","",CONCATENATE(Tabla13[[#This Row],[POA]],".",Tabla13[[#This Row],[SRS]],".",Tabla13[[#This Row],[AREA]],".",Tabla13[[#This Row],[TIPO]])) -> ... | G166: 3.2.2.08 | H166: HEMOCULTIVOD PEDIATRICOS 9ML | I166: FRASCO | J166: 6,000 | K166: 21,000.00 | L166: =+Tabla13[[#This Row],[Precio Unitario]]*Tabla13[[#This Row],[Cantidad de Insumos]] -> 126,000,000.00 | M166: 2.3.7.2.03
B167: =IF(Tabla13[[#This Row],[Código_Actividad]]="","",CONCATENATE(Tabla13[[#This Row],[POA]],".",Tabla13[[#This Row],[SRS]],".",Tabla13[[#This Row],[AREA]],".",Tabla13[[#This Row],[TIPO]])) -> ... | G167: 3.2.2.08 | H167: SANGRE OCULTA | I167: KIT | J167: 6 | K167: 21,000.00 | L167: =+Tabla13[[#This Row],[Precio Unitario]]*Tabla13[[#This Row],[Cantidad de Insumos]] -> 126,000.00 | M167: 2.3.7.2.03
B168: =IF(Tabla13[[#This Row],[Código_Actividad]]="","",CONCATENATE(Tabla13[[#This Row],[POA]],".",Tabla13[[#This Row],[SRS]],".",Tabla13[[#This Row],[AREA]],".",Tabla13[[#This Row],[TIPO]])) -> ... | G168: 3.2.2.08 | H168: GLUCOLA | I168: FRASCO | J168: 180 | K168: 21,000.00 | L168: =+Tabla13[[#This Row],[Precio Unitario]]*Tabla13[[#This Row],[Cantidad de Insumos]] -> 3,780,000.00 | M168: 2.3.7.2.03
B169: =IF(Tabla13[[#This Row],[Código_Actividad]]="","",CONCATENATE(Tabla13[[#This Row],[POA]],".",Tabla13[[#This Row],[SRS]],".",Tabla13[[#This Row],[AREA]],".",Tabla13[[#This Row],[TIPO]])) -> ... | G169: 3.2.2.08 | H169: SOLUCION DE LIMPIEZA S8375 DE 175ML, PARA ABL-835 | I169: FRASCOS | J169: 6 | K169: 21,000.00 | L169: =+Tabla13[[#This Row],[Precio Unitario]]*Tabla13[[#This Row],[Cantidad de Insumos]] -> 126,000.00 | M169: 2.3.7.2.03
B170: =IF(Tabla13[[#This Row],[Código_Actividad]]="","",CONCATENATE(Tabla13[[#This Row],[POA]],".",Tabla13[[#This Row],[SRS]],".",Tabla13[[#This Row],[AREA]],".",Tabla13[[#This Row],[TIPO]])) -> ... | G170: 3.2.2.08 | H170: SOLUCION DE CALIBRACION 1,S1820 DE 200ML, PARA ABL-835 | I170: FRASCOS | J170: 16 | K170: 21,000.00 | L170: =+Tabla13[[#This Row],[Precio Unitario]]*Tabla13[[#This Row],[Cantidad de Insumos]] -> 336,000.00 | M170: 2.3.7.2.03
B171: =IF(Tabla13[[#This Row],[Código_Actividad]]="","",CONCATENATE(Tabla13[[#This Row],[POA]],".",Tabla13[[#This Row],[SRS]],".",Tabla13[[#This Row],[AREA]],".",Tabla13[[#This Row],[TIPO]])) -> ... | G171: 3.2.2.08 | H171: SOLUCION DE CALIBRACION 2,S1830 DE 200ML, PARA ABL-835 | I171: FRASCOS | J171: 20 | K171: 21,000.00 | L171: =+Tabla13[[#This Row],[Precio Unitario]]*Tabla13[[#This Row],[Cantidad de Insumos]] -> 420,000.00 | M171: 2.3.7.2.03
B172: =IF(Tabla13[[#This Row],[Código_Actividad]]="","",CONCATENATE(Tabla13[[#This Row],[POA]],".",Tabla13[[#This Row],[SRS]],".",Tabla13[[#This Row],[AREA]],".",Tabla13[[#This Row],[TIPO]])) -> ... | G172: 3.2.2.08 | H172: SOLUCION DE ENJUAGUE S4980 DE 600ML, PARA ABL-835 FLEX | I172: FRASCOS | J172: 60 | K172: 21,000.00 | L172: =+Tabla13[[#This Row],[Precio Unitario]]*Tabla13[[#This Row],[Cantidad de Insumos]] -> 1,260,000.00 | M172: 2.3.7.2.03
B173: =IF(Tabla13[[#This Row],[Código_Actividad]]="","",CONCATENATE(Tabla13[[#This Row],[POA]],".",Tabla13[[#This Row],[SRS]],".",Tabla13[[#This Row],[AREA]],".",Tabla13[[#This Row],[TIPO]])) -> ... | G173: 3.2.2.08 | H173: SOLUCION HIPOCLORITO S5362 PARA ELIMINACION DE PROTEINAS Y DESCONTAMINACION, 100ML, PARA ABL-835 FLEX | I173: FRASCOS | J173: 2 | K173: 21,000.00 | L173: =+Tabla13[[#This Row],[Precio Unitario]]*Tabla13[[#This Row],[Cantidad de Insumos]] -> 42,000.00 | M173: 2.3.7.2.03
B174: =IF(Tabla13[[#This Row],[Código_Actividad]]="","",CONCATENATE(Tabla13[[#This Row],[POA]],".",Tabla13[[#This Row],[SRS]],".",Tabla13[[#This Row],[AREA]],".",Tabla13[[#This Row],[TIPO]])) -> ... | G174: 3.2.2.08 | H174: SOLUCION DE CALIBRACION S7770 THB, PARA ABL-835 FLEX | I174: UND | J174: 1 | K174: 21,000.00 | L174: =+Tabla13[[#This Row],[Precio Unitario]]*Tabla13[[#This Row],[Cantidad de Insumos]] -> 21,000.00 | M174: 2.3.7.2.03
B175: =IF(Tabla13[[#This Row],[Código_Actividad]]="","",CONCATENATE(Tabla13[[#This Row],[POA]],".",Tabla13[[#This Row],[SRS]],".",Tabla13[[#This Row],[AREA]],".",Tabla13[[#This Row],[TIPO]])) -> ... | G175: 3.2.2.08 | H175: MEMBRANA PARA ELECTRODO DE REF D711 PARA ABL-835 | I175: UND | J175: 12 | K175: 21,000.00 | L175: =+Tabla13[[#This Row],[Precio Unitario]]*Tabla13[[#This Row],[Cantidad de Insumos]] -> 252,000.00 | M175: 2.6.3.4.01
B176: =IF(Tabla13[[#This Row],[Código_Actividad]]="","",CONCATENATE(Tabla13[[#This Row],[POA]],".",Tabla13[[#This Row],[SRS]],".",Tabla13[[#This Row],[AREA]],".",Tabla13[[#This Row],[TIPO]])) -> ... | G176: 3.2.2.08 | H176: MEMBRANA PARA ELECTRODO DE PO2 D799 PARA ABL-835 | I176: UND | J176: 8 | K176: 21,000.00 | L176: =+Tabla13[[#This Row],[Precio Unitario]]*Tabla13[[#This Row],[Cantidad de Insumos]] -> 168,000.00 | M176: 2.6.3.4.01
B177: =IF(Tabla13[[#This Row],[Código_Actividad]]="","",CONCATENATE(Tabla13[[#This Row],[POA]],".",Tabla13[[#This Row],[SRS]],".",Tabla13[[#This Row],[AREA]],".",Tabla13[[#This Row],[TIPO]])) -> ... | G177: 3.2.2.08 | H177: MEMBRANA PARA ELECTRODO DE PCO2 D788 PARA ABL-835 | I177: UND | J177: 8 | K177: 21,000.00 | L177: =+Tabla13[[#This Row],[Precio Unitario]]*Tabla13[[#This Row],[Cantidad de Insumos]] -> 168,000.00 | M177: 2.6.3.4.01
B178: =IF(Tabla13[[#This Row],[Código_Actividad]]="","",CONCATENATE(Tabla13[[#This Row],[POA]],".",Tabla13[[#This Row],[SRS]],".",Tabla13[[#This Row],[AREA]],".",Tabla13[[#This Row],[TIPO]])) -> ... | G178: 3.2.2.08 | H178: MEMBRANA DE ELECTRODO DE NA D755 PARA ABL-835 | I178: UND | J178: 8 | K178: 21,000.00 | L178: =+Tabla13[[#This Row],[Precio Unitario]]*Tabla13[[#This Row],[Cantidad de Insumos]] -> 168,000.00 | M178: 2.6.3.4.01
B179: =IF(Tabla13[[#This Row],[Código_Actividad]]="","",CONCATENATE(Tabla13[[#This Row],[POA]],".",Tabla13[[#This Row],[SRS]],".",Tabla13[[#This Row],[AREA]],".",Tabla13[[#This Row],[TIPO]])) -> ... | G179: 3.2.2.08 | H179: MEMBRANA PARA ELECTRODO DE K D722 PARA ABL-835 | I179: UND | J179: 8 | K179: 21,000.00 | L179: =+Tabla13[[#This Row],[Precio Unitario]]*Tabla13[[#This Row],[Cantidad de Insumos]] -> 168,000.00 | M179: 2.6.3.4.01
B180: =IF(Tabla13[[#This Row],[Código_Actividad]]="","",CONCATENATE(Tabla13[[#This Row],[POA]],".",Tabla13[[#This Row],[SRS]],".",Tabla13[[#This Row],[AREA]],".",Tabla13[[#This Row],[TIPO]])) -> ... | G180: 3.2.2.08 | H180: MEMBRANA PARA ELECTRODO DE CA D733 PARA ABL-835 | I180: UND | J180: 8 | K180: 21,000.00 | L180: =+Tabla13[[#This Row],[Precio Unitario]]*Tabla13[[#This Row],[Cantidad de Insumos]] -> 168,000.00 | M180: 2.6.3.4.01
B181: =IF(Tabla13[[#This Row],[Código_Actividad]]="","",CONCATENATE(Tabla13[[#This Row],[POA]],".",Tabla13[[#This Row],[SRS]],".",Tabla13[[#This Row],[AREA]],".",Tabla13[[#This Row],[TIPO]])) -> ... | G181: 3.2.2.08 | H181: MEMBRANA PARA ELECTRODO DE CL D744 PARA ABL-835 | I181: UND | J181: 8 | K181: 21,000.00 | L181: =+Tabla13[[#This Row],[Precio Unitario]]*Tabla13[[#This Row],[Cantidad de Insumos]] -> 168,000.00 | M181: 2.6.3.4.01
B182: =IF(Tabla13[[#This Row],[Código_Actividad]]="","",CONCATENATE(Tabla13[[#This Row],[POA]],".",Tabla13[[#This Row],[SRS]],".",Tabla13[[#This Row],[AREA]],".",Tabla13[[#This Row],[TIPO]])) -> ... | G182: 3.2.2.08 | H182: MEMBRANA PARA ELECTRODO DE GLU D7066 PARA ABL-835 | I182: UND | J182: 12 | K182: 21,000.00 | L182: =+Tabla13[[#This Row],[Precio Unitario]]*Tabla13[[#This Row],[Cantidad de Insumos]] -> 252,000.00 | M182: 2.6.3.4.01
B183: =IF(Tabla13[[#This Row],[Código_Actividad]]="","",CONCATENATE(Tabla13[[#This Row],[POA]],".",Tabla13[[#This Row],[SRS]],".",Tabla13[[#This Row],[AREA]],".",Tabla13[[#This Row],[TIPO]])) -> ... | G183: 3.2.2.08 | H183: MEMBRANA PARA ELECTRODO DE LAC D7077 PARA ABL-835 | I183: UND | J183: 12 | K183: 21,000.00 | L183: =+Tabla13[[#This Row],[Precio Unitario]]*Tabla13[[#This Row],[Cantidad de Insumos]] -> 252,000.00 | M183: 2.6.3.4.01
B184: =IF(Tabla13[[#This Row],[Código_Actividad]]="","",CONCATENATE(Tabla13[[#This Row],[POA]],".",Tabla13[[#This Row],[SRS]],".",Tabla13[[#This Row],[AREA]],".",Tabla13[[#This Row],[TIPO]])) -> ... | G184: 3.2.2.08 | H184: BOTELLA DE CALIBRACION GAS 1, 10BAR, PARA ABL-835 | I184: BOTELLA X 10 BAR | J184: 16 | K184: 21,000.00 | L184: =+Tabla13[[#This Row],[Precio Unitario]]*Tabla13[[#This Row],[Cantidad de Insumos]] -> 336,000.00 | M184: 2.3.7.2.03
B185: =IF(Tabla13[[#This Row],[Código_Actividad]]="","",CONCATENATE(Tabla13[[#This Row],[POA]],".",Tabla13[[#This Row],[SRS]],".",Tabla13[[#This Row],[AREA]],".",Tabla13[[#This Row],[TIPO]])) -> ... | G185: 3.2.2.08 | H185: BOTELLA DE CALIBRACION GAS 2, 10BAR, PARA ABL-835 | I185: BOTELLA X 10 BAR | J185: 16 | K185: 21,000.00 | L185: =+Tabla13[[#This Row],[Precio Unitario]]*Tabla13[[#This Row],[Cantidad de Insumos]] -> 336,000.00 | M185: 2.3.7.2.03
B186: =IF(Tabla13[[#This Row],[Código_Actividad]]="","",CONCATENATE(Tabla13[[#This Row],[POA]],".",Tabla13[[#This Row],[SRS]],".",Tabla13[[#This Row],[AREA]],".",Tabla13[[#This Row],[TIPO]])) -> ... | G186: 3.2.2.08 | H186: PAPEL TERMICO DE 112MM, ANCHO 58MM, DIAMETRO PARA ABL.835 | I186: CAJA X 8 ROLLOS | J186: 4 | K186: 21,000.00 | L186: =+Tabla13[[#This Row],[Precio Unitario]]*Tabla13[[#This Row],[Cantidad de Insumos]] -> 84,000.00 | M186: 2.3.3.2.01
B187: =IF(Tabla13[[#This Row],[Código_Actividad]]="","",CONCATENATE(Tabla13[[#This Row],[POA]],".",Tabla13[[#This Row],[SRS]],".",Tabla13[[#This Row],[AREA]],".",Tabla13[[#This Row],[TIPO]])) -> ... | G187: 3.2.2.08 | H187: JUNTA DE ENTRADA, NUEVO DISEÑO PARA ABL-835 PIEZA | I187: UND | J187: 1 | K187: 21,000.00 | L187: =+Tabla13[[#This Row],[Precio Unitario]]*Tabla13[[#This Row],[Cantidad de Insumos]] -> 21,000.00 | M187: 2.3.9.3.01
B188: =IF(Tabla13[[#This Row],[Código_Actividad]]="","",CONCATENATE(Tabla13[[#This Row],[POA]],".",Tabla13[[#This Row],[SRS]],".",Tabla13[[#This Row],[AREA]],".",Tabla13[[#This Row],[TIPO]])) -> ... | G188: 3.2.2.08 | H188: FILTRO DEL VENTILADOR, PARA ANALIZADOR ABL-835 PIEZA | I188: UND | J188: 1 | K188: 21,000.00 | L188: =+Tabla13[[#This Row],[Precio Unitario]]*Tabla13[[#This Row],[Cantidad de Insumos]] -> 21,000.00 | M188: 2.3.9.3.01
B189: =IF(Tabla13[[#This Row],[Código_Actividad]]="","",CONCATENATE(Tabla13[[#This Row],[POA]],".",Tabla13[[#This Row],[SRS]],".",Tabla13[[#This Row],[AREA]],".",Tabla13[[#This Row],[TIPO]])) -> ... | G189: 3.2.2.08 | H189: TUBO DE LA BOMBA PARA LOS MODULOS DE ELECTRODOS , PARA ABL-835 PIEZA | I189: UND | J189: 1 | K189: 26,000.00 | L189: =+Tabla13[[#This Row],[Precio Unitario]]*Tabla13[[#This Row],[Cantidad de Insumos]] -> 26,000.00 | M189: 2.3.9.3.01
B190: =IF(Tabla13[[#This Row],[Código_Actividad]]="","",CONCATENATE(Tabla13[[#This Row],[POA]],".",Tabla13[[#This Row],[SRS]],".",Tabla13[[#This Row],[AREA]],".",Tabla13[[#This Row],[TIPO]])) -> ... | G190: 3.2.2.08 | H190: TUBO DE LA BOMBA DE LA BOMBA DE SOLUCION, PARA ABL-835 PIEZA | I190: UND | J190: 1 | K190: 26,000.00 | L190: =+Tabla13[[#This Row],[Precio Unitario]]*Tabla13[[#This Row],[Cantidad de Insumos]] -> 26,000.00 | M190: 2.3.9.3.01
B191: =IF(Tabla13[[#This Row],[Código_Actividad]]="","",CONCATENATE(Tabla13[[#This Row],[POA]],".",Tabla13[[#This Row],[SRS]],".",Tabla13[[#This Row],[AREA]],".",Tabla13[[#This Row],[TIPO]])) -> ... | G191: 3.2.2.08 | H191: TUBO DE LA BOMBA PARA LA BOMBA DE RESIDUOS, PARA ABL-835 PIEZA | I191: UND | J191: 1 | K191: 26,000.00 | L191: =+Tabla13[[#This Row],[Precio Unitario]]*Tabla13[[#This Row],[Cantidad de Insumos]] -> 26,000.00 | M191: 2.3.9.3.01
B192: =IF(Tabla13[[#This Row],[Código_Actividad]]="","",CONCATENATE(Tabla13[[#This Row],[POA]],".",Tabla13[[#This Row],[SRS]],".",Tabla13[[#This Row],[AREA]],".",Tabla13[[#This Row],[TIPO]])) -> ... | G192: 3.2.2.08 | H192: D513 CONTENEDOR DE RESIDUOS DESECHABLES 600ML, PARA ABL-835 | I192: FRASCOS | J192: 68 | K192: 15,000.00 | L192: =+Tabla13[[#This Row],[Precio Unitario]]*Tabla13[[#This Row],[Cantidad de Insumos]] -> 1,020,000.00 | M192: 2.3.9.3.01
B193: =IF(Tabla13[[#This Row],[Código_Actividad]]="","",CONCATENATE(Tabla13[[#This Row],[POA]],".",Tabla13[[#This Row],[SRS]],".",Tabla13[[#This Row],[AREA]],".",Tabla13[[#This Row],[TIPO]])) -> ... | G193: 3.2.2.08 | H193: COLERA | I193: KIT | J193: 1 | K193: 15,000.00 | L193: =+Tabla13[[#This Row],[Precio Unitario]]*Tabla13[[#This Row],[Cantidad de Insumos]] -> 15,000.00 | M193: 2.3.7.2.03
B194: =IF(Tabla13[[#This Row],[Código_Actividad]]="","",CONCATENATE(Tabla13[[#This Row],[POA]],".",Tabla13[[#This Row],[SRS]],".",Tabla13[[#This Row],[AREA]],".",Tabla13[[#This Row],[TIPO]])) -> ... | G194: 3.2.2.08 | H194: COVID-19 ANTIGENO | I194: KIT | J194: 24 | K194: 15,000.00 | L194: =+Tabla13[[#This Row],[Precio Unitario]]*Tabla13[[#This Row],[Cantidad de Insumos]] -> 360,000.00 | M194: 2.3.7.2.03
B195: =IF(Tabla13[[#This Row],[Código_Actividad]]="","",CONCATENATE(Tabla13[[#This Row],[POA]],".",Tabla13[[#This Row],[SRS]],".",Tabla13[[#This Row],[AREA]],".",Tabla13[[#This Row],[TIPO]])) -> ... | G195: 3.2.2.08 | H195: MALARIA | I195: KIT | J195: 24 | K195: 15,000.00 | L195: =+Tabla13[[#This Row],[Precio Unitario]]*Tabla13[[#This Row],[Cantidad de Insumos]] -> 360,000.00 | M195: 2.3.7.2.03
B196: =IF(Tabla13[[#This Row],[Código_Actividad]]="","",CONCATENATE(Tabla13[[#This Row],[POA]],".",Tabla13[[#This Row],[SRS]],".",Tabla13[[#This Row],[AREA]],".",Tabla13[[#This Row],[TIPO]])) -> ... | G196: 3.2.2.08 | H196: SIFILIS RAPIDA | I196: KIT | J196: 360 | K196: 15,000.00 | L196: =+Tabla13[[#This Row],[Precio Unitario]]*Tabla13[[#This Row],[Cantidad de Insumos]] -> 5,400,000.00 | M196: 2.3.7.2.03
B197: =IF(Tabla13[[#This Row],[Código_Actividad]]="","",CONCATENATE(Tabla13[[#This Row],[POA]],".",Tabla13[[#This Row],[SRS]],".",Tabla13[[#This Row],[AREA]],".",Tabla13[[#This Row],[TIPO]])) -> ... | G197: 3.2.2.08 | H197: UNIGOLD | I197: KIT | J197: 48 | K197: 15,000.00 | L197: =+Tabla13[[#This Row],[Precio Unitario]]*Tabla13[[#This Row],[Cantidad de Insumos]] -> 720,000.00 | M197: 2.3.7.2.03
B198: =IF(Tabla13[[#This Row],[Código_Actividad]]="","",CONCATENATE(Tabla13[[#This Row],[POA]],".",Tabla13[[#This Row],[SRS]],".",Tabla13[[#This Row],[AREA]],".",Tabla13[[#This Row],[TIPO]])) -> ... | G198: 3.2.2.08 | H198: HIV RAPIDA | I198: KIT | J198: 288 | K198: 15,000.00 | L198: =+Tabla13[[#This Row],[Precio Unitario]]*Tabla13[[#This Row],[Cantidad de Insumos]] -> 4,320,000.00 | M198: 2.3.7.2.03
B199: =IF(Tabla13[[#This Row],[Código_Actividad]]="","",CONCATENATE(Tabla13[[#This Row],[POA]],".",Tabla13[[#This Row],[SRS]],".",Tabla13[[#This Row],[AREA]],".",Tabla13[[#This Row],[TIPO]])) -> ... | G199: 3.2.2.08 | H199: AGUJA VACUTAINER | I199: KIT | J199: 120 | K199: 15,000.00 | L199: =+Tabla13[[#This Row],[Precio Unitario]]*Tabla13[[#This Row],[Cantidad de Insumos]] -> 1,800,000.00 | M199: 2.3.9.3.01
B200: =IF(Tabla13[[#This Row],[Código_Actividad]]="","",CONCATENATE(Tabla13[[#This Row],[POA]],".",Tabla13[[#This Row],[SRS]],".",Tabla13[[#This Row],[AREA]],".",Tabla13[[#This Row],[TIPO]])) -> ... | G200: 3.2.2.08 | H200: MANGA AL VACIO | I200: PAQ | J200: 24 | K200: 15,000.00 | L200: =+Tabla13[[#This Row],[Precio Unitario]]*Tabla13[[#This Row],[Cantidad de Insumos]] -> 360,000.00 | M200: 2.3.9.3.01
... 76 more rows

Sheet PPNE3
A1: =+PPNE1!B1 -> Plan Operativo Anual
A2: =+PPNE1!B2 -> Servicio Nacional de Salud
A3: =+PPNE1!B3 -> Dirección de Planificación y Desarrollo
A4: Estimación de Ingresos
A5: =+PPNE1!C5 -> 2026
A6: Servicio Regional de Salud: | E6: =+PPNE1!B6 -> Cibao Norte
A7: CEAS: | E7: =+PPNE1!B7 -> 0
A8: Grupo | B8: Subgrupo | C8: Cuenta | D8: Auxiliar | E8: Descripción Ingresos por Cuenta | F8: Valor RD$ | G8: %
A9: 3 | E9: Donaciones | F9: =+F10 -> 0.00 | G9: =G10 -> 0.00
B10: 31 | E10: Donaciones Corrientes | F10: =SUM(F11:F11) -> 0.00 | G10: =G11 -> 0.00
C11: 312 | E11: Donaciones corrientes de organismos internacionales | F11: 0.00 | G11: =IFERROR(F11/$F$31*100,"0.00") -> 0.00
A12: 4 | E12: Transferencias | F12: =+F13+F19 -> 1,650,000,000.00 | G12: =G13+G19 -> 94.66
B13: 41 | E13: Transferencias Corrientes | F13: =SUM(F15:F18) -> 1,650,000,000.00 | G13: =SUM(G15:G18) -> 94.66
C14: 413 | E14: Transferencias Corrientes Recibidas de Instituciones Públicas Descentralizas y Autonomas No Financieras | F14: =SUM(F16:F19) -> 1,650,000,000.00 | G14: =SUM(G16:G19) -> 94.66
C15: 413 | D15: ´01 | E15: Aportes SNS Nomina | F15: 0.00 | G15: =IFERROR(F15/$F$31*100,"0.00") -> 0.00
C16: 413 | D16: ´02 | E16: Anticipos Financieros | F16: 0.00 | G16: =IFERROR(F16/$F$31*100,"0.00") -> 0.00
C17: 413 | D17: ´03 | E17: Aportes SNS Medicamentos | F17: 0.00 | G17: =IFERROR(F17/$F$31*100,"0.00") -> 0.00
C18: 414 | E18: Transferencias Corrientes Recibidas de Instituciones Públicas de la Seguridad Social | F18: 1,650,000,000.00 | G18: =IFERROR(F18/$F$31*100,"0.00") -> 94.66
B19: 42 | E19: Transferencia de Capital | F19: =SUM(F21:F22) -> 0.00 | G19: =G21+G22 -> 0.00
C20: 423 | E20: Tranferencia de Capital Recibidas de Instituciones Públicas Descentralizas y Autonomas No Financieras | F20: =+F21+F22 -> 0.00 | G20: =+G21+G22 -> 0.00
C21: 423 | D21: ´01 | E21: Aportes SNS Equipamiento | F21: 0.00 | G21: =IFERROR(F21/$F$31*100,"0.00") -> 0.00
C22: 423 | D22: ´02 | E22: Aportes para otros gastos de inversión del SNS | F22: 0.00 | G22: =IFERROR(F22/$F$31*100,"0.00") -> 0.00
A23: 5 | E23: Ingresos por Contraprestación | F23: =+F24 -> 93,121,626.87 | G23: =G24 -> 5.34
B24: 51 | E24: Venta de Bienes y Servicios | F24: =F25 -> 93,121,626.87 | G24: =G25 -> 5.34
C25: 512 | E25: Venta de Servicios del Estado | F25: =F26 -> 93,121,626.87 | G25: =G26 -> 5.34
C26: 512 | D26: ´99 | E26: Otras ventas de servicios | F26: =+F27+F28+F29+F30 -> 93,121,626.87 | G26: =+G27+G28+G29+G30 -> 5.34
C27: 513 | E27: Venta de Servicios a SENASA por afiliados regimen subsidiado | F27: 44,698,380.90 | G27: =IFERROR(F27/$F$31*100,"0.00") -> 2.56
C28: 512 | E28: Venta de Servicios a SENASA por afiliados regimen contributivo | F28: 20,486,757.91 | G28: =IFERROR(F28/$F$31*100,"0.00") -> 1.18
C29: 512 | E29: Venta de Servicios a otras ARS por atencion a Regimen contributivo | F29: 27,936,488.06 | G29: =IFERROR(F29/$F$31*100,"0.00") -> 1.60
C30: 512 | E30: Venta de Servicios a ARL | F30: 0.00 | G30: =IFERROR(F30/$F$31*100,"0.00") -> 0.00
E31: Total Ingresos | F31: =+F23+F12+F9 -> 1,743,121,626.87 | G31: =+G23+G12+G9 -> 100.00

Sheet PPNE4
A1: =+PPNE1!B1 -> Plan Operativo Anual
A2: Servicio Nacional de Salud
A3: Dirección de Planificación y Desarrollo
A4: Consolidado Presupuesto Estimado de Ingresos y Gastos Nivel Especializado por Actividad Especifica
A5: =+PPNE1!C5 -> 2026
A6: Servicio Regional de Salud: | F6: =+PPNE1!B6 -> Cibao Norte
A7: Establecimiento: | F7: =+PPNE1!B7 -> 0
A8: Estimación de Ingresos
A9: Anticipos Financieros | G9: =+PPNE3!F16 -> 0.00
A10: Venta de Servicios y Otros Ingresos | G10: =+PPNE3!F25 -> 93,121,626.87
A11: Aportes SNS Nómina | G11: =+PPNE3!F15 -> 0.00
A12: Otros Aportes | G12: =+PPNE3!F9+PPNE3!F17+PPNE3!F21+PPNE3!F22 -> 0.00
A13: Transferencias Corrientes | G13: =+PPNE3!F18 -> 1,650,000,000.00
A14: Total Ingresos RD$ | G14: =SUM(G9:G13) -> 1,743,121,626.87
A15: Estimación de Gastos
A16: Tipo | B16: Objeto | C16: Cuenta | D16: Sub-Cuenta | E16: Auxiliar | F16: Descripción Gasto por Cuenta | G16: Consultas Externa | H16: Emergencias | I16: Hospitalización | J16: Apoyo Diagnóstico | L16: Servicios de Apoyo | N16: Total RD$ | O16: %
J17: Servicios de Laboratorios y Banco de Sangre | K17: Servicios de Imágenes RX | L17: Gestión de Usuario y Educación para la Salud | M17: Gestión Técnica y Administrativa
A18: 2 | F18: Egresos | G18: =+G19+G67+G171+G255+G272+G325 -> 170,438,512.56 | H18: =+H19+H67+H171+H255+H272+H325 -> 165,327,302.07 | I18: 631,607,603.58 | J18: 130,016,823.87 | K18: 136,976,759.85 | L18: 123,681,626.16 | M18: =+M19+M67+M171+M255+M272+M325 -> 385,072,998.77 | N18: =+N19+N67+N171+N255+N272+N325 -> 1,743,121,626.87 | O18: =IFERROR(N18/$N$18*100,"0.00")/100 -> 100%
A19: 2 | B19: 1 | F19: Servicios Personales | G19: =+G20+G42+G54+G58 -> 166,226,863.84 | H19: =+H20+H42+H54+H58 -> 139,088,326.31 | I19: 395,235,210.28 | J19: 96,211,128.37 | K19: 128,281,504.49 | L19: 121,641,778.12 | M19: 203,525,525.23 | N19: =+G19+H19+I19+J19+K19+L19+M19 -> 1,250,210,336.63 | O19: 72%
A20: 2 | B20: 1 | C20: 1 | F20: Remuneraciones | G20: =+G21+G26+G33+G35+G37 -> 131,502,667.81 | H20: =+H21+H26+H33+H35+H37 -> 106,482,755.74 | I20: 306,839,558.22 | J20: 78,901,600.69 | K20: 105,202,134.25 | L20: 96,435,289.73 | M20: 192,906,614.96 | N20: =+G20+H20+I20+J20+K20+L20+M20 -> 1,018,270,621.40 | O20: 58%
A21: 2 | B21: 1 | C21: 1 | D21: 1 | F21: Remuneraciones al personal fijo | G21: =SUM(G22:G25) -> 121,904,945.90 | H21: =SUM(H22:H25) -> 105,650,953.11 | I21: 284,444,873.77 | J21: 73,142,967.54 | K21: 97,523,956.72 | L21: 89,396,960.33 | M21: 40,634,981.97 | N21: 812,699,639.34 | O21: 47%
A22: 2 | B22: 1 | C22: 1 | D22: 1 | E22: `01 | F22: Sueldos fijos | G22: =812699639.34*0.15 -> 121,904,945.90 | H22: =812699639.34*0.13 -> 105,650,953.11 | I22: =812699639.34*0.35 -> 284,444,873.77 | J22: =812699639.34*0.09 -> 73,142,967.54 | K22: =812699639.34*0.12 -> 97,523,956.72 | L22: =812699639.34*0.11 -> 89,396,960.33 | M22: 40,634,981.97 | N22: 812,699,639.34 | O22: 47%
A23: 2 | B23: 1 | C23: 1 | D23: 1 | E23: `02 | F23: Sueldos a medicos | N23: 0.00 | O23: 0%
A24: 2 | B24: 1 | C24: 1 | D24: 1 | E24: `05 | F24: Incentivos y escalafón | N24: 0.00 | O24: 0%
A25: 2 | B25: 1 | C25: 1 | D25: 1 | E25: `06 | F25: Nuevas plazas a medicos | N25: 0.00 | O25: 0%
A26: 2 | B26: 1 | C26: 1 | D26: 2 | F26: Remuneraciones al personal con carácter transitorio | G26: =SUM(G27:G32) -> 0.00 | H26: =SUM(H27:H32) -> 0.00 | I26: 0.00 | J26: 0.00 | K26: 0.00 | L26: 0.00 | M26: =SUM(M27:M32) -> 140,071,938.09 | N26: 140,071,938.09 | O26: 8%
A27: 2 | B27: 1 | C27: 1 | D27: 2 | E27: `03 | F27: Suplencias | N27: 0.00 | O27: 0%
A28: 2 | B28: 1 | C28: 1 | D28: 2 | E28: `05 | F28: Sueldo al personal nominal en período probatorio | N28: 0.00 | O28: 0%
A29: 2 | B29: 1 | C29: 1 | D29: 2 | E29: `06 | F29: Jornales | N29: 0.00 | O29: 0%
A30: 2 | B30: 1 | C30: 1 | D30: 2 | E30: `08 | F30: Empleados temporales | M30: 140,071,938.09 | N30: 140,071,938.09 | O30: 8%
A31: 2 | B31: 1 | C31: 1 | D31: 2 | E31: `09 | F31: Personal de carácter eventual | N31: 0.00 | O31: 0%
A32: 2 | B32: 1 | C32: 1 | D32: 2 | E32: `11 | F32: Interinato | N32: 0.00 | O32: 0%
A33: 2 | B33: 1 | C33: 1 | D33: 3 | F33: Sueldos al personal fijo en trámite de pensiones | G33: =G34 -> 0.00 | H33: =H34 -> 0.00 | I33: 0.00 | J33: 0.00 | K33: 0.00 | L33: 0.00 | M33: 0.00 | N33: 0.00 | O33: 0%
A34: 2 | B34: 1 | C34: 1 | D34: 3 | E34: `01 | F34: Sueldos al personal fijo en trámite de pensiones | N34: 0.00 | O34: 0%
A35: 2 | B35: 1 | C35: 1 | D35: 4 | F35: Sueldo anual No. 13 | G35: =G36 -> 9,597,721.91 | H35: =H36 -> 831,802.62 | I35: 22,394,684.46 | J35: 5,758,633.15 | K35: 7,678,177.53 | L35: 7,038,329.40 | M35: 10,685,463.67 | N35: 63,984,812.73 | O35: 4%
A36: 2 | B36: 1 | C36: 1 | D36: 4 | E36: `01 | F36: Sueldo anual No. 13 | G36: =63984812.73*0.15 -> 9,597,721.91 | H36: =6398481.73*0.13 -> 831,802.62 | I36: =63984812.73*0.35 -> 22,394,684.46 | J36: =63984812.73*0.09 -> 5,758,633.15 | K36: =63984812.73*0.12 -> 7,678,177.53 | L36: =63984812.73*0.11 -> 7,038,329.40 | M36: 10,685,463.67 | N36: 63,984,812.73 | O36: 4%
A37: 2 | B37: 1 | C37: 1 | D37: 5 | F37: Prestacianes economicas | G37: =SUM(G38:G41) -> 0.00 | H37: =SUM(H38:H41) -> 0.00 | I37: 0.00 | J37: 0.00 | K37: 0.00 | L37: 0.00 | M37: 1,514,231.23 | N37: 1,514,231.23 | O37: 0%
A38: 2 | B38: 1 | C38: 1 | D38: 5 | E38: `01 | F38: Prestacianes economicas | N38: 0.00 | O38: 0%
A39: 2 | B39: 1 | C39: 1 | D39: 5 | E39: `02 | F39: Pago de porcentaje por desvinculación de cargo | N39: 0.00 | O39: 0%
A40: 2 | B40: 1 | C40: 1 | D40: 5 | E40: `03 | F40: Prestacion laboral por desvinculación | M40: 907,400.00 | N40: 907,400.00 | O40: 0%
A41: 2 | B41: 1 | C41: 1 | D41: 5 | E41: `04 | F41: Proporción de vacaciones no disfrutadas | M41: 606,831.23 | N41: 606,831.23 | O41: 0%
A42: 2 | B42: 1 | C42: 2 | F42: Sobresueldos | G42: =+G43+G45 -> 17,700,607.32 | H42: =+H43+H45 -> 17,851,793.69 | I42: 48,673,945.06 | J42: 7,095,374.45 | K42: 9,460,499.27 | L42: 12,722,523.33 | M42: 4,944,380.70 | N42: 118,449,123.83 | O42: 7%
A43: 2 | B43: 1 | C43: 2 | D43: 1 | F43: Primas por antigüedad | G43: =G44 -> 5,874,983.23 | H43: =H44 -> 7,602,919.47 | I43: 21,080,822.18 | J43: 0.00 | K43: 0.00 | L43: 0.00 | M43: 0.00 | N43: 34,558,724.88 | O43: 2%
A44: 2 | B44: 1 | C44: 2 | D44: 1 | E44: `01 | F44: Primas por antigüedad | G44: =34558724.88*0.17 -> 5,874,983.23 | H44: =34558724.88*0.22 -> 7,602,919.47 | I44: 21,080,822.18 | N44: 34,558,724.88 | O44: 2%
A45: 2 | B45: 1 | C45: 2 | D45: 2 | F45: Compensación | G45: =SUM(G46:G53) -> 11,825,624.09 | H45: =SUM(H46:H53) -> 10,248,874.21 | I45: 27,593,122.88 | J45: 7,095,374.45 | K45: 9,460,499.27 | L45: 12,722,523.33 | M45: 4,944,380.70 | N45: 83,890,398.94 | O45: 5%
A46: 2 | B46: 1 | C46: 2 | D46: 2 | E46: `03 | F46: Pago de horas extraordinarias, Horas extraordinarias fin de año (Reglamento 523-09) | N46: 0.00 | O46: 0%
A47: 2 | B47: 1 | C47: 2 | D47: 2 | E47: `04 | F47: Prima de transporte | N47: 0.00 | O47: 0%
A48: 2 | B48: 1 | C48: 2 | D48: 2 | E48: `05 | F48: Compensación servicios de Seguridad | M48: 540,000.00 | N48: 540,000.00 | O48: 0%
A49: 2 | B49: 1 | C49: 2 | D49: 2 | E49: `06 | F49: Incentivo por rendimiento individual | G49: =9283645*0.15 -> 1,392,546.75 | H49: =9283645*0.13 -> 1,206,873.85 | I49: =9283645*0.35 -> 3,249,275.75 | J49: =9283645*0.09 -> 835,528.05 | K49: =9283645*0.12 -> 1,114,037.40 | L49: =9283645*0.11 -> 1,021,200.95 | M49: 464,182.25 | N49: 9,283,645.00 | O49: 1%
A50: 2 | B50: 1 | C50: 2 | D50: 2 | E50: `07 | F50: Compensación por distancia | N50: 0.00 | O50: 0%
A51: 2 | B51: 1 | C51: 2 | D51: 2 | E51: `08 | F51: Compensaciones especiales | L51: 4,050,399.00 | N51: 4,050,399.00 | O51: 0%
A52: 2 | B52: 1 | C52: 2 | D52: 2 | E52: `09 | F52: Bono por desempeño | M52: 462,506.00 | N52: 462,506.00 | O52: 0%
A53: 2 | B53: 1 | C53: 2 | D53: 2 | E53: `10 | F53: Compensación por cumplimiento de indicadores | G53: =69553848.94*0.15 -> 10,433,077.34 | H53: =69553848.94*0.13 -> 9,042,000.36 | I53: =69553848.94*0.35 -> 24,343,847.13 | J53: =69553848.94*0.09 -> 6,259,846.40 | K53: =69553848.94*0.12 -> 8,346,461.87 | L53: =69553848.94*0.11 -> 7,650,923.38 | M53: 3,477,692.45 | N53: 69,553,848.94 | O53: 4%
A54: 2 | B54: 1 | C54: 3 | F54: Dietas y Gastos de Representación | G54: =+G55 -> 0.00 | H54: =+H55 -> 0.00 | I54: 0.00 | J54: 0.00 | K54: 0.00 | L54: 0.00 | M54: 0.00 | N54: 0.00 | O54: 0%
A55: 2 | B55: 1 | C55: 3 | D55: 2 | F55: Gastos de representación | G55: =SUM(G56:G57) -> 0.00 | H55: =SUM(H56:H57) -> 0.00 | I55: 0.00 | J55: 0.00 | K55: 0.00 | L55: 0.00 | M55: 0.00 | N55: 0.00 | O55: 0%
A56: 2 | B56: 1 | C56: 3 | D56: 2 | E56: `01 | F56: Gastos de representación en el país | N56: 0.00 | O56: 0%
A57: 2 | B57: 1 | C57: 3 | D57: 2 | E57: `02 | F57: Gastos de representación en el exterior | N57: 0.00 | O57: 0%
A58: 2 | B58: 1 | C58: 5 | F58: Contribuciones a la Seguridad Social y Riesgo Laboral | G58: =G59+G61+G63+G65 -> 17,023,588.71 | H58: =H59+H61+H63+H65 -> 14,753,776.88 | I58: 39,721,706.99 | J58: 10,214,153.23 | K58: 13,618,870.97 | L58: 12,483,965.06 | M58: 5,674,529.57 | N58: 113,490,591.41 | O58: 7%
A59: 2 | B59: 1 | C59: 5 | D59: 1 | F59: Contribuciones al seguro de salud | G59: =G60 -> 7,849,108.55 | H59: =H60 -> 6,802,560.75 | I59: 18,314,586.63 | J59: 4,709,465.13 | K59: 6,279,286.84 | L59: 5,756,012.94 | M59: 2,616,369.52 | N59: 52,327,390.36 | O59: 3%
A60: 2 | B60: 1 | C60: 5 | D60: 1 | E60: `01 | F60: Contribuciones al seguro de salud | G60: =52327390.36*0.15 -> 7,849,108.55 | H60: =52327390.36*0.13 -> 6,802,560.75 | I60: =52327390.36*0.35 -> 18,314,586.63 | J60: =52327390.36*0.09 -> 4,709,465.13 | K60: =52327390.36*0.12 -> 6,279,286.84 | L60: =52327390.36*0.11 -> 5,756,012.94 | M60: 2,616,369.52 | N60: 52,327,390.36 | O60: 3%
A61: 2 | B61: 1 | C61: 5 | D61: 2 | F61: Contribuciones al seguro de pensiones | G61: =G62 -> 7,849,108.55 | H61: =H62 -> 6,802,560.75 | I61: 18,314,586.63 | J61: 4,709,465.13 | K61: 6,279,286.84 | L61: 5,756,012.94 | M61: 2,616,369.52 | N61: 52,327,390.36 | O61: 3%
A62: 2 | B62: 1 | C62: 5 | D62: 2 | E62: `01 | F62: Contribuciones al seguro de pensiones | G62: =52327390.36*0.15 -> 7,849,108.55 | H62: =52327390.36*0.13 -> 6,802,560.75 | I62: =52327390.36*0.35 -> 18,314,586.63 | J62: =52327390.36*0.09 -> 4,709,465.13 | K62: =52327390.36*0.12 -> 6,279,286.84 | L62: =52327390.36*0.11 -> 5,756,012.94 | M62: 2,616,369.52 | N62: 52,327,390.36 | O62: 3%
A63: 2 | B63: 1 | C63: 5 | D63: 3 | F63: Contribuciones al seguro de riesgo laboral | G63: =G64 -> 1,325,371.60 | H63: =H64 -> 1,148,655.39 | I63: 3,092,533.74 | J63: 795,222.96 | K63: 1,060,297.28 | L63: 971,939.18 | M63: 441,790.53 | N63: 8,835,810.69 | O63: 1%
A64: 2 | B64: 1 | C64: 5 | D64: 3 | E64: `01 | F64: Contribuciones al seguro de riesgo laboral | G64: =8835810.69*0.15 -> 1,325,371.60 | H64: =8835810.69*0.13 -> 1,148,655.39 | I64: =8835810.69*0.35 -> 3,092,533.74 | J64: =8835810.69*0.09 -> 795,222.96 | K64: =8835810.69*0.12 -> 1,060,297.28 | L64: =8835810.69*0.11 -> 971,939.18 | M64: 441,790.53 | N64: 8,835,810.69 | O64: 1%
A65: 2 | B65: 1 | C65: 5 | D65: 4 | F65: Contribuciones al plan de retiro complementario | G65: =G66 -> 0.00 | H65: =H66 -> 0.00 | I65: 0.00 | J65: 0.00 | K65: 0.00 | L65: 0.00 | M65: 0.00 | N65: 0.00 | O65: 0%
A66: 2 | B66: 1 | C66: 5 | D66: 4 | E66: `01 | F66: Contribuciones al plan de retiro complementario | N66: 0.00 | O66: 0%
A67: 2 | B67: 2 | F67: Contratacion de servicios | G67: =+G68+G82+G87+G92+G99+G116+G125+G143 -> 0.00 | H67: =+H68+H82+H87+H92+H99+H116+H125+H143 -> 0.00 | I67: 0.00 | J67: 0.00 | K67: 0.00 | L67: 0.00 | M67: =+M68+M82+M87+M92+M99+M116+M125+M143 -> 72,682,711.85 | N67: 72,682,711.85 | O67: 4%
A68: 2 | B68: 2 | C68: 1 | F68: Servicios Básicos | G68: =+G69+G71+G73+G75+G78+G80 -> 0.00 | H68: =+H69+H71+H73+H75+H78+H80 -> 0.00 | I68: 0.00 | J68: 0.00 | K68: 0.00 | L68: 0.00 | M68: =+M71+M78+M80 -> 3,804,000.00 | N68: 3,804,000.00 | O68: 0%
A69: 2 | B69: 2 | C69: 1 | D69: 2 | F69: Servicios telefónico de larga distancia | G69: =G70 -> 0.00 | H69: =H70 -> 0.00 | I69: 0.00 | J69: 0.00 | K69: 0.00 | L69: 0.00 | M69: 0.00 | N69: 0.00 | O69: 0%
A70: 2 | B70: 2 | C70: 1 | D70: 2 | E70: `01 | F70: Servicios telefónico de larga distancia | N70: 0.00 | O70: 0%
A71: 2 | B71: 2 | C71: 1 | D71: 3 | F71: Teléfono local | G71: =G72 -> 0.00 | H71: =H72 -> 0.00 | I71: 0.00 | J71: 0.00 | K71: 0.00 | L71: 0.00 | M71: 2,724,000.00 | N71: 2,724,000.00 | O71: 0%
A72: 2 | B72: 2 | C72: 1 | D72: 3 | E72: `01 | F72: Teléfono local | M72: 2,724,000.00 | N72: 2,724,000.00 | O72: 0%
A73: 2 | B73: 2 | C73: 1 | D73: 5 | F73: Servicio de internet y televisión por cable | G73: =G74 -> 0.00 | H73: =H74 -> 0.00 | I73: 0.00 | J73: 0.00 | K73: 0.00 | L73: 0.00 | M73: 0.00 | N73: 0.00 | O73: 0%
A74: 2 | B74: 2 | C74: 1 | D74: 5 | E74: `01 | F74: Servicio de internet y televisión por cable | N74: 0.00 | O74: 0%
A75: 2 | B75: 2 | C75: 1 | D75: 6 | F75: Electricidad | G75: =G76+G77 -> 0.00 | H75: =H76+H77 -> 0.00 | I75: 0.00 | J75: 0.00 | K75: 0.00 | L75: 0.00 | M75: 0.00 | N75: 0.00 | O75: 0%
A76: 2 | B76: 2 | C76: 1 | D76: 6 | E76: `01 | F76: Energía eléctrica | N76: 0.00 | O76: 0%
A77: 2 | B77: 2 | C77: 1 | D77: 6 | E77: `02 | F77: Electricidad no cortable | N77: 0.00 | O77: 0%
A78: 2 | B78: 2 | C78: 1 | D78: 7 | F78: Agua | G78: =G79 -> 0.00 | H78: =H79 -> 0.00 | I78: 0.00 | J78: 0.00 | K78: 0.00 | L78: 0.00 | M78: 780,000.00 | N78: 780,000.00 | O78: 0%
A79: 2 | B79: 2 | C79: 1 | D79: 7 | E79: `01 | F79: Agua | M79: 780,000.00 | N79: 780,000.00 | O79: 0%
A80: 2 | B80: 2 | C80: 1 | D80: 8 | F80: Recolección de residuos sólidos | G80: =G81 -> 0.00 | H80: =H81 -> 0.00 | I80: 0.00 | J80: 0.00 | K80: 0.00 | L80: 0.00 | M80: 300,000.00 | N80: 300,000.00 | O80: 0%
A81: 2 | B81: 2 | C81: 1 | D81: 8 | E81: `01 | F81: Recolección de residuos sólidos | M81: 300,000.00 | N81: 300,000.00 | O81: 0%
A82: 2 | B82: 2 | C82: 2 | F82: Publicidad Impresión y Encuadernación | G82: =+G83+G85 -> 0.00 | H82: =+H83+H85 -> 0.00 | I82: 0.00 | J82: 0.00 | K82: 0.00 | L82: 0.00 | M82: 0.00 | N82: 0.00 | O82: =IFERROR(N82/$N$18*100,"0.00")/100 -> 0%
A83: 2 | B83: 2 | C83: 2 | D83: 1 | F83: Publicidad y propaganda | G83: =G84 -> 0.00 | H83: =H84 -> 0.00 | I83: 0.00 | J83: 0.00 | K83: 0.00 | L83: 0.00 | M83: 0.00 | N83: =+G83+H83+I83+J83+K83+L83+M83 -> 0.00 | O83: 0%
A84: 2 | B84: 2 | C84: 2 | D84: 1 | E84: `01 | F84: Publicidad y propaganda | N84: 0.00 | O84: 0%
A85: 2 | B85: 2 | C85: 2 | D85: 2 | F85: Impresión y encuadernación | G85: =G86 -> 0.00 | H85: =H86 -> 0.00 | I85: 0.00 | J85: 0.00 | K85: 0.00 | L85: 0.00 | M85: 0.00 | N85: 0.00 | O85: 0%
A86: 2 | B86: 2 | C86: 2 | D86: 2 | E86: `01 | F86: Impresión y encuadernación | N86: 0.00 | O86: 0%
A87: 2 | B87: 2 | C87: 3 | F87: Viáticos | G87: =+G88+G90 -> 0.00 | H87: =+H88+H90 -> 0.00 | I87: =+I88+I90 -> 0.00 | J87: 0.00 | K87: 0.00 | L87: 0.00 | M87: 0.00 | N87: 0.00 | O87: 0%
A88: 2 | B88: 2 | C88: 3 | D88: 1 | F88: Viáticos dentro del país | G88: =G89 -> 0.00 | H88: =H89 -> 0.00 | I88: 0.00 | J88: 0.00 | K88: 0.00 | L88: 0.00 | M88: 0.00 | N88: 0.00 | O88: 0%
A89: 2 | B89: 2 | C89: 3 | D89: 1 | E89: `01 | F89: Viáticos dentro del país | N89: 0.00 | O89: 0%
A90: 2 | B90: 2 | C90: 3 | D90: 2 | F90: Viáticos fuera del país | G90: =G91 -> 0.00 | H90: =H91 -> 0.00 | I90: 0.00 | J90: 0.00 | K90: 0.00 | L90: 0.00 | M90: 0.00 | N90: 0.00 | O90: 0%
A91: 2 | B91: 2 | C91: 3 | D91: 2 | E91: `01 | F91: Viáticos fuera del país | N91: 0.00 | O91: 0%
A92: 2 | B92: 2 | C92: 4 | F92: Transporte y Alamcenaje | G92: =+G93+G95+G97 -> 0.00 | H92: =+H93+H95+H97 -> 0.00 | I92: 0.00 | J92: 0.00 | K92: 0.00 | L92: 0.00 | M92: 708,803.54 | N92: 708,803.54 | O92: 0%
A93: 2 | B93: 2 | C93: 4 | D93: 1 | F93: Pasajes y gastos de transporte | G93: =G94 -> 0.00 | H93: =H94 -> 0.00 | I93: 0.00 | J93: 0.00 | K93: 0.00 | L93: 0.00 | M93: 0.00 | N93: 0.00 | O93: 0%
A94: 2 | B94: 2 | C94: 4 | D94: 1 | E94: `01 | F94: Pasajes y gastos de transporte | N94: 0.00 | O94: 0%
A95: 2 | B95: 2 | C95: 4 | D95: 2 | F95: Fletes | G95: =G96 -> 0.00 | H95: =H96 -> 0.00 | I95: 0.00 | J95: 0.00 | K95: 0.00 | L95: 0.00 | M95: 708,803.54 | N95: 708,803.54 | O95: 0%
A96: 2 | B96: 2 | C96: 4 | D96: 2 | E96: `01 | F96: Fletes | M96: 708,803.54 | N96: 708,803.54 | O96: 0%
A97: 2 | B97: 2 | C97: 4 | D97: 4 | F97: Peaje | G97: =G98 -> 0.00 | H97: =H98 -> 0.00 | I97: 0.00 | J97: 0.00 | K97: 0.00 | L97: 0.00 | M97: 0.00 | N97: 0.00 | O97: 0%
A98: 2 | B98: 2 | C98: 4 | D98: 4 | E98: `01 | F98: Peaje | N98: 0.00 | O98: 0%
A99: 2 | B99: 2 | C99: 5 | F99: Alquileres y Rentas | G99: =+G100+G102+G104+G110+G112+G114 -> 0.00 | H99: =+H100+H102+H104+H110+H112+H114 -> 0.00 | I99: 0.00 | J99: 0.00 | K99: 0.00 | L99: 0.00 | M99: 4,200,000.00 | N99: 4,200,000.00 | O99: 0%
A100: 2 | B100: 2 | C100: 5 | D100: 1 | F100: Alquilleres y rentas de edificios y locales | G100: =G101 -> 0.00 | H100: =H101 -> 0.00 | I100: 0.00 | J100: 0.00 | K100: 0.00 | L100: 0.00 | M100: 0.00 | N100: 0.00 | O100: 0%
A101: 2 | B101: 2 | C101: 5 | D101: 1 | E101: `01 | F101: Alquilleres y rentas de edificios y locales | N101: 0.00 | O101: 0%
A102: 2 | B102: 2 | C102: 5 | D102: 2 | F102: Alquileres de máquinas y equipos de producción | G102: =G103 -> 0.00 | H102: =H103 -> 0.00 | I102: 0.00 | J102: 0.00 | K102: 0.00 | L102: 0.00 | M102: 0.00 | N102: 0.00 | O102: 0%
A103: 2 | B103: 2 | C103: 5 | D103: 2 | E103: `01 | F103: Alquileres de máquinas y equipos de producción | N103: 0.00 | O103: 0%
A104: 2 | B104: 2 | C104: 5 | D104: 3 | F104: Alquileres de equipos | G104: =SUM(G105:G109) -> 0.00 | H104: =SUM(H105:H109) -> 0.00 | I104: 0.00 | J104: 0.00 | K104: 0.00 | L104: 0.00 | M104: 4,200,000.00 | N104: 4,200,000.00 | O104: 0%
A105: 2 | B105: 2 | C105: 5 | D105: 3 | E105: `01 | F105: Alquiler de equipo educacional | M105: 4,200,000.00 | N105: 4,200,000.00 | O105: 0%
A106: 2 | B106: 2 | C106: 5 | D106: 3 | E106: `02 | F106: Alquiler de equipo para computación | N106: 0.00 | O106: 0%
A107: 2 | B107: 2 | C107: 5 | D107: 3 | E107: `03 | F107: Alquiler de equipo de comunicación | N107: 0.00 | O107: 0%
A108: 2 | B108: 2 | C108: 5 | D108: 3 | E108: `04 | F108: Alquiler de equipo de oficina y muebles | N108: 0.00 | O108: 0%
A109: 2 | B109: 2 | C109: 5 | D109: 3 | E109: `05 | F109: Alquiler de equipos sanitarios y de laboratorios | N109: 0.00 | O109: 0%
A110: 2 | B110: 2 | C110: 5 | D110: 4 | F110: Alquileres de equipos de transporte, tracción y elevación | G110: =+G111 -> 0.00 | H110: =+H111 -> 0.00 | I110: 0.00 | J110: 0.00 | K110: 0.00 | L110: 0.00 | M110: 0.00 | N110: 0.00 | O110: 0%
A111: 2 | B111: 2 | C111: 5 | D111: 4 | E111: `01 | F111: Alquileres de equipos de transporte, tracción y elevación | N111: 0.00 | O111: 0%
A112: 2 | B112: 2 | C112: 5 | D112: 8 | F112: Otros alquileres | G112: =G113 -> 0.00 | H112: =H113 -> 0.00 | I112: 0.00 | J112: 0.00 | K112: 0.00 | L112: 0.00 | M112: 0.00 | N112: 0.00 | O112: 0%
A113: 2 | B113: 2 | C113: 5 | D113: 8 | E113: `01 | F113: Otros alquileres | N113: 0.00 | O113: 0%
A114: 2 | B114: 2 | C114: 5 | D114: 9 | F114: Derechos de uso | G114: =+G115 -> 0.00 | H114: =H115 -> 0.00 | I114: 0.00 | J114: 0.00 | K114: 0.00 | L114: 0.00 | M114: 0.00 | N114: 0.00 | O114: 0%
A115: 2 | B115: 2 | C115: 5 | D115: 8 | E115: `01 | F115: Licencias informaticas | N115: 0.00 | O115: 0%
A116: 2 | B116: 2 | C116: 6 | F116: Seguros | G116: =+G117+G119+G121+G123 -> 0.00 | H116: =+H117+H119+H121+H123 -> 0.00 | I116: 0.00 | J116: 0.00 | K116: 0.00 | L116: 0.00 | M116: 0.00 | N116: 0.00 | O116: 0%
A117: 2 | B117: 2 | C117: 6 | D117: 1 | F117: Seguro de bienes inmuebles e infraestructura | G117: =G118 -> 0.00 | H117: =H118 -> 0.00 | I117: 0.00 | J117: 0.00 | K117: 0.00 | L117: 0.00 | M117: 0.00 | N117: 0.00 | O117: 0%
A118: 2 | B118: 2 | C118: 6 | D118: 1 | E118: `01 | F118: Seguro de bienes inmuebles e infraestructura | N118: 0.00 | O118: 0%
A119: 2 | B119: 2 | C119: 6 | D119: 2 | F119: Seguro de bienes muebles | G119: =G120 -> 0.00 | H119: =H120 -> 0.00 | I119: 0.00 | J119: 0.00 | K119: 0.00 | L119: 0.00 | M119: 0.00 | N119: 0.00 | O119: 0%
A120: 2 | B120: 2 | C120: 6 | D120: 2 | E120: `01 | F120: Seguro de bienes muebles | N120: 0.00 | O120: 0%
A121: 2 | B121: 2 | C121: 6 | D121: 3 | F121: Seguros de personas | G121: =G122 -> 0.00 | H121: =H122 -> 0.00 | I121: 0.00 | J121: 0.00 | K121: 0.00 | L121: 0.00 | M121: 0.00 | N121: 0.00 | O121: 0%
A122: 2 | B122: 2 | C122: 6 | D122: 3 | E122: `01 | F122: Seguros de personas | N122: 0.00 | O122: 0%
A123: 2 | B123: 2 | C123: 6 | D123: 9 | F123: Otros seguros | G123: =+G124 -> 0.00 | H123: =H124 -> 0.00 | I123: 0.00 | J123: 0.00 | K123: 0.00 | L123: 0.00 | M123: 0.00 | N123: 0.00 | O123: 0%
A124: 2 | B124: 2 | C124: 6 | D124: 9 | E124: `01 | F124: Otros seguros | N124: 0.00 | O124: 0%
A125: 2 | B125: 2 | C125: 7 | F125: Servicios de Conservación, Reparaciones Menores e Instalaciones Temporales | G125: =+G126+G131+G141 -> 0.00 | H125: =+H126+H128+H130+H136+H138+H140+H142+H144 -> 0.00 | I125: 0.00 | J125: 0.00 | K125: 0.00 | L125: 0.00 | M125: =+M126+M141+M131 -> 59,157,826.97 | N125: 59,157,826.97 | O125: 3%
A126: 2 | B126: 2 | C126: 7 | D126: 1 | F126: Contratación de mantenimiento y reparaciones menores | G126: =SUM(G127:G130) -> 0.00 | H126: =SUM(H127:H130) -> 0.00 | I126: 0.00 | J126: 0.00 | K126: 0.00 | L126: 0.00 | M126: 10,040,000.00 | N126: 10,040,000.00 | O126: 1%
A127: 2 | B127: 2 | C127: 7 | D127: 1 | E127: `01 | F127: Mantenimiento y reparaciones menores en edificaciones | M127: 10,040,000.00 | N127: 10,040,000.00 | O127: 1%
A128: 2 | B128: 2 | C128: 7 | D128: 1 | E128: `06 | F128: Mantenimiento y reparación de Instalaciones eléctricas | N128: 0.00 | O128: 0%
A129: 2 | B129: 2 | C129: 7 | D129: 1 | E129: `07 | F129: Mantenimiento y reparación, servicios de pintura y sus derivados | N129: 0.00 | O129: 0%
A130: 2 | B130: 2 | C130: 7 | D130: 1 | E130: `99 | F130: Otros mantenimientos, reparaciones y sus derivados, no identificados precedentamente. | N130: 0.00 | O130: 0%
A131: 2 | B131: 2 | C131: 7 | D131: 2 | F131: Mantenimientos y reparacion de maquinarias y equipos | G131: =SUM(G132:G140) -> 0.00 | H131: =SUM(H132:H140) -> 0.00 | I131: 0.00 | J131: 0.00 | K131: 0.00 | L131: 0.00 | M131: =SUM(M132:M140) -> 49,117,826.97 | N131: 49,117,826.97 | O131: 3%
A132: 2 | B132: 2 | C132: 7 | D132: 2 | E132: `01 | F132: Mantenimiento y reparación de mobiliarios y equipos de oficina | M132: 12,693,529.36 | N132: 12,693,529.36 | O132: 1%
A133: 2 | B133: 2 | C133: 7 | D133: 2 | E133: `02 | F133: Mantenimiento y reparación de equipo tecnologia e informacion | N133: 0.00 | O133: 0%
A134: 2 | B134: 2 | C134: 7 | D134: 2 | E134: `03 | F134: Mantenimiento y reparación de equipo de educacionales, deportivos y recreativos | N134: 0.00 | O134: 0%
A135: 2 | B135: 2 | C135: 7 | D135: 2 | E135: `04 | F135: Mantenimiento y reparación de equipos medicos, sanitarios y de laboratorio | M135: 24,524,297.61 | N135: 24,524,297.61 | O135: 1%
A136: 2 | B136: 2 | C136: 7 | D136: 2 | E136: `05 | F136: Mantenimiento y reparación de equipos de comunicación | N136: 0.00 | O136: 0%
A137: 2 | B137: 2 | C137: 7 | D137: 2 | E137: `06 | F137: Mantenimiento y reparación de equipos de transporte, tracción y elevación | M137: 5,600,000.00 | N137: 5,600,000.00 | O137: 0%
A138: 2 | B138: 2 | C138: 7 | D138: 2 | E138: `07 | F138: Mantenimiento y reparación de equipos industriales y producción | M138: 300,000.00 | N138: 300,000.00 | O138: 0%
A139: 2 | B139: 2 | C139: 7 | D139: 2 | E139: `08 | F139: Servicio de mantenimiento, reparación, desmonte e instalación | M139: 6,000,000.00 | N139: 6,000,000.00 | O139: 0%
A140: 2 | B140: 2 | C140: 7 | D140: 2 | E140: `99 | F140: Otros servicios de mantenimiento, reparación, desmonte e instalación | N140: 0.00 | O140: 0%
A141: 2 | B141: 2 | C141: 7 | D141: 3 | F141: Instalaciones temporales | G141: =G142 -> 0.00 | H141: =H142 -> 0.00 | I141: 0.00 | J141: 0.00 | K141: 0.00 | L141: 0.00 | M141: 0.00 | N141: 0.00 | O141: 0%
A142: 2 | B142: 2 | C142: 7 | D142: 3 | E142: `01 | F142: Instalaciones temporales | N142: 0.00 | O142: 0%
A143: 2 | B143: 2 | C143: 8 | F143: Otros Servicios No Incluidos en conceptos anteriores | G143: =+G144+G146+G148+G150+G154+G157+G164 -> 0.00 | H143: =+H144+H146+H148+H150+H154+H157+H164 -> 0.00 | I143: 0.00 | J143: 0.00 | K143: 0.00 | L143: 0.00 | M143: =+M144+M146+M148+M150+M154+M157+M164+M168 -> 4,812,081.34 | N143: 4,812,081.34 | O143: 0%
A144: 2 | B144: 2 | C144: 8 | D144: 1 | F144: Gastos y representación judiciales | G144: =G145 -> 0.00 | H144: =H145 -> 0.00 | I144: 0.00 | J144: 0.00 | K144: 0.00 | L144: 0.00 | M144: 0.00 | N144: 0.00 | O144: 0%
A145: 2 | B145: 2 | C145: 8 | D145: 1 | E145: `01 | F145: Gastos y representación judiciales | N145: 0.00 | O145: 0%
A146: 2 | B146: 2 | C146: 8 | D146: 2 | F146: Comisiones y gastos | G146: =G147 -> 0.00 | H146: =H147 -> 0.00 | I146: 0.00 | J146: 0.00 | K146: 0.00 | L146: 0.00 | M146: 156,000.00 | N146: 156,000.00 | O146: =IFERROR(N146/$N$18*100,"0.00")/100 -> 0%
A147: 2 | B147: 2 | C147: 8 | D147: 2 | E147: `01 | F147: Comisiones y gastos | M147: 156,000.00 | N147: =+G147+H147+I147+J147+K147+L147+M147 -> 156,000.00 | O147: 0%
A148: 2 | B148: 2 | C148: 8 | D148: 4 | F148: Servicios funerarios y gastos conexos | G148: =G149 -> 0.00 | H148: =H149 -> 0.00 | I148: 0.00 | J148: 0.00 | K148: 0.00 | L148: 0.00 | M148: 0.00 | N148: 0.00 | O148: 0%
A149: 2 | B149: 2 | C149: 8 | D149: 4 | E149: `01 | F149: Servicios funerarios y gastos conexos | N149: 0.00 | O149: 0%
A150: 2 | B150: 2 | C150: 8 | D150: 5 | F150: Fumigación, lavandería, limpieza e higiene | G150: =SUM(G151:G153) -> 0.00 | H150: =SUM(H151:H153) -> 0.00 | I150: 0.00 | J150: 0.00 | K150: 0.00 | L150: 0.00 | M150: 0.00 | N150: 0.00 | O150: 0%
A151: 2 | B151: 2 | C151: 8 | D151: 5 | E151: `01 | F151: Fumigación | N151: 0.00 | O151: 0%
A152: 2 | B152: 2 | C152: 8 | D152: 5 | E152: `02 | F152: Lavandería | N152: 0.00 | O152: 0%
A153: 2 | B153: 2 | C153: 8 | D153: 5 | E153: `03 | F153: Limpieza e higiene | N153: 0.00 | O153: 0%
A154: 2 | B154: 2 | C154: 8 | D154: 6 | F154: Servicio de organización de eventos, festividades y actividades de entretenimiento | G154: =SUM(G155:G156) -> 0.00 | H154: =SUM(H155:H156) -> 0.00 | I154: 0.00 | J154: 0.00 | K154: 0.00 | L154: 0.00 | M154: 4,656,081.34 | N154: 4,656,081.34 | O154: 0%
A155: 2 | B155: 2 | C155: 8 | D155: 6 | E155: `01 | F155: Eventos generals | M155: 4,656,081.34 | N155: 4,656,081.34 | O155: 0%
A156: 2 | B156: 2 | C156: 8 | D156: 6 | E156: `02 | F156: Festividades | N156: 0.00 | O156: 0%
A157: 2 | B157: 2 | C157: 8 | D157: 7 | F157: Servicios Técnicos y Profesionales | G157: =SUM(G158:G163) -> 0.00 | H157: =SUM(H158:H163) -> 0.00 | I157: 0.00 | J157: 0.00 | K157: 0.00 | L157: 0.00 | M157: 0.00 | N157: 0.00 | O157: 0%
A158: 2 | B158: 2 | C158: 8 | D158: 7 | E158: `01 | F158: Servicios técnicos y profesionales | N158: 0.00 | O158: 0%
A159: 2 | B159: 2 | C159: 8 | D159: 7 | E159: `02 | F159: Servicios jurídicos | N159: 0.00 | O159: 0%
A160: 2 | B160: 2 | C160: 8 | D160: 7 | E160: `03 | F160: Servicios de contabilidad y auditoría | N160: 0.00 | O160: 0%
A161: 2 | B161: 2 | C161: 8 | D161: 7 | E161: `04 | F161: Servicios de capacitación | N161: 0.00 | O161: 0%
A162: 2 | B162: 2 | C162: 8 | D162: 7 | E162: `05 | F162: Servicios de informática y sistemas computarizados | N162: 0.00 | O162: 0%
A163: 2 | B163: 2 | C163: 8 | D163: 7 | E163: `06 | F163: Otros servicios técnicos profesionales | N163: 0.00 | O163: 0%
A164: 2 | B164: 2 | C164: 8 | D164: 8 | F164: Impuestos, derechos y tasas | G164: =SUM(G165:G167) -> 0.00 | H164: =SUM(H165:H167) -> 0.00 | I164: 0.00 | J164: 0.00 | K164: 0.00 | L164: 0.00 | M164: 0.00 | N164: 0.00 | O164: 0%
A165: 2 | B165: 2 | C165: 8 | D165: 8 | E165: `01 | F165: Impuestos | N165: 0.00 | O165: 0%
A166: 2 | B166: 2 | C166: 8 | D166: 8 | E166: `02 | F166: Derechos | N166: 0.00 | O166: 0%
A167: 2 | B167: 2 | C167: 8 | D167: 8 | E167: `03 | F167: Tasas | N167: 0.00 | O167: 0%
A168: 2 | B168: 2 | C168: 9 | D168: 2 | F168: Servicios de alimentación | G168: =+G169+G170 -> 0.00 | H168: =+H169+H170 -> 0.00 | I168: 0.00 | J168: 0.00 | K168: 0.00 | L168: 0.00 | M168: =+M169+M170 -> 0.00 | N168: 0.00 | O168: 0%
A169: 2 | B169: 2 | C169: 9 | D169: 2 | E169: `01 | F169: Servicio de alimentación | N169: 0.00 | O169: 0%
A170: 2 | B170: 2 | C170: 9 | D170: 2 | E170: `03 | F170: Servicios de catering | N170: 0.00 | O170: 0%
A171: 2 | B171: 3 | F171: Materiales y Suministros | G171: =+G172+G180+G189+G198+G201+G210+G225+G238 -> 4,093,407.72 | H171: =+H172+H180+H189+H198+H201+H210+H225+H238 -> 26,144,252.48 | I171: 235,188,352.31 | J171: 33,805,695.51 | K171: 8,695,255.35 | L171: 2,039,848.04 | M171: 28,589,963.97 | N171: =+G171+H171+I171+J171+K171+L171+M171 -> 338,556,775.38 | O171: 19%
A172: 2 | B172: 3 | C172: 1 | F172: Alimentos y Productos Agroforestales | G172: =+G173+G175+G178 -> 815,939.22 | H172: =+H173+H175+H178 -> 1,631,878.43 | I172: 28,557,872.57 | J172: 1,223,908.82 | K172: 2,039,848.04 | L172: 2,039,848.04 | M172: 4,487,665.69 | N172: =+G172+H172+I172+J172+K172+L172+M172 -> 40,796,960.81 | O172: 2%
A173: 2 | B173: 3 | C173: 1 | D173: 1 | F173: Alimentos y bebidas para personas | G173: =+G174 -> 815,939.22 | H173: =+H174 -> 1,631,878.43 | I173: 28,557,872.57 | J173: 1,223,908.82 | K173: 2,039,848.04 | L173: 2,039,848.04 | M173: 4,487,665.69 | N173: 40,796,960.81 | O173: 2%
A174: 2 | B174: 3 | C174: 1 | D174: 1 | E174: `01 | F174: Alimentos y bebidas para personas | G174: 815,939.22 | H174: 1,631,878.43 | I174: 28,557,872.57 | J174: 1,223,908.82 | K174: 2,039,848.04 | L174: 2,039,848.04 | M174: 4,487,665.69 | N174: 40,796,960.81 | O174: 2%
A175: 2 | B175: 3 | C175: 1 | D175: 3 | F175: Productos agroforestales y pecuarios | G175: =SUM(G176:G177) -> 0.00 | H175: =SUM(H176:H177) -> 0.00 | I175: 0.00 | J175: 0.00 | K175: 0.00 | L175: 0.00 | M175: 0.00 | N175: 0.00 | O175: 0%
A176: 2 | B176: 3 | C176: 1 | D176: 3 | E176: `02 | F176: Productos agrícolas | N176: 0.00 | O176: 0%
A177: 2 | B177: 3 | C177: 1 | D177: 3 | E177: `03 | F177: Productos forestales | N177: 0.00 | O177: 0%
A178: 2 | B178: 3 | C178: 1 | D178: 4 | F178: Madera, corcho y sus manufacturas | G178: =+G179 -> 0.00 | H178: =+H179 -> 0.00 | I178: 0.00 | J178: 0.00 | K178: 0.00 | L178: 0.00 | M178: 0.00 | N178: 0.00 | O178: 0%
A179: 2 | B179: 3 | C179: 1 | D179: 4 | E179: `01 | F179: Madera, corcho y sus manufacturas | N179: 0.00 | O179: 0%
A180: 2 | B180: 3 | C180: 2 | F180: Textiles y Vestuarios | G180: =+G181+G183+G185+G187 -> 0.00 | H180: =+H181+H183+H185+H187 -> 0.00 | I180: 0.00 | J180: 0.00 | K180: 0.00 | L180: 0.00 | M180: 2,793,648.81 | N180: 2,793,648.81 | O180: 0%
A181: 2 | B181: 3 | C181: 2 | D181: 1 | F181: Hilados, fibras y telas | G181: =+G182 -> 0.00 | H181: =H182 -> 0.00 | I181: 0.00 | J181: 0.00 | K181: 0.00 | L181: 0.00 | M181: 0.00 | N181: 0.00 | O181: 0%
A182: 2 | B182: 3 | C182: 2 | D182: 1 | E182: `01 | F182: Hilados, fibras y telas | N182: 0.00 | O182: 0%
A183: 2 | B183: 3 | C183: 2 | D183: 2 | F183: Acabados textiles | G183: =+G184 -> 0.00 | H183: =+H184 -> 0.00 | I183: 0.00 | J183: 0.00 | K183: 0.00 | L183: 0.00 | M183: 0.00 | N183: 0.00 | O183: 0%
A184: 2 | B184: 3 | C184: 2 | D184: 2 | E184: `01 | F184: Acabados textiles | N184: 0.00 | O184: 0%
A185: 2 | B185: 3 | C185: 2 | D185: 3 | F185: Prendas de vestir | G185: =+G186 -> 0.00 | H185: =+H186 -> 0.00 | I185: 0.00 | J185: 0.00 | K185: 0.00 | L185: 0.00 | M185: 2,793,648.81 | N185: 2,793,648.81 | O185: 0%
A186: 2 | B186: 3 | C186: 2 | D186: 3 | E186: `01 | F186: Prendas de vestir | M186: 2,793,648.81 | N186: 2,793,648.81 | O186: 0%
A187: 2 | B187: 3 | C187: 2 | D187: 4 | F187: Calzados | G187: =+G188 -> 0.00 | H187: =+H188 -> 0.00 | I187: 0.00 | J187: 0.00 | K187: 0.00 | L187: 0.00 | M187: 0.00 | N187: 0.00 | O187: 0%
A188: 2 | B188: 3 | C188: 2 | D188: 4 | E188: `01 | F188: Calzados | N188: 0.00 | O188: 0%
A189: 2 | B189: 3 | C189: 3 | F189: Productos de Papel, Cartón e Impresos | G189: =+G190+G192+G194+G196 -> 0.00 | H189: =+H190+H192+H194+H196 -> 0.00 | I189: 0.00 | J189: 0.00 | K189: 0.00 | L189: 0.00 | M189: 3,036,800.00 | N189: 3,036,800.00 | O189: 0%
A190: 2 | B190: 3 | C190: 3 | D190: 1 | F190: Papel de escritorio | G190: =G191 -> 0.00 | H190: =H191 -> 0.00 | I190: 0.00 | J190: 0.00 | K190: 0.00 | L190: 0.00 | M190: 0.00 | N190: 0.00 | O190: 0%
A191: 2 | B191: 3 | C191: 3 | D191: 1 | E191: `01 | F191: Papel de escritorio | N191: 0.00 | O191: 0%
A192: 2 | B192: 3 | C192: 3 | D192: 2 | F192: Productos de papel y cartón | G192: =+G193 -> 0.00 | H192: =+H193 -> 0.00 | I192: 0.00 | J192: 0.00 | K192: 0.00 | L192: 0.00 | M192: 0.00 | N192: 0.00 | O192: 0%
A193: 2 | B193: 3 | C193: 3 | D193: 2 | E193: `01 | F193: Productos de papel y cartón | N193: 0.00 | O193: 0%
A194: 2 | B194: 3 | C194: 3 | D194: 3 | F194: Productos de artes gráficas | G194: =+G195 -> 0.00 | H194: =+H195 -> 0.00 | I194: 0.00 | J194: 0.00 | K194: 0.00 | L194: 0.00 | M194: 3,036,800.00 | N194: 3,036,800.00 | O194: 0%
A195: 2 | B195: 3 | C195: 3 | D195: 3 | E195: `01 | F195: Productos de artes gráficas | M195: 3,036,800.00 | N195: 3,036,800.00 | O195: 0%
A196: 2 | B196: 3 | C196: 3 | D196: 4 | F196: Libros, revistas y periódicos | G196: =+G197 -> 0.00 | H196: =+H197 -> 0.00 | I196: 0.00 | J196: 0.00 | K196: 0.00 | L196: 0.00 | M196: 0.00 | N196: =+G196+H196+I196+J196+K196+L196+M196 -> 0.00 | O196: 0%
A197: 2 | B197: 3 | C197: 3 | D197: 4 | E197: `01 | F197: Libros, revistas y periódicos | N197: 0.00 | O197: 0%
A198: 2 | B198: 3 | C198: 4 | F198: Productos Farmacéuticos | G198: =+G199 -> 695,681.82 | H198: =+H199 -> 10,435,227.32 | I198: 55,654,545.72 | J198: 0.00 | K198: 2,782,727.29 | L198: 0.00 | M198: 0.00 | N198: 69,568,182.15 | O198: 4%
A199: 2 | B199: 3 | C199: 4 | D199: 1 | F199: Productos medicinales para uso humano | G199: =+G200 -> 695,681.82 | H199: 10,435,227.32 | I199: 55,654,545.72 | J199: 0.00 | K199: 2,782,727.29 | L199: 0.00 | M199: 0.00 | N199: 69,568,182.15 | O199: 4%
A200: 2 | B200: 3 | C200: 4 | D200: 1 | E200: `01 | F200: Productos medicinales para uso humano | G200: =69568182.15*0.01 -> 695,681.82 | H200: =69568182.15*0.15 -> 10,435,227.32 | I200: =69568182.15*0.8 -> 55,654,545.72 | K200: 2,782,727.29 | N200: 69,568,182.15 | O200: 4%
... 128 more rows

Sheet PPNE5
A1: =+PPNE1!B1 -> Plan Operativo Anual
A2: Servicio Nacional de Salud
A3: Dirección de Planificación y Desarrollo
A4: Consolidado Presupuesto Estimado de Ingresos y Gastos Nivel Especializado por Fuente de Financiamiento
A5: =+PPNE1!C5 -> 2026
A6: Servicio Regional de Salud: | F6: =+PPNE1!B6 -> Cibao Norte
A7: Establecimiento: | F7: =+PPNE1!B7 -> 0
A8: Estimación de Ingresos
A9: Anticipos Financieros | G9: =+PPNE3!F16 -> 0.00
A10: Venta de Servicios y Otros Ingresos | G10: =+PPNE3!F25 -> 93,121,626.87
A11: Aportes SNS Nómina | G11: =+PPNE3!F15 -> 0.00
A12: Otros Aportes | G12: =+PPNE3!F9+PPNE3!F17+PPNE3!F21+PPNE3!F22 -> 0.00
A13: Transferencias Corrientes | G13: =+PPNE3!F18 -> 1,650,000,000.00
A14: Total Ingresos RD$ | G14: =SUM(G9:G13) -> 1,743,121,626.87
A15: Estimación de Gastos
A16: Tipo | B16: Objeto | C16: Cuenta | D16: Sub-Cuenta | E16: Auxiliar | F16: Descripción Gasto por Cuenta | G16: Anticipos Financieros / Transferencias | H16: Venta de Servicios | I16: Nómina | J16: Total RD$ | K16: %
A18: 2 | F18: Egresos | G18: =+G19+G67+G170+G254+G270 -> 1,649,999,999.99 | H18: =+H19+H67+H170+H254+H270+H323 -> 93,121,626.88 | I18: =+I19+I67+I170+I254+I270+I323 -> 0.00 | J18: =+J19+J67+J170+J254+J270 -> 1,743,121,626.87 | K18: =IFERROR(J18/$J$18*100,"0.00")/100 -> 100%
A19: 2 | B19: 1 | F19: Servicios Personales | G19: =+G20+G42+G54+G58 -> 1,250,210,336.62 | H19: =+H20+H42+H54+H58 -> 0.00 | I19: =+I20+I47+I63+I70+I78 -> 0.00 | J19: =+G19+H19 -> 1,250,210,336.62 | K19: 72%
A20: 2 | B20: 1 | C20: 1 | F20: Remuneraciones | G20: =+G21+G26+G33+G35+G37 -> 1,018,270,621.39 | H20: =+H21+H28+H36+H38+H40+H45 -> 0.00 | I20: =+I21+I28+I36+I38+I40+I45 -> 0.00 | J20: =+G20+H20 -> 1,018,270,621.39 | K20: 58%
A21: 2 | B21: 1 | C21: 1 | D21: 1 | F21: Remuneraciones al personal fijo | G21: =SUM(G22:G25) -> 812,699,639.34 | H21: =SUM(H22:H27) -> 0.00 | I21: =SUM(I22:I27) -> 0.00 | J21: 812,699,639.34 | K21: 47%
A22: 2 | B22: 1 | C22: 1 | D22: 1 | E22: `01 | F22: Sueldos fijos | G22: 812,699,639.34 | J22: 812,699,639.34 | K22: 47%
A23: 2 | B23: 1 | C23: 1 | D23: 1 | E23: `02 | F23: Sueldos a medicos | J23: 0.00 | K23: 0%
A24: 2 | B24: 1 | C24: 1 | D24: 1 | E24: `05 | F24: Incentivos y escalafón | J24: 0.00 | K24: 0%
A25: 2 | B25: 1 | C25: 1 | D25: 1 | E25: `06 | F25: Nuevas plazas a medicos | J25: 0.00 | K25: 0%
A26: 2 | B26: 1 | C26: 1 | D26: 2 | F26: Remuneraciones al personal con carácter transitorio | G26: =SUM(G27:G32) -> 140,071,938.09 | H26: =SUM(H27:H32) -> 0.00 | I26: 0.00 | J26: 140,071,938.09 | K26: 8%
A27: 2 | B27: 1 | C27: 1 | D27: 2 | E27: `03 | F27: Suplencias | J27: 0.00 | K27: 0%
A28: 2 | B28: 1 | C28: 1 | D28: 2 | E28: `05 | F28: Sueldo al personal nominal en período probatorio | J28: 0.00 | K28: 0%
A29: 2 | B29: 1 | C29: 1 | D29: 2 | E29: `06 | F29: Jornales | J29: 0.00 | K29: 0%
A30: 2 | B30: 1 | C30: 1 | D30: 2 | E30: `08 | F30: Empleados temporales | G30: 140,071,938.09 | J30: 140,071,938.09 | K30: 8%
A31: 2 | B31: 1 | C31: 1 | D31: 2 | E31: `09 | F31: Personal de carácter eventual | J31: 0.00 | K31: 0%
A32: 2 | B32: 1 | C32: 1 | D32: 2 | E32: `11 | F32: Interinato | J32: 0.00 | K32: 0%
A33: 2 | B33: 1 | C33: 1 | D33: 3 | F33: Sueldos al personal fijo en trámite de pensiones | G33: =G34 -> 0.00 | H33: =H34 -> 0.00 | I33: 0.00 | J33: 0.00 | K33: 0%
A34: 2 | B34: 1 | C34: 1 | D34: 3 | E34: `01 | F34: Sueldos al personal fijo en trámite de pensiones | J34: 0.00 | K34: 0%
A35: 2 | B35: 1 | C35: 1 | D35: 4 | F35: Sueldo anual No. 13 | G35: =G36 -> 63,984,812.73 | H35: =H36 -> 0.00 | I35: 0.00 | J35: 63,984,812.73 | K35: 4%
A36: 2 | B36: 1 | C36: 1 | D36: 4 | E36: `01 | F36: Sueldo anual No. 13 | G36: 63,984,812.73 | J36: 63,984,812.73 | K36: 4%
A37: 2 | B37: 1 | C37: 1 | D37: 5 | F37: Prestacianes economicas | G37: =SUM(G38:G41) -> 1,514,231.23 | H37: =SUM(H38:H41) -> 0.00 | I37: 0.00 | J37: 1,514,231.23 | K37: 0%
A38: 2 | B38: 1 | C38: 1 | D38: 5 | E38: `01 | F38: Prestacianes economicas | J38: 0.00 | K38: 0%
A39: 2 | B39: 1 | C39: 1 | D39: 5 | E39: `02 | F39: Pago de porcentaje por desvinculación de cargo | J39: 0.00 | K39: 0%
A40: 2 | B40: 1 | C40: 1 | D40: 5 | E40: `03 | F40: Prestacion laboral por desvinculación | G40: 907,400.00 | J40: 907,400.00 | K40: 0%
A41: 2 | B41: 1 | C41: 1 | D41: 5 | E41: `04 | F41: Proporción de vacaciones no disfrutadas | G41: 606,831.23 | J41: 606,831.23 | K41: 0%
A42: 2 | B42: 1 | C42: 2 | F42: Sobresueldos | G42: =+G43+G45 -> 118,449,123.82 | H42: =+H43+H45 -> 0.00 | I42: 0.00 | J42: 118,449,123.82 | K42: 7%
A43: 2 | B43: 1 | C43: 2 | D43: 1 | F43: Primas por antigüedad | G43: =G44 -> 34,558,724.88 | H43: =H44 -> 0.00 | I43: 0.00 | J43: 34,558,724.88 | K43: 2%
A44: 2 | B44: 1 | C44: 2 | D44: 1 | E44: `01 | F44: Primas por antigüedad | G44: 34,558,724.88 | J44: 34,558,724.88 | K44: 2%
A45: 2 | B45: 1 | C45: 2 | D45: 2 | F45: Compensación | G45: =SUM(G46:G53) -> 83,890,398.94 | H45: =SUM(H46:H53) -> 0.00 | I45: 0.00 | J45: 83,890,398.94 | K45: 5%
A46: 2 | B46: 1 | C46: 2 | D46: 2 | E46: `03 | F46: Pago de horas extraordinarias, Horas extraordinarias fin de año (Reglamento 523-09) | J46: 0.00 | K46: 0%
A47: 2 | B47: 1 | C47: 2 | D47: 2 | E47: `04 | F47: Prima de transporte | J47: 0.00 | K47: 0%
A48: 2 | B48: 1 | C48: 2 | D48: 2 | E48: `05 | F48: Compensación servicios de Seguridad | G48: 540,000.00 | J48: 540,000.00 | K48: 0%
A49: 2 | B49: 1 | C49: 2 | D49: 2 | E49: `06 | F49: Incentivo por rendimiento individual | G49: 9,283,645.00 | J49: 9,283,645.00 | K49: 1%
A50: 2 | B50: 1 | C50: 2 | D50: 2 | E50: `07 | F50: Compensación por distancia | J50: 0.00 | K50: 0%
A51: 2 | B51: 1 | C51: 2 | D51: 2 | E51: `08 | F51: Compensaciones especiales | G51: 4,050,399.00 | J51: 4,050,399.00 | K51: 0%
A52: 2 | B52: 1 | C52: 2 | D52: 2 | E52: `09 | F52: Bono por desempeño | G52: 462,506.00 | J52: 462,506.00 | K52: 0%
A53: 2 | B53: 1 | C53: 2 | D53: 2 | E53: `10 | F53: Compensación por cumplimiento de indicadores | G53: 69,553,848.94 | J53: 69,553,848.94 | K53: 4%
A54: 2 | B54: 1 | C54: 3 | F54: Dietas y Gastos de Representación | G54: =+G55 -> 0.00 | H54: =+H55 -> 0.00 | I54: 0.00 | J54: 0.00 | K54: 0%
A55: 2 | B55: 1 | C55: 3 | D55: 2 | F55: Gastos de representación | G55: =SUM(G56:G57) -> 0.00 | H55: =SUM(H56:H57) -> 0.00 | I55: 0.00 | J55: 0.00 | K55: 0%
A56: 2 | B56: 1 | C56: 3 | D56: 2 | E56: `01 | F56: Gastos de representación en el país | J56: 0.00 | K56: 0%
A57: 2 | B57: 1 | C57: 3 | D57: 2 | E57: `02 | F57: Gastos de representación en el exterior | J57: 0.00 | K57: 0%
A58: 2 | B58: 1 | C58: 5 | F58: Contribuciones a la Seguridad Social y Riesgo Laboral | G58: =G59+G61+G63+G65 -> 113,490,591.41 | H58: =H59+H61+H63+H65 -> 0.00 | I58: 0.00 | J58: 113,490,591.41 | K58: 7%
A59: 2 | B59: 1 | C59: 5 | D59: 1 | F59: Contribuciones al seguro de salud | G59: =G60 -> 52,327,390.36 | H59: =H60 -> 0.00 | I59: 0.00 | J59: 52,327,390.36 | K59: 3%
A60: 2 | B60: 1 | C60: 5 | D60: 1 | E60: `01 | F60: Contribuciones al seguro de salud | G60: 52,327,390.36 | J60: 52,327,390.36 | K60: 3%
A61: 2 | B61: 1 | C61: 5 | D61: 2 | F61: Contribuciones al seguro de pensiones | G61: =G62 -> 52,327,390.36 | H61: =H62 -> 0.00 | I61: =I62 -> 0.00 | J61: 52,327,390.36 | K61: 3%
A62: 2 | B62: 1 | C62: 5 | D62: 2 | E62: `01 | F62: Contribuciones al seguro de pensiones | G62: 52,327,390.36 | J62: 52,327,390.36 | K62: 3%
A63: 2 | B63: 1 | C63: 5 | D63: 3 | F63: Contribuciones al seguro de riesgo laboral | G63: =G64 -> 8,835,810.69 | H63: =H64 -> 0.00 | I63: 0.00 | J63: 8,835,810.69 | K63: 1%
A64: 2 | B64: 1 | C64: 5 | D64: 3 | E64: `01 | F64: Contribuciones al seguro de riesgo laboral | G64: 8,835,810.69 | J64: 8,835,810.69 | K64: 1%
A65: 2 | B65: 1 | C65: 5 | D65: 4 | F65: Contribuciones al plan de retiro complementario | G65: =G66 -> 0.00 | H65: =H66 -> 0.00 | I65: 0.00 | J65: 0.00 | K65: 0%
A66: 2 | B66: 1 | C66: 5 | D66: 4 | E66: `01 | F66: Contribuciones al plan de retiro complementario | J66: 0.00 | K66: 0%
A67: 2 | B67: 2 | F67: Contratacion de servicios | G67: =+G68+G82+G87+G92+G99+G116+G125+G143 -> 47,730,529.36 | H67: =+H68+H82+H87+H92+H99+H116+H125+H143+H167 -> 24,952,182.49 | I67: =+I68+I82+I87+I92+I99+I116+I125+I143 -> 0.00 | J67: 72,682,711.85 | K67: 4%
A68: 2 | B68: 2 | C68: 1 | F68: Servicios Básicos | G68: =+G69+G71+G73+G75+G78+G80 -> 0.00 | H68: =+H69+H71+H73+H75+H78+H80 -> 3,804,000.00 | I68: =+I69+I71+I73+I75+I78+I80 -> 0.00 | J68: 3,804,000.00 | K68: 0%
A69: 2 | B69: 2 | C69: 1 | D69: 2 | F69: Servicios telefónico de larga distancia | G69: =G70 -> 0.00 | H69: =H70 -> 0.00 | I69: 0.00 | J69: 0.00 | K69: 0%
A70: 2 | B70: 2 | C70: 1 | D70: 2 | E70: `01 | F70: Servicios telefónico de larga distancia | J70: 0.00 | K70: 0%
A71: 2 | B71: 2 | C71: 1 | D71: 3 | F71: Teléfono local | G71: =G72 -> 0.00 | H71: =H72 -> 2,724,000.00 | I71: 0.00 | J71: 2,724,000.00 | K71: 0%
A72: 2 | B72: 2 | C72: 1 | D72: 3 | E72: `01 | F72: Teléfono local | H72: 2,724,000.00 | J72: 2,724,000.00 | K72: 0%
A73: 2 | B73: 2 | C73: 1 | D73: 5 | F73: Servicio de internet y televisión por cable | G73: =G74 -> 0.00 | H73: =H74 -> 0.00 | I73: 0.00 | J73: 0.00 | K73: 0%
A74: 2 | B74: 2 | C74: 1 | D74: 5 | E74: `01 | F74: Servicio de internet y televisión por cable | J74: 0.00 | K74: 0%
A75: 2 | B75: 2 | C75: 1 | D75: 6 | F75: Electricidad | G75: =G76+G77 -> 0.00 | H75: =H76+H77 -> 0.00 | I75: 0.00 | J75: 0.00 | K75: 0%
A76: 2 | B76: 2 | C76: 1 | D76: 6 | E76: `01 | F76: Energía eléctrica | J76: 0.00 | K76: 0%
A77: 2 | B77: 2 | C77: 1 | D77: 6 | E77: `02 | F77: Electricidad no cortable | J77: 0.00 | K77: 0%
A78: 2 | B78: 2 | C78: 1 | D78: 7 | F78: Agua | G78: =G79 -> 0.00 | H78: =H79 -> 780,000.00 | I78: 0.00 | J78: 780,000.00 | K78: 0%
A79: 2 | B79: 2 | C79: 1 | D79: 7 | E79: `01 | F79: Agua | H79: 780,000.00 | J79: 780,000.00 | K79: 0%
A80: 2 | B80: 2 | C80: 1 | D80: 8 | F80: Recolección de residuos sólidos | G80: =G81 -> 0.00 | H80: =H81 -> 300,000.00 | I80: 0.00 | J80: 300,000.00 | K80: 0%
A81: 2 | B81: 2 | C81: 1 | D81: 8 | E81: `01 | F81: Recolección de residuos sólidos | H81: 300,000.00 | J81: 300,000.00 | K81: 0%
A82: 2 | B82: 2 | C82: 2 | F82: Publicidad Impresión y Encuadernación | G82: =+G83+G85 -> 0.00 | H82: =+H83+H85 -> 0.00 | I82: =+I83+I85 -> 0.00 | J82: 0.00 | K82: =IFERROR(J82/$J$18*100,"0.00")/100 -> 0%
A83: 2 | B83: 2 | C83: 2 | D83: 1 | F83: Publicidad y propaganda | G83: =G84 -> 0.00 | H83: =H84 -> 0.00 | I83: 0.00 | J83: 0.00 | K83: 0%
A84: 2 | B84: 2 | C84: 2 | D84: 1 | E84: `01 | F84: Publicidad y propaganda | J84: =+G84+H84 -> 0.00 | K84: 0%
A85: 2 | B85: 2 | C85: 2 | D85: 2 | F85: Impresión y encuadernación | G85: =G86 -> 0.00 | H85: =H86 -> 0.00 | I85: =I86 -> 0.00 | J85: 0.00 | K85: 0%
A86: 2 | B86: 2 | C86: 2 | D86: 2 | E86: `01 | F86: Impresión y encuadernación | J86: 0.00 | K86: 0%
A87: 2 | B87: 2 | C87: 3 | F87: Viáticos | G87: =+G88+G90 -> 0.00 | H87: =+H88+H90 -> 0.00 | I87: =+I88+I90 -> 0.00 | J87: 0.00 | K87: 0%
A88: 2 | B88: 2 | C88: 3 | D88: 1 | F88: Viáticos dentro del país | G88: =G89 -> 0.00 | H88: =H89 -> 0.00 | I88: 0.00 | J88: 0.00 | K88: 0%
A89: 2 | B89: 2 | C89: 3 | D89: 1 | E89: `01 | F89: Viáticos dentro del país | J89: 0.00 | K89: 0%
A90: 2 | B90: 2 | C90: 3 | D90: 2 | F90: Viáticos fuera del país | G90: =G91 -> 0.00 | H90: =H91 -> 0.00 | I90: 0.00 | J90: 0.00 | K90: 0%
A91: 2 | B91: 2 | C91: 3 | D91: 2 | E91: `01 | F91: Viáticos fuera del país | J91: 0.00 | K91: 0%
A92: 2 | B92: 2 | C92: 4 | F92: Transporte y Alamcenaje | G92: =+G93+G95+G97 -> 0.00 | H92: =+H93+H95+H97 -> 708,803.54 | I92: =+I93+I95+I97 -> 0.00 | J92: 708,803.54 | K92: 0%
A93: 2 | B93: 2 | C93: 4 | D93: 1 | F93: Pasajes y gastos de transporte | G93: =G94 -> 0.00 | H93: =H94 -> 0.00 | I93: 0.00 | J93: 0.00 | K93: 0%
A94: 2 | B94: 2 | C94: 4 | D94: 1 | E94: `01 | F94: Pasajes y gastos de transporte | J94: 0.00 | K94: 0%
A95: 2 | B95: 2 | C95: 4 | D95: 2 | F95: Fletes | G95: =G96 -> 0.00 | H95: =H96 -> 708,803.54 | I95: 0.00 | J95: 708,803.54 | K95: 0%
A96: 2 | B96: 2 | C96: 4 | D96: 2 | E96: `01 | F96: Fletes | H96: 708,803.54 | J96: 708,803.54 | K96: 0%
A97: 2 | B97: 2 | C97: 4 | D97: 4 | F97: Peaje | G97: =G98 -> 0.00 | H97: =H98 -> 0.00 | I97: 0.00 | J97: 0.00 | K97: 0%
A98: 2 | B98: 2 | C98: 4 | D98: 4 | E98: `01 | F98: Peaje | J98: 0.00 | K98: 0%
A99: 2 | B99: 2 | C99: 5 | F99: Alquileres y Rentas | G99: =+G100+G102+G104+G110+G112 -> 0.00 | H99: =+H100+H102+H104+H110+H112 -> 4,200,000.00 | I99: 0.00 | J99: 4,200,000.00 | K99: 0%
A100: 2 | B100: 2 | C100: 5 | D100: 1 | F100: Alquilleres y rentas de edificios y locales | G100: =G101 -> 0.00 | H100: =H101 -> 0.00 | I100: 0.00 | J100: 0.00 | K100: 0%
A101: 2 | B101: 2 | C101: 5 | D101: 1 | E101: `01 | F101: Alquilleres y rentas de edificios y locales | J101: 0.00 | K101: 0%
A102: 2 | B102: 2 | C102: 5 | D102: 2 | F102: Alquileres de máquinas y equipos de producción | G102: =G103 -> 0.00 | H102: =H103 -> 0.00 | I102: 0.00 | J102: 0.00 | K102: 0%
A103: 2 | B103: 2 | C103: 5 | D103: 2 | E103: `01 | F103: Alquileres de máquinas y equipos de producción | J103: 0.00 | K103: 0%
A104: 2 | B104: 2 | C104: 5 | D104: 3 | F104: Alquileres de equipos | G104: =SUM(G105:G109) -> 0.00 | H104: =SUM(H105:H109) -> 4,200,000.00 | I104: 0.00 | J104: 4,200,000.00 | K104: 0%
A105: 2 | B105: 2 | C105: 5 | D105: 3 | E105: `01 | F105: Alquiler de equipo educacional | H105: 4,200,000.00 | J105: 4,200,000.00 | K105: 0%
A106: 2 | B106: 2 | C106: 5 | D106: 3 | E106: `02 | F106: Alquiler de equipo para computación | J106: 0.00 | K106: 0%
A107: 2 | B107: 2 | C107: 5 | D107: 3 | E107: `03 | F107: Alquiler de equipo de comunicación | J107: 0.00 | K107: 0%
A108: 2 | B108: 2 | C108: 5 | D108: 3 | E108: `04 | F108: Alquiler de equipo de oficina y muebles | J108: 0.00 | K108: 0%
A109: 2 | B109: 2 | C109: 5 | D109: 3 | E109: `05 | F109: Alquiler de equipos sanitarios y de laboratorios | J109: 0.00 | K109: 0%
A110: 2 | B110: 2 | C110: 5 | D110: 4 | F110: Alquileres de equipos de transporte, tracción y elevación | G110: =G111 -> 0.00 | H110: =H111 -> 0.00 | I110: 0.00 | J110: 0.00 | K110: 0%
A111: 2 | B111: 2 | C111: 5 | D111: 4 | E111: `01 | F111: Alquileres de equipos de transporte, tracción y elevación | J111: 0.00 | K111: 0%
A112: 2 | B112: 2 | C112: 5 | D112: 8 | F112: Otros alquileres | G112: =G113 -> 0.00 | H112: =H113 -> 0.00 | I112: =I113 -> 0.00 | J112: 0.00 | K112: 0%
A113: 2 | B113: 2 | C113: 5 | D113: 8 | E113: `01 | F113: Otros alquileres | J113: 0.00 | K113: 0%
A114: 2 | B114: 2 | C114: 5 | D114: 9 | F114: Derecho de uso | G114: =+G115 -> 0.00 | H114: =+H115 -> 0.00 | I114: 0.00 | J114: 0.00 | K114: 0%
A115: 2 | B115: 2 | C115: 5 | D115: 9 | E115: `01 | F115: Licencias informaticas | J115: 0.00 | K115: 0%
A116: 2 | B116: 2 | C116: 6 | F116: Seguros | G116: =+G117+G119+G121+G123 -> 0.00 | H116: =+H117+H119+H121+H123 -> 0.00 | I116: =+I117+I119+I121+I123 -> 0.00 | J116: 0.00 | K116: 0%
A117: 2 | B117: 2 | C117: 6 | D117: 1 | F117: Seguro de bienes inmuebles e infraestructura | G117: =G118 -> 0.00 | H117: =H118 -> 0.00 | I117: 0.00 | J117: 0.00 | K117: 0%
A118: 2 | B118: 2 | C118: 6 | D118: 1 | E118: `01 | F118: Seguro de bienes inmuebles e infraestructura | J118: 0.00 | K118: 0%
A119: 2 | B119: 2 | C119: 6 | D119: 2 | F119: Seguro de bienes muebles | G119: =G120 -> 0.00 | H119: =H120 -> 0.00 | I119: 0.00 | J119: 0.00 | K119: 0%
A120: 2 | B120: 2 | C120: 6 | D120: 2 | E120: `01 | F120: Seguro de bienes muebles | J120: 0.00 | K120: 0%
A121: 2 | B121: 2 | C121: 6 | D121: 3 | F121: Seguros de personas | G121: =G122 -> 0.00 | H121: =H122 -> 0.00 | I121: 0.00 | J121: 0.00 | K121: 0%
A122: 2 | B122: 2 | C122: 6 | D122: 3 | E122: `01 | F122: Seguros de personas | J122: 0.00 | K122: 0%
A123: 2 | B123: 2 | C123: 6 | D123: 9 | F123: Otros seguros | G123: =+G124 -> 0.00 | H123: =+H124 -> 0.00 | I123: 0.00 | J123: 0.00 | K123: 0%
A124: 2 | B124: 2 | C124: 6 | D124: 9 | E124: `01 | F124: Otros seguros | J124: 0.00 | K124: 0%
A125: 2 | B125: 2 | C125: 7 | F125: Servicios de Conservación, Reparaciones Menores e Instalaciones Temporales | G125: =+G126+G131+G141 -> 47,730,529.36 | H125: =+H126+H131+H141 -> 11,427,297.61 | I125: =+I126+I131+I141 -> 0.00 | J125: 59,157,826.97 | K125: 3%
A126: 2 | B126: 2 | C126: 7 | D126: 1 | F126: Contratación de mantenimiento y reparaciones menores | G126: =SUM(G127:G130) -> 4,200,000.00 | H126: =SUM(H127:H130) -> 5,840,000.00 | I126: 0.00 | J126: 10,040,000.00 | K126: 1%
A127: 2 | B127: 2 | C127: 7 | D127: 1 | E127: `01 | F127: Mantenimiento y reparaciones menores en edificaciones | G127: 4,200,000.00 | H127: 5,840,000.00 | J127: 10,040,000.00 | K127: 1%
A128: 2 | B128: 2 | C128: 7 | D128: 1 | E128: `06 | F128: Mantenimiento y reparación de Instalaciones eléctricas | J128: 0.00 | K128: 0%
A129: 2 | B129: 2 | C129: 7 | D129: 1 | E129: `07 | F129: Mantenimiento y reparación, servicios de pintura y sus derivados | J129: 0.00 | K129: 0%
A130: 2 | B130: 2 | C130: 7 | D130: 1 | E130: `99 | F130: Otros mantenimientos, reparaciones y sus derivados, no identificados precedentamente. | J130: 0.00 | K130: 0%
A131: 2 | B131: 2 | C131: 7 | D131: 2 | F131: Mantenimientos y reparacion de maquinarias y equipos | G131: =SUM(G132:G140) -> 43,530,529.36 | H131: =SUM(H132:H140) -> 5,587,297.61 | I131: 0.00 | J131: 49,117,826.97 | K131: 3%
A132: 2 | B132: 2 | C132: 7 | D132: 2 | E132: `01 | F132: Mantenimiento y reparación de mobiliarios y equipos de oficina | G132: 12,693,529.36 | J132: 12,693,529.36 | K132: 1%
A133: 2 | B133: 2 | C133: 7 | D133: 2 | E133: `02 | F133: Mantenimiento y reparación de equipo tecnologia e informacion | J133: 0.00 | K133: 0%
A134: 2 | B134: 2 | C134: 7 | D134: 2 | E134: `03 | F134: Mantenimiento y reparación de equipo de educacionales, deportivos y recreativos | J134: 0.00 | K134: 0%
A135: 2 | B135: 2 | C135: 7 | D135: 2 | E135: `04 | F135: Mantenimiento y reparación de equipos medicos, sanitarios y de laboratorio | G135: 18,937,000.00 | H135: 5,587,297.61 | J135: 24,524,297.61 | K135: 1%
A136: 2 | B136: 2 | C136: 7 | D136: 2 | E136: `05 | F136: Mantenimiento y reparación de equipos de comunicación | J136: 0.00 | K136: 0%
A137: 2 | B137: 2 | C137: 7 | D137: 2 | E137: `06 | F137: Mantenimiento y reparación de equipos de transporte, tracción y elevación | G137: 5,600,000.00 | J137: 5,600,000.00 | K137: 0%
A138: 2 | B138: 2 | C138: 7 | D138: 2 | E138: `07 | F138: Mantenimiento y reparación de equipos industriales y producción | G138: 300,000.00 | J138: 300,000.00 | K138: 0%
A139: 2 | B139: 2 | C139: 7 | D139: 2 | E139: `08 | F139: Servicios de mantenimiento, reparación, desmonte e instalación | G139: 6,000,000.00 | J139: 6,000,000.00 | K139: 0%
A140: 2 | B140: 2 | C140: 7 | D140: 2 | E140: `99 | F140: Otros servicios de mantenimiento, reparacion de maquinaria y equipos no identicados en los conceptos anteriores | J140: 0.00 | K140: 0%
A141: 2 | B141: 2 | C141: 7 | D141: 3 | F141: Instalaciones temporales | G141: =G142 -> 0.00 | H141: =H142 -> 0.00 | I141: 0.00 | J141: 0.00 | K141: 0%
A142: 2 | B142: 2 | C142: 7 | D142: 3 | E142: `01 | F142: Instalaciones temporales | J142: 0.00 | K142: 0%
A143: 2 | B143: 2 | C143: 8 | F143: Otros Servicios No Incluidos en conceptos anteriores | G143: =+G144+G146+G148+G150+G154+G157+G164 -> 0.00 | H143: =+H144+H146+H148+H150+H154+H157+H164 -> 4,812,081.34 | I143: =+I144+I146+I148+I150+I154+I157+I164 -> 0.00 | J143: 4,812,081.34 | K143: 0%
A144: 2 | B144: 2 | C144: 8 | D144: 1 | F144: Gastos y representación judiciales | G144: =G145 -> 0.00 | H144: =H145 -> 0.00 | I144: 0.00 | J144: 0.00 | K144: 0%
A145: 2 | B145: 2 | C145: 8 | D145: 1 | E145: `01 | F145: Gastos y representación judiciales | J145: 0.00 | K145: 0%
A146: 2 | B146: 2 | C146: 8 | D146: 2 | F146: Comisiones y gastos | G146: =G147 -> 0.00 | H146: =H147 -> 156,000.00 | I146: 0.00 | J146: 156,000.00 | K146: =IFERROR(J146/$J$18*100,"0.00")/100 -> 0%
A147: 2 | B147: 2 | C147: 8 | D147: 2 | E147: `01 | F147: Comisiones y gastos | H147: 156,000.00 | J147: 156,000.00 | K147: 0%
A148: 2 | B148: 2 | C148: 8 | D148: 4 | F148: Servicios funerarios y gastos conexos | G148: =G149 -> 0.00 | H148: =H149 -> 0.00 | I148: 0.00 | J148: =+G148+H148 -> 0.00 | K148: 0%
A149: 2 | B149: 2 | C149: 8 | D149: 4 | E149: `01 | F149: Servicios funerarios y gastos conexos | J149: 0.00 | K149: 0%
A150: 2 | B150: 2 | C150: 8 | D150: 5 | F150: Fumigación, lavandería, limpieza e higiene | G150: =SUM(G151:G153) -> 0.00 | H150: =SUM(H151:H153) -> 0.00 | I150: 0.00 | J150: 0.00 | K150: 0%
A151: 2 | B151: 2 | C151: 8 | D151: 5 | E151: `01 | F151: Fumigación | J151: 0.00 | K151: 0%
A152: 2 | B152: 2 | C152: 8 | D152: 5 | E152: `02 | F152: Lavandería | J152: 0.00 | K152: 0%
A153: 2 | B153: 2 | C153: 8 | D153: 5 | E153: `03 | F153: Limpieza e higiene | J153: 0.00 | K153: 0%
A154: 2 | B154: 2 | C154: 8 | D154: 6 | F154: Servicio de organización de eventos, festividades y actividades de entretenimiento | G154: =SUM(G155:G156) -> 0.00 | H154: =SUM(H155:H156) -> 4,656,081.34 | I154: 0.00 | J154: 4,656,081.34 | K154: 0%
A155: 2 | B155: 2 | C155: 8 | D155: 6 | E155: `01 | F155: Eventos generales | H155: 4,656,081.34 | J155: 4,656,081.34 | K155: 0%
A156: 2 | B156: 2 | C156: 8 | D156: 6 | E156: `02 | F156: Festividades | J156: 0.00 | K156: 0%
A157: 2 | B157: 2 | C157: 8 | D157: 7 | F157: Servicios Técnicos y Profesionales | G157: =SUM(G158:G163) -> 0.00 | H157: =+H158 -> 0.00 | I157: =+I158 -> 0.00 | J157: 0.00 | K157: 0%
A158: 2 | B158: 2 | C158: 8 | D158: 7 | E158: `01 | F158: Servicios Técnicos y Profesionales | J158: 0.00 | K158: 0%
A159: 2 | B159: 2 | C159: 8 | D159: 7 | E159: `02 | F159: Servicios jurídicos | J159: 0.00 | K159: 0%
A160: 2 | B160: 2 | C160: 8 | D160: 7 | E160: `03 | F160: Servicios de contabilidad y auditoría | J160: 0.00 | K160: 0%
A161: 2 | B161: 2 | C161: 8 | D161: 7 | E161: `04 | F161: Servicios de capacitación | J161: 0.00 | K161: 0%
A162: 2 | B162: 2 | C162: 8 | D162: 7 | E162: `05 | F162: Servicios de informática y sistemas computarizados | J162: 0.00 | K162: 0%
A163: 2 | B163: 2 | C163: 8 | D163: 7 | E163: `06 | F163: Otros servicios técnicos profesionales | J163: 0.00 | K163: 0%
A164: 2 | B164: 2 | C164: 8 | D164: 8 | F164: Impuestos, derechos y tasas | G164: =SUM(G165:G166) -> 0.00 | H164: =SUM(H165:H166) -> 0.00 | I164: 0.00 | J164: 0.00 | K164: 0%
A165: 2 | B165: 2 | C165: 8 | D165: 8 | E165: `01 | F165: Impuestos | J165: 0.00 | K165: 0%
A166: 2 | B166: 2 | C166: 8 | D166: 8 | E166: `02 | F166: Derechos | J166: 0.00 | K166: 0%
A167: 2 | B167: 2 | C167: 9 | D167: 2 | F167: Servicios de alimentación | G167: =+G168+G169 -> 0.00 | H167: =+H168+H169 -> 0.00 | I167: 0.00 | J167: 0.00 | K167: 0%
A168: 2 | B168: 2 | C168: 9 | D168: 2 | E168: ´01 | F168: Servicios de alimentación | J168: 0.00 | K168: 0%
A169: 2 | B169: 2 | C169: 9 | D169: 2 | E169: `03 | F169: Servicios de catering | J169: 0.00 | K169: 0%
A170: 2 | B170: 3 | F170: Materiales y Suministros | G170: =+G171+G179+G188+G197+G200+G209+G224+G237 -> 271,887,331.01 | H170: =+H171+H179+H188+H197+H200+H209+H224+H237 -> 66,669,444.39 | I170: =+I171+I179+I188+I197+I200+I209+I224+I237 -> 0.00 | J170: 338,556,775.40 | K170: 19%
A171: 2 | B171: 3 | C171: 1 | F171: Alimentos y Productos Agroforestales | G171: =+G172+G174+G177 -> 0.00 | H171: =+H172+H174+H177 -> 40,796,960.81 | I171: 0.00 | J171: 40,796,960.81 | K171: 2%
A172: 2 | B172: 3 | C172: 1 | D172: 1 | F172: Alimentos y bebidas para personas | G172: =+G173 -> 0.00 | H172: =+H173 -> 40,796,960.81 | I172: 0.00 | J172: 40,796,960.81 | K172: 2%
A173: 2 | B173: 3 | C173: 1 | D173: 1 | E173: `01 | F173: Alimentos y bebidas para personas | H173: 40,796,960.81 | J173: 40,796,960.81 | K173: 2%
A174: 2 | B174: 3 | C174: 1 | D174: 3 | F174: Productos agroforestales y pecuarios | G174: =SUM(G175:G176) -> 0.00 | H174: =SUM(H175:H176) -> 0.00 | I174: 0.00 | J174: 0.00 | K174: 0%
A175: 2 | B175: 3 | C175: 1 | D175: 3 | E175: `02 | F175: Productos agrícolas | J175: 0.00 | K175: 0%
A176: 2 | B176: 3 | C176: 1 | D176: 3 | E176: `03 | F176: Productos forestales | J176: 0.00 | K176: 0%
A177: 2 | B177: 3 | C177: 1 | D177: 4 | F177: Madera, corcho y sus manufacturas | G177: =+G178 -> 0.00 | H177: =+H178 -> 0.00 | I177: 0.00 | J177: 0.00 | K177: 0%
A178: 2 | B178: 3 | C178: 1 | D178: 4 | E178: `01 | F178: Madera, corcho y sus manufacturas | J178: 0.00 | K178: 0%
A179: 2 | B179: 3 | C179: 2 | F179: Textiles y Vestuarios | G179: =+G180+G182+G184+G186 -> 0.00 | H179: =+H180+H182+H184+H186 -> 2,793,648.81 | I179: 0.00 | J179: 2,793,648.81 | K179: 0%
A180: 2 | B180: 3 | C180: 2 | D180: 1 | F180: Hilados, fibras y telas | G180: =+G181 -> 0.00 | H180: =+H181 -> 0.00 | I180: 0.00 | J180: 0.00 | K180: 0%
A181: 2 | B181: 3 | C181: 2 | D181: 1 | E181: `01 | F181: Hilados, fibras y telas | J181: 0.00 | K181: 0%
A182: 2 | B182: 3 | C182: 2 | D182: 2 | F182: Acabados textiles | G182: =+G183 -> 0.00 | H182: =+H183 -> 0.00 | I182: 0.00 | J182: 0.00 | K182: 0%
A183: 2 | B183: 3 | C183: 2 | D183: 2 | E183: `01 | F183: Acabados textiles | J183: 0.00 | K183: 0%
A184: 2 | B184: 3 | C184: 2 | D184: 3 | F184: Prendas de vestir | G184: =+G185 -> 0.00 | H184: =+H185 -> 2,793,648.81 | I184: 0.00 | J184: 2,793,648.81 | K184: 0%
A185: 2 | B185: 3 | C185: 2 | D185: 3 | E185: `01 | F185: Prendas de vestir | H185: 2,793,648.81 | J185: 2,793,648.81 | K185: 0%
A186: 2 | B186: 3 | C186: 2 | D186: 4 | F186: Calzados | G186: =+G187 -> 0.00 | H186: =+H187 -> 0.00 | I186: 0.00 | J186: 0.00 | K186: 0%
A187: 2 | B187: 3 | C187: 2 | D187: 4 | E187: `01 | F187: Calzados | J187: 0.00 | K187: 0%
A188: 2 | B188: 3 | C188: 3 | F188: Productos de Papel, Cartón e Impresos | G188: =+G189+G191+G193+G195 -> 17,400.00 | H188: =+H189+H191+H193+H195 -> 3,019,400.00 | I188: 0.00 | J188: 3,036,800.00 | K188: 0%
A189: 2 | B189: 3 | C189: 3 | D189: 1 | F189: Papel de escritorio | G189: =G190 -> 0.00 | H189: =H190 -> 0.00 | I189: 0.00 | J189: 0.00 | K189: 0%
A190: 2 | B190: 3 | C190: 3 | D190: 1 | E190: `01 | F190: Papel de escritorio | J190: 0.00 | K190: 0%
A191: 2 | B191: 3 | C191: 3 | D191: 2 | F191: Productos de papel y cartón | G191: =+G192 -> 0.00 | H191: =+H192 -> 0.00 | I191: 0.00 | J191: 0.00 | K191: 0%
A192: 2 | B192: 3 | C192: 3 | D192: 2 | E192: `01 | F192: Productos de papel y cartón | J192: 0.00 | K192: 0%
A193: 2 | B193: 3 | C193: 3 | D193: 3 | F193: Productos de artes gráficas | G193: =+G194 -> 17,400.00 | H193: =+H194 -> 3,019,400.00 | I193: 0.00 | J193: 3,036,800.00 | K193: 0%
A194: 2 | B194: 3 | C194: 3 | D194: 3 | E194: `01 | F194: Productos de artes gráficas | G194: 17,400.00 | H194: 3,019,400.00 | J194: 3,036,800.00 | K194: 0%
A195: 2 | B195: 3 | C195: 3 | D195: 4 | F195: Libros, revistas y periódicos | G195: =+G196 -> 0.00 | H195: =+H196 -> 0.00 | I195: 0.00 | J195: 0.00 | K195: 0%
A196: 2 | B196: 3 | C196: 3 | D196: 4 | E196: `01 | F196: Libros, revistas y periódicos | J196: 0.00 | K196: 0%
A197: 2 | B197: 3 | C197: 4 | F197: Productos Farmacéuticos | G197: =+G198 -> 67,571,179.92 | H197: 1,997,002.23 | I197: 0.00 | J197: 69,568,182.15 | K197: 4%
A198: 2 | B198: 3 | C198: 4 | D198: 1 | F198: Productos medicinales para uso humano | G198: 67,571,179.92 | H198: 1,997,002.23 | I198: 0.00 | J198: 69,568,182.15 | K198: 4%
A199: 2 | B199: 3 | C199: 4 | D199: 1 | E199: `01 | F199: Productos medicinales para uso humano | G199: 67,571,179.92 | H199: 1,997,002.23 | J199: 69,568,182.15 | K199: 4%
A200: 2 | B200: 3 | C200: 5 | F200: Productos de Cuero, Caucho y Plasticos | G200: =+G201+G203+G205+G207 -> 0.00 | H200: =+H201+H203+H205+H207 -> 0.00 | I200: 0.00 | J200: 0.00 | K200: 0%
A201: 2 | B201: 3 | C201: 5 | D201: 2 | F201: Producto de cuero | G201: =+G202 -> 0.00 | H201: =+H202 -> 0.00 | I201: 0.00 | J201: 0.00 | K201: 0%
... 125 more rows

Sheet Insumos (hidden)
A1: Insumo | B1: InsumoAbrev | C1: Descripción | D1: Unidad de Medida | E1: Precio Unitario | F1: CODIGO PRESUPUESTARIO
A2: Acabados textiles | B2: lsAcabadosTextiles | C2: Manteles en encajes para bandejas grandes (rectangulares) | D2: unidad | E2: 944.00 | F2: 2.3.2.2.01
A3: Acabados textiles | B3: lsAcabadosTextiles | C3: Manteles en encajes para bandejas pequeñas (rectangulares) | D3: unidad | E3: 590.00 | F3: 2.3.2.2.01
A4: Alimentos y bebidas para personas | B4: lsAlimentosyBebidas | C4: Almuerzo tipo Buffet para 10 personas (Cristaleria, Cuberteria, Servilletas, Jugo) | D4: unidad | E4: 5,000.50 | F4: 2.3.1.1.01
A5: Alimentos y bebidas para personas | B5: lsAlimentosyBebidas | C5: Almuerzo tipo Buffet para 20 personas (Cristalería, Cubertería, Servilletas, Jugo, Café) | D5: unidad | E5: 10,133.50 | F5: 2.3.1.1.01
A6: Alimentos y bebidas para personas | B6: lsAlimentosyBebidas | C6: Almuerzo tipo Buffet para 30 personas (Cristaleria, Cuberteria, Servilletas, Jugo) | D6: unidad | E6: 25,488.00 | F6: 2.3.1.1.01
A7: Alimentos y bebidas para personas | B7: lsAlimentosyBebidas | C7: Almuerzo tipo Buffet para 40 personas (Cristalería, Cuberteria, Mesas, Sillas, Manteles, Servilletas) | D7: unidad | E7: 61,419.00 | F7: 2.3.1.1.01
A8: Alimentos y bebidas para personas | B8: lsAlimentosyBebidas | C8: Refrigerio Dulce tipo Buffet p/65 Personas (Arreglo Flores, Alquiler Cristalería, Sillas, Servilletas, Mesa, Bambalina, Tope) | D8: unidad | E8: 33,435.30 | F8: 2.3.1.1.01
A9: Alimentos y bebidas para personas | B9: lsAlimentosyBebidas | C9: Refrigerio tipo Buffet p/12 personas (4 Variedades, Desechables Transparentes, Jugo Natural, Servilletas, Hielo) | D9: unidad | E9: 9,410.50 | F9: 2.3.1.1.01
A10: Alimentos y bebidas para personas | B10: lsAlimentosyBebidas | C10: Refrigerio tipo Buffet p/15 personas (3 Variedades, Desechables Transparentes, Jugo Natural, Servilletas, Hielo) | D10: unidad | E10: 5,929.50 | F10: 2.3.1.1.01
A11: Alimentos y bebidas para personas | B11: lsAlimentosyBebidas | C11: Refrigerio tipo Buffet p/150 personas (Diferentes Variedades, Bambalinas, Manteles, Desechables, Hielo, Servilletas) | D11: unidad | E11: 65,844.00 | F11: 2.3.1.1.01
A12: Alimentos y bebidas para personas | B12: lsAlimentosyBebidas | C12: Refrigerio tipo Buffet p/40 personas (5 Variedades, Cristaleria, Mantel, Tope, Bambalina, Servilletas, Hielo) | D12: unidad | E12: 29,393.80 | F12: 2.3.1.1.01
A13: Alimentos y bebidas para personas | B13: lsAlimentosyBebidas | C13: Refrigerio tipo Buffet p/45 personas (5 Variedades, Desechable Transparentes, Servilletas, Hielo) | D13: unidad | E13: 27,193.10 | F13: 2.3.1.1.01
A14: Alimentos y bebidas para personas | B14: lsAlimentosyBebidas | C14: Refrigerio tipo preempacado p/100 personas (4 Variedades, Jugo, Desechables Transparentes, Hielo, Servilleta) | D14: unidad | E14: 50,380.10 | F14: 2.3.1.1.01
A15: Alimentos y bebidas para personas | B15: lsAlimentosyBebidas | C15: Refrigerio tipo preempacado p/110 personas (4 Variedades, Jugo, Desechables Transparentes,sillas plasticas, Servilletas) | D15: unidad | E15: 29,323.00 | F15: 2.3.1.1.01
A16: Alimentos y bebidas para personas | B16: lsAlimentosyBebidas | C16: Refrigerio tipo preempacado p/125 personas (4 Variedades, Jugo, Desechables Transparentes,sillas plasticas, Servilletas) | D16: unidad | E16: 32,833.50 | F16: 2.3.1.1.01
A17: Alimentos y bebidas para personas | B17: lsAlimentosyBebidas | C17: Refrigerio tipo preempacado p/20 personas (Variedades fuertes, Jugo, Desechables Transparentes, Servilletas, Hielo) | D17: unidad | E17: 12,537.50 | F17: 2.3.1.1.01
A18: Alimentos y bebidas para personas | B18: lsAlimentosyBebidas | C18: Refrigerio tipo preempacado p/25 personas (4 Variedades, Jugo, Desechables Transparentes, Jugo Natural) | D18: unidad | E18: 12,626.00 | F18: 2.3.1.1.01
A19: Alimentos y bebidas para personas | B19: lsAlimentosyBebidas | C19: Refrigerio tipo preempacado p/250 personas (4 Variedades, Jugo, Desechables Transparentes, Mesas, Manteles) | D19: unidad | E19: 95,892.70 | F19: 2.3.1.1.01
A20: Alimentos y bebidas para personas | B20: lsAlimentosyBebidas | C20: Refrigerio tipo preempacado p/50 personas (3 Variedades, Jugo, Desechables Transparentes, Hielo, Servilleta) | D20: unidad | E20: 19,706.00 | F20: 2.3.1.1.01
A21: Alimentos y bebidas para personas | B21: lsAlimentosyBebidas | C21: Refrigerio y Almuerzo tipo Buffet p/25 personas (Cristaleria, Mesas, Manteles, Bambalina, Hielo, Servilletas | D21: unidad | E21: 30,975.00 | F21: 2.3.1.1.01
A22: Alimentos y bebidas para personas | B22: lsAlimentosyBebidas | C22: Servicio de Almuerzo tipo buffet para 30 Personas | D22: unidad | E22: 15,251.50 | F22: 2.3.1.1.01
A23: Alimentos y bebidas para personas | B23: lsAlimentosyBebidas | C23: Servicio de Refrigerio tipo buffet 30 Personas | D23: unidad | E23: 24,225.40 | F23: 2.3.1.1.01
A24: Artículos de plástico | B24: lsArticulosdePlastico | C24: Cajas de Cucharas Plásticas | D24: Caja | E24: 1,003.00 | F24: 2.3.5.5.01
A25: Artículos de plástico | B25: lsArticulosdePlastico | C25: Cajas de Tenedores Plásticos | D25: Caja | E25: 1,003.00 | F25: 2.3.5.5.01
A26: Artículos de plástico | B26: lsArticulosdePlastico | C26: Cajas de Vasos No. 3 | D26: Caja | E26: 3,009.00 | F26: 2.3.5.5.01
A27: Artículos de plástico | B27: lsArticulosdePlastico | C27: Cajas de Vasos No. 7 | D27: Caja | E27: 1,882.10 | F27: 2.3.5.5.01
A28: Artículos de plástico | B28: lsArticulosdePlastico | C28: Fardos de Fundas Plásticas 17x22 | D28: unidad | E28: 83.78 | F28: 2.3.5.5.01
A29: Artículos de plástico | B29: lsArticulosdePlastico | C29: Fardos de Fundas Plásticas 24x30 | D29: unidad | E29: 192.34 | F29: 2.3.5.5.01
A30: Artículos de plástico | B30: lsArticulosdePlastico | C30: Fardos de Fundas Plásticas no. 55 | D30: unidad | E30: 421.26 | F30: 2.3.5.5.01
A31: Electrodomésticos | B31: lsElectrodomesticos | C31: Aspiradora | D31: unidad | E31: 6,500.00 | F31: 2.6.1.4.01
A32: Electrodomésticos | B32: lsElectrodomesticos | C32: Estufas de 20 pulgadas | D32: unidad | E32: 7,265.26 | F32: 2.6.1.4.01
A33: Electrodomésticos | B33: lsElectrodomesticos | C33: Microondas de 7 pies | D33: unidad | E33: 4,675.25 | F33: 2.6.1.4.01
A34: Electrodomésticos | B34: lsElectrodomesticos | C34: Refrigeradores de 8 pies | D34: unidad | E34: 16,785.50 | F34: 2.6.1.4.01
A35: Electrodomésticos | B35: lsElectrodomesticos | C35: Televisores de 32 pulgadas | D35: unidad | E35: 15,163.00 | F35: 2.6.1.4.01
A36: Equipo de comunicación, telecomunicaciones y señalamiento | B36: lsTelecomunicaciones | C36: Mapas de Evacuación | D36: unidad | E36: 2,330.50 | F36: 2.6.5.5.01
A37: Equipo de comunicación, telecomunicaciones y señalamiento | B37: lsTelecomunicaciones | C37: Otros Señales | E37: 1,150.00 | F37: 2.6.5.5.01
A38: Equipo de comunicación, telecomunicaciones y señalamiento | B38: lsTelecomunicaciones | C38: Punto de Reunion 2x2 pies, Metla colocado en pared | D38: unidad | E38: 2,330.50 | F38: 2.6.5.5.01
A39: Equipo de comunicación, telecomunicaciones y señalamiento | B39: lsTelecomunicaciones | C39: Señal de Ruta de Evacuacion Area, Doble Cara 6x12, para techo con cables de acero Fotoluminiscente | D39: unidad | E39: 3,009.00 | F39: 2.6.5.5.01
A40: Equipo de comunicación, telecomunicaciones y señalamiento | B40: lsTelecomunicaciones | C40: Señales de Ruta de Evacuacion Flecha Derecha 5x8 en vinil fotoluminiscente sobre PVC de 4mm | D40: unidad | E40: 1,150.50 | F40: 2.6.5.5.01
A41: Equipo de comunicación, telecomunicaciones y señalamiento | B41: lsTelecomunicaciones | C41: Señales de Ruta de Evacuacion Flecha Izquierda 5x8 en vinil fotoluminiscente sobre PVC de 4mm | D41: unidad | E41: 1,150.50 | F41: 2.6.5.5.01
A42: Equipo de comunicación, telecomunicaciones y señalamiento | B42: lsTelecomunicaciones | C42: Señales de Salida 12x25¨ en vinil fotoluminiscente sobre PVC de 4mm | D42: unidad | E42: 1,947.00 | F42: 2.6.5.5.01
A43: Equipo de comunicación, telecomunicaciones y señalamiento | B43: lsTelecomunicaciones | C43: Señalizaciones de Extintores y Modo de uso | D43: unidad | E43: 2,212.50 | F43: 2.6.5.5.01
A44: Equipo médico y de laboratorio | B44: lsEquiposMedicos | C44: Agitador rotador VDRL. | D44: unidad | E44: 11,210.00 | F44: 2.6.3.1.01
A45: Equipo médico y de laboratorio | B45: lsEquiposMedicos | C45: Aspirador de secreciones eléctrico rodable | D45: unidad | E45: 15,692.82 | F45: 2.6.3.1.01
A46: Equipo médico y de laboratorio | B46: lsEquiposMedicos | C46: Bandeja de Urología | D46: unidad | E46: 342,200.00 | F46: 2.6.3.1.01
A47: Equipo médico y de laboratorio | B47: lsEquiposMedicos | C47: Contador de células hematológicas. | D47: unidad | E47: 6,254.00 | F47: 2.6.3.1.01
A48: Equipo médico y de laboratorio | B48: lsEquiposMedicos | C48: Incubadora neonatal para UCI | D48: unidad | E48: 531,000.00 | F48: 2.6.3.1.01
A49: Equipo médico y de laboratorio | B49: lsEquiposMedicos | C49: Vitrina de acero inoxidable para material estéril 0.68x0.45x1.70m. | D49: unidad | E49: 49,794.53 | F49: 2.6.3.1.01
A50: Equipo médico y de laboratorio | B50: lsEquiposMedicos | C50: Aza Diatermica | D50: unidad | E50: 275,000.00 | F50: 2.6.3.1.01
A51: Equipo médico y de laboratorio | B51: lsEquiposMedicos | C51: Balanza con tallímetro de 160 kg - 320 lbs. | D51: unidad | E51: 8,407.50 | F51: 2.6.3.1.01
A52: Equipo médico y de laboratorio | B52: lsEquiposMedicos | C52: Balanza analítica de precisión | D52: unidad | E52: 96,885.15 | F52: 2.6.3.1.01
A53: Equipo médico y de laboratorio | B53: lsEquiposMedicos | C53: Bandeja cirugía general | D53: unidad | E53: 250,160.00 | F53: 2.6.3.1.01
A54: Equipo médico y de laboratorio | B54: lsEquiposMedicos | C54: Bandeja de acero inoxidable 30x20cms. | D54: unidad | E54: 2,950.00 | F54: 2.6.3.1.01
A55: Equipo médico y de laboratorio | B55: lsEquiposMedicos | C55: Bandeja de cesárea. | D55: unidad | E55: 226,560.00 | F55: 2.6.3.1.01
A56: Equipo médico y de laboratorio | B56: lsEquiposMedicos | C56: Bandeja de cirugía ortopédica | D56: unidad | E56: 501,500.00 | F56: 2.6.3.1.01
A57: Equipo médico y de laboratorio | B57: lsEquiposMedicos | C57: Bandeja de legrado | D57: unidad | E57: 41,300.00 | F57: 2.6.3.1.01
A58: Equipo médico y de laboratorio | B58: lsEquiposMedicos | C58: Bandeja de parto | D58: unidad | E58: 49,560.00 | F58: 2.6.3.1.01
A59: Equipo médico y de laboratorio | B59: lsEquiposMedicos | C59: Bandeja ginecológica | D59: unidad | E59: 188,800.00 | F59: 2.6.3.1.01
A60: Equipo médico y de laboratorio | B60: lsEquiposMedicos | C60: Baño maría 10 - 15 lts. | D60: unidad | E60: 27,140.00 | F60: 2.6.3.1.01
A61: Equipo médico y de laboratorio | B61: lsEquiposMedicos | C61: Cama tipo hospitalaria, de posición, con barandas, colchón | D61: unidad | E61: 49,219.18 | F61: 2.6.3.1.01
A62: Equipo médico y de laboratorio | B62: lsEquiposMedicos | C62: Cama cuna metálica rodable con barandas para niños 147 x 82.5 x 50 cms. | D62: unidad | E62: 26,137.07 | F62: 2.6.3.1.01
A63: Equipo médico y de laboratorio | B63: lsEquiposMedicos | C63: Cama eléctrica de cuidados intensivos con barandas y funciones de posicionamientos especiales | D63: unidad | E63: 105,563.74 | F63: 2.6.3.1.01
A64: Equipo médico y de laboratorio | B64: lsEquiposMedicos | C64: Cama unipersonal | D64: unidad | E64: 6,490.00 | F64: 2.6.3.1.01
A65: Equipo médico y de laboratorio | B65: lsEquiposMedicos | C65: Camilla de emergencia con barandas, ruedas y porta suero incluido | D65: unidad | E65: 30,335.33 | F65: 2.6.3.1.01
A66: Equipo médico y de laboratorio | B66: lsEquiposMedicos | C66: Camilla de transporte intrahospitalaria con barandas, ruedas y porta suero | D66: unidad | E66: 72,981.65 | F66: 2.6.3.1.01
A67: Equipo médico y de laboratorio | B67: lsEquiposMedicos | C67: Camilla de trauma shock | D67: unidad | E67: 172,048.60 | F67: 2.6.3.1.01
A68: Equipo médico y de laboratorio | B68: lsEquiposMedicos | C68: Camilla para examen ginecológico. | D68: unidad | E68: 104,465.40 | F68: 2.6.3.1.01
A69: Equipo médico y de laboratorio | B69: lsEquiposMedicos | C69: Carro de cura | D69: unidad | E69: 8,314.29 | F69: 2.6.3.1.01
A70: Equipo médico y de laboratorio | B70: lsEquiposMedicos | C70: Centrífuga de Mesa de 24 tubos | D70: unidad | E70: 198,806.40 | F70: 2.6.3.1.01
A71: Equipo médico y de laboratorio | B71: lsEquiposMedicos | C71: Chaleco plomado | D71: unidad | E71: 11,313.84 | F71: 2.6.3.1.01
A72: Equipo médico y de laboratorio | B72: lsEquiposMedicos | C72: Cipap Fisher | D72: unidad | E72: 469,017.41 | F72: 2.6.3.1.01
A73: Equipo médico y de laboratorio | B73: lsEquiposMedicos | C73: Colchones Hospitalarios 36' x 76' (Azul, Marron o Crema) | D73: unidad | E73: 4,501.70 | F73: 2.6.3.1.01
A74: Equipo médico y de laboratorio | B74: lsEquiposMedicos | C74: Cuna de calor radiante | D74: unidad | E74: 161,582.93 | F74: 2.6.3.1.01
A75: Equipo médico y de laboratorio | B75: lsEquiposMedicos | C75: Desfibrilador con monitor ECG, paleta externas y batería interna. | D75: unidad | E75: 344,224.69 | F75: 2.6.3.1.01
A76: Equipo médico y de laboratorio | B76: lsEquiposMedicos | C76: Doppler fetal fijo | D76: unidad | E76: 24,151.66 | F76: 2.6.3.1.01
A77: Equipo médico y de laboratorio | B77: lsEquiposMedicos | C77: Doppler fetal portátil | D77: unidad | E77: 12,836.04 | F77: 2.6.3.1.01
A78: Equipo médico y de laboratorio | B78: lsEquiposMedicos | C78: Electrocardiógrafo de 3 canales portátil con carro | D78: unidad | E78: 45,994.84 | F78: 2.6.3.1.01
A79: Equipo médico y de laboratorio | B79: lsEquiposMedicos | C79: Electrocauterio | D79: unidad | E79: 111,029.42 | F79: 2.6.3.1.01
A80: Equipo médico y de laboratorio | B80: lsEquiposMedicos | C80: Escalinata de 2 peldaño | D80: unidad | E80: 1,770.00 | F80: 2.6.3.1.01
A81: Equipo médico y de laboratorio | B81: lsEquiposMedicos | C81: Esfigmomanómetro De Pared Con Brazalete Adulto | D81: unidad | E81: 4,524.99 | F81: 2.6.3.1.01
A82: Equipo médico y de laboratorio | B82: lsEquiposMedicos | C82: Esfigmomanómetro de pared con set de brazaletes pediátrico. | D82: unidad | E82: 3,299.87 | F82: 2.6.3.1.01
A83: Equipo médico y de laboratorio | B83: lsEquiposMedicos | C83: Esfigmomanómetro de pedestal rodable adulto | D83: unidad | E83: 4,242.69 | F83: 2.6.3.1.01
A84: Equipo médico y de laboratorio | B84: lsEquiposMedicos | C84: Esfigmomanómetro de pedestal rodable adulto/pediátrico | D84: unidad | E84: 11,859.99 | F84: 2.6.3.1.01
A85: Equipo médico y de laboratorio | B85: lsEquiposMedicos | C85: Esfigmomanómetro portátil con brazalete para adulto | D85: unidad | E85: 1,479.99 | F85: 2.6.3.1.01
A86: Equipo médico y de laboratorio | B86: lsEquiposMedicos | C86: Esfigmomanómetro portátil con set de Brazaletes pediátricos | D86: unidad | E86: 1,999.99 | F86: 2.6.3.1.01
A87: Equipo médico y de laboratorio | B87: lsEquiposMedicos | C87: Estantería metalica de 4 niveles regulares | D87: unidad | E87: 6,938.40 | F87: 2.6.3.1.01
A88: Equipo médico y de laboratorio | B88: lsEquiposMedicos | C88: Estetoscopio doble campana | D88: unidad | E88: 938.18 | F88: 2.6.3.1.01
A89: Equipo médico y de laboratorio | B89: lsEquiposMedicos | C89: Estetoscopio pediátrico | D89: unidad | E89: 3,519.94 | F89: 2.6.3.1.01
A90: Equipo médico y de laboratorio | B90: lsEquiposMedicos | C90: Frasco Esteril para muestras | D90: unidad | E90: 9.00 | F90: 2.6.3.1.01
A91: Equipo médico y de laboratorio | B91: lsEquiposMedicos | C91: Horno eléctrico al seco cap. 28 litros. | D91: unidad | E91: 63,229.12 | F91: 2.6.3.1.01
A92: Equipo médico y de laboratorio | B92: lsEquiposMedicos | C92: Incubadora de transporte | D92: unidad | E92: 475,540.00 | F92: 2.6.3.1.01
A93: Equipo médico y de laboratorio | B93: lsEquiposMedicos | C93: Incubadora neonatal estándar | D93: unidad | E93: 490,481.16 | F93: 2.6.3.1.01
A94: Equipo médico y de laboratorio | B94: lsEquiposMedicos | C94: Instalación de Rayos X en el Hospital Municipal de Haina | D94: unidad | E94: 74,340.00 | F94: 2.6.3.1.01
A95: Equipo médico y de laboratorio | B95: lsEquiposMedicos | C95: Lámpara de fototerapia | D95: unidad | E95: 40,101.79 | F95: 2.6.3.1.01
A96: Equipo médico y de laboratorio | B96: lsEquiposMedicos | C96: Lámpara quirúrgica cialítica de potencia alta. | D96: unidad | E96: 386,697.03 | F96: 2.6.3.1.01
A97: Equipo médico y de laboratorio | B97: lsEquiposMedicos | C97: Lámpara quirúrgica de pie rodable . | D97: unidad | E97: 142,177.26 | F97: 2.6.3.1.01
A98: Equipo médico y de laboratorio | B98: lsEquiposMedicos | C98: Laringoscopio adulto | D98: unidad | E98: 26,868.60 | F98: 2.6.3.1.01
A99: Equipo médico y de laboratorio | B99: lsEquiposMedicos | C99: Máquina de anestesia 3 gases con monitoreo avanzado. | D99: unidad | E99: 1,897,493.10 | F99: 2.6.3.1.01
A100: Equipo médico y de laboratorio | B100: lsEquiposMedicos | C100: Mesa de parto | D100: unidad | E100: 232,041.10 | F100: 2.6.3.1.01
A101: Equipo médico y de laboratorio | B101: lsEquiposMedicos | C101: Mesa metálica angular rodable para instrumentos de acero inoxidable | D101: unidad | E101: 34,703.80 | F101: 2.6.3.1.01
A102: Equipo médico y de laboratorio | B102: lsEquiposMedicos | C102: Mesa metálica tipo mayo acero inoxidable | D102: unidad | E102: 8,903.10 | F102: 2.6.3.1.01
A103: Equipo médico y de laboratorio | B103: lsEquiposMedicos | C103: Mesa para operaciones mayores | D103: unidad | E103: 130,316.25 | F103: 2.6.3.1.01
A104: Equipo médico y de laboratorio | B104: lsEquiposMedicos | C104: Microscopio binocular Tipo Estándar | D104: unidad | E104: 22,139.75 | F104: 2.6.3.1.01
A105: Equipo médico y de laboratorio | B105: lsEquiposMedicos | C105: Monitor de actividad intrauterina y cardiofetal | D105: unidad | E105: 62,932.23 | F105: 2.6.3.1.01
A106: Equipo médico y de laboratorio | B106: lsEquiposMedicos | C106: Monitor de funciones vitales de transporte 5 pararametros | D106: unidad | E106: 62,932.23 | F106: 2.6.3.1.01
A107: Equipo médico y de laboratorio | B107: lsEquiposMedicos | C107: Monitores de signos vitales de pared de 5 parámetros . | D107: unidad | E107: 57,230.00 | F107: 2.6.3.1.01
A108: Equipo médico y de laboratorio | B108: lsEquiposMedicos | C108: Nebulizador | D108: unidad | E108: 2,549.99 | F108: 2.6.3.1.01
A109: Equipo médico y de laboratorio | B109: lsEquiposMedicos | C109: Negatoscopio metálico de 1 campo | D109: unidad | E109: 13,999.99 | F109: 2.6.3.1.01
A110: Equipo médico y de laboratorio | B110: lsEquiposMedicos | C110: Negatoscopio metálico de 2 campos. | D110: unidad | E110: 19,383.86 | F110: 2.6.3.1.01
A111: Equipo médico y de laboratorio | B111: lsEquiposMedicos | C111: Nevera para banco de sangre | D111: unidad | E111: 250,971.84 | F111: 2.6.3.1.01
A112: Equipo médico y de laboratorio | B112: lsEquiposMedicos | C112: Nevera para Reactivos | D112: unidad | E112: 257,712.00 | F112: 2.6.3.1.01
A113: Equipo médico y de laboratorio | B113: lsEquiposMedicos | C113: Orinal metálico | D113: unidad | E113: 3,613.16 | F113: 2.6.3.1.01
A114: Equipo médico y de laboratorio | B114: lsEquiposMedicos | C114: Pulsoxímetro adulto pediátrico portátil. | D114: unidad | E114: 34,202.30 | F114: 2.6.3.1.01
A115: Equipo médico y de laboratorio | B115: lsEquiposMedicos | C115: Pulsoxímetro con sensor neonatal. | D115: unidad | E115: 30,336.03 | F115: 2.6.3.1.01
A116: Equipo médico y de laboratorio | B116: lsEquiposMedicos | C116: Resucitador manual adulto | D116: unidad | E116: 1,250.80 | F116: 2.6.3.1.01
A117: Equipo médico y de laboratorio | B117: lsEquiposMedicos | C117: Resucitador manual neonatal | D117: unidad | E117: 1,250.80 | F117: 2.6.3.1.01
A118: Equipo médico y de laboratorio | B118: lsEquiposMedicos | C118: Resucitador manual pediátrico | D118: unidad | E118: 1,250.80 | F118: 2.6.3.1.01
A119: Equipo médico y de laboratorio | B119: lsEquiposMedicos | C119: Set de cirugía menor | D119: unidad | E119: 21,240.00 | F119: 2.6.3.1.01
A120: Equipo médico y de laboratorio | B120: lsEquiposMedicos | C120: Set de diagnóstico de pared | D120: unidad | E120: 43,960.90 | F120: 2.6.3.1.01
A121: Equipo médico y de laboratorio | B121: lsEquiposMedicos | C121: Set de diagnóstico portátil | D121: unidad | E121: 13,750.00 | F121: 2.6.3.1.01
A122: Equipo médico y de laboratorio | B122: lsEquiposMedicos | C122: Set instrumental de curaciones. | D122: unidad | E122: 13,570.00 | F122: 2.6.3.1.01
A123: Equipo médico y de laboratorio | B123: lsEquiposMedicos | C123: Silla de rueda aro No. 18 | D123: unidad | E123: 4,284.71 | F123: 2.6.3.1.01
A124: Equipo médico y de laboratorio | B124: lsEquiposMedicos | C124: Silla de rueda aro No. 24 | D124: unidad | E124: 5,726.64 | F124: 2.6.3.1.01
A125: Equipo médico y de laboratorio | B125: lsEquiposMedicos | C125: Sillón dental (de fabricación de local) | D125: unidad | E125: 20,650.00 | F125: 2.6.3.1.01
A126: Equipo médico y de laboratorio | B126: lsEquiposMedicos | C126: Unidad de Monitoreo de Cuidados Intensivos | D126: unidad | E126: 575,000.01 | F126: 2.6.3.1.01
A127: Equipo médico y de laboratorio | B127: lsEquiposMedicos | C127: Unidad de Rayos X portátil y con batería. | D127: unidad | E127: 2,542,900.00 | F127: 2.6.3.1.01
A128: Equipo médico y de laboratorio | B128: lsEquiposMedicos | C128: Unidad dental digital completa | D128: unidad | E128: 172,556.12 | F128: 2.6.3.1.01
A129: Equipo médico y de laboratorio | B129: lsEquiposMedicos | C129: Unidades dentales (de fabricación local) | D129: unidad | E129: 44,250.00 | F129: 2.6.3.1.01
A130: Equipo médico y de laboratorio | B130: lsEquiposMedicos | C130: Ventilador mecánico adulto/pediátrico | D130: unidad | E130: 719,492.56 | F130: 2.6.3.1.01
A131: Equipo médico y de laboratorio | B131: lsEquiposMedicos | C131: Ventilador mecánico neonatal | D131: unidad | E131: 816,192.43 | F131: 2.6.3.1.01
A132: Equipos de cómputo | B132: lsEquiposComputos | C132: Computadoras de escritorio | D132: unidad | E132: 36,954.32 | F132: 2.6.1.3.01
A133: Equipos de cómputo | B133: lsEquiposComputos | C133: Headsets | D133: unidad | E133: 3,776.00 | F133: 2.6.1.3.01
A134: Equipos de cómputo | B134: lsEquiposComputos | C134: Impresora Multifunción | D134: unidad | E134: 12,390.00 | F134: 2.6.1.3.01
A135: Equipos de cómputo | B135: lsEquiposComputos | C135: Impresoras Blanco y Negro | D135: unidad | E135: 6,293.71 | F135: 2.6.1.3.01
A136: Equipos de cómputo | B136: lsEquiposComputos | C136: Laptop de 14 pulgadas | D136: unidad | E136: 27,200.00 | F136: 2.6.1.3.01
A137: Equipos de seguridad | B137: lsEquiposSeguridad | C137: Arco Detector de Metales de 87' de alto x 35' de anho | D137: unidad | E137: 109,504.00 | F137: 2.6.6.2.01
A138: Equipos de seguridad | B138: lsEquiposSeguridad | C138: Detectores de Metal Portatil de 16,5' de longitud | D138: unidad | E138: 5,723.00 | F138: 2.6.6.2.01
A139: Eventos generales | B139: lsEventosGenerales | C139: Alojamiento por una Noche por persona | D139: unidad | E139: 6,200.00 | F139: 2.2.8.6.01
A140: Eventos generales | B140: lsEventosGenerales | C140: Audivisuales, Decoración, Montaje y Desmontaje de Evento por 50 personas | D140: unidad | E140: 86,568.53 | F140: 2.2.8.6.01
A141: Eventos generales | B141: lsEventosGenerales | C141: Audivisuales, Decoración, Montaje y Desmontaje de Evento por 80 personas | D141: unidad | E141: 100,917.38 | F141: 2.2.8.6.01
A142: Gasoil | B142: lsGasoil | C142: Tickets de Combustible de RD$1,000.00 | D142: unidad | E142: 1,000.00 | F142: 2.3.7.1.02
A143: Gasoil | B143: lsGasoil | C143: Tickets de Combustible de RD$200.00 | D143: unidad | E143: 200.00 | F143: 2.3.7.1.02
A144: Gasoil | B144: lsGasoil | C144: Tickets de Combustible de RD$500.00 | D144: unidad | E144: 500.00 | F144: 2.3.7.1.02
A145: Gasoil | B145: lsGasoil | C145: Galones de Gasoil Optimo | D145: galon | E145: 197.00 | F145: 2.3.7.1.02
A146: Gasoil | B146: lsGasoil | C146: Galones de Gasoil Regular | D146: galon | E146: 181.00 | F146: 2.3.7.1.02
A147: Gasoil | B147: lsGasoil | C147: Galones de Gasolina Premium | D147: galon | E147: 251.00 | F147: 2.3.7.1.02
A148: Gasoil | B148: lsGasoil | C148: Galones de Gasolina Regular | D148: galon | E148: 230.00 | F148: 2.3.7.1.02
A149: Gasoil | B149: lsGasoil | C149: Galones de GPL | D149: galon | E149: 110.00 | F149: 2.3.7.1.02
A150: Herramientas menores | B150: lsHerramientasMenores | C150: 60 pie de Alambre Vinyl #14/2 | D150: pie | E150: 28.32 | F150: 2.3.6.3.04
A151: Herramientas menores | B151: lsHerramientasMenores | C151: Bandeja metálica colectora de agua de 1.50 x 0.70 x 0.70mts | D151: unidad | E151: 8,500.00 | F151: 2.3.6.3.04
A152: Herramientas menores | B152: lsHerramientasMenores | C152: Cajas aéreas plásticas | D152: unidad | E152: 81.17 | F152: 2.3.6.3.04
A153: Herramientas menores | B153: lsHerramientasMenores | C153: Canaleta de 1 pulgada | D153: unidad | E153: 103.36 | F153: 2.3.6.3.04
A154: Herramientas menores | B154: lsHerramientasMenores | C154: Codos de 1' PVC | D154: unidad | E154: 20.06 | F154: 2.3.6.3.04
A155: Herramientas menores | B155: lsHerramientasMenores | C155: Destornillador de Estria | D155: unidad | E155: 208.86 | F155: 2.3.6.3.04
A156: Herramientas menores | B156: lsHerramientasMenores | C156: Destornillador Plano | D156: unidad | E156: 206.74 | F156: 2.3.6.3.04
A157: Herramientas menores | B157: lsHerramientasMenores | C157: Faceplate 1 salida | D157: unidad | E157: 43.29 | F157: 2.3.6.3.04
A158: Herramientas menores | B158: lsHerramientasMenores | C158: Grapas Plasticas para Alambre Vinyl #13 | D158: unidad | E158: 5.90 | F158: 2.3.6.3.04
A159: Herramientas menores | B159: lsHerramientasMenores | C159: Llave de Rueda tipo T | D159: unidad | E159: 944.00 | F159: 2.3.6.3.04
A160: Herramientas menores | B160: lsHerramientasMenores | C160: Llaves de paso de bola (1 pulgada) | D160: unidad | E160: 571.12 | F160: 2.3.6.3.04
A161: Herramientas menores | B161: lsHerramientasMenores | C161: Martillo | D161: unidad | E161: 619.50 | F161: 2.3.6.3.04
A162: Herramientas menores | B162: lsHerramientasMenores | C162: Mini Jack RJ45 | D162: unidad | E162: 100.30 | F162: 2.3.6.3.04
A163: Herramientas menores | B163: lsHerramientasMenores | C163: Niples 1' x 2' hg | D163: unidad | E163: 33.63 | F163: 2.3.6.3.04
A164: Herramientas menores | B164: lsHerramientasMenores | C164: Niples de 1' x 3' hg | D164: unidad | E164: 44.25 | F164: 2.3.6.3.04
A165: Herramientas menores | B165: lsHerramientasMenores | C165: Organizador horizontal plástico | D165: unidad | E165: 855.50 | F165: 2.3.6.3.04
A166: Herramientas menores | B166: lsHerramientasMenores | C166: Patch Cord UTP Cat.6 de 2 pies | D166: unidad | E166: 60.23 | F166: 2.3.6.3.04
A167: Herramientas menores | B167: lsHerramientasMenores | C167: Patch Cord UTP Cat.6 de 7 pies | D167: unidad | E167: 102.81 | F167: 2.3.6.3.04
A168: Herramientas menores | B168: lsHerramientasMenores | C168: Patch Panel 24 puertos Cat.6 | D168: unidad | E168: 3,030.43 | F168: 2.3.6.3.04
A169: Herramientas menores | B169: lsHerramientasMenores | C169: Pinzas para corte de tola | D169: unidad | E169: 858.45 | F169: 2.3.6.3.04
A170: Herramientas menores | B170: lsHerramientasMenores | C170: Punta de Tria para Taladro | D170: unidad | E170: 206.72 | F170: 2.3.6.3.04
A171: Herramientas menores | B171: lsHerramientasMenores | C171: PVC CR80/30 (kit de 500) | D171: unidad | E171: 4,425.00 | F171: 2.3.6.3.04
A172: Herramientas menores | B172: lsHerramientasMenores | C172: Rack (Palometas) de Pared para Monitor NK PVM-2701 | D172: unidad | E172: 13,500.00 | F172: 2.3.6.3.04
A173: Herramientas menores | B173: lsHerramientasMenores | C173: Rack de pared 7U con Bisagras | D173: unidad | E173: 1,416.00 | F173: 2.3.6.3.04
A174: Herramientas menores | B174: lsHerramientasMenores | C174: Tarugos Azules | D174: unidad | E174: 3.54 | F174: 2.3.6.3.04
A175: Herramientas menores | B175: lsHerramientasMenores | C175: tee de 1 pulgada hg | D175: unidad | E175: 73.16 | F175: 2.3.6.3.04
A176: Herramientas menores | B176: lsHerramientasMenores | C176: Tira de Lija 100/1 | D176: unidad | E176: 548.27 | F176: 2.3.6.3.04
A177: Herramientas menores | B177: lsHerramientasMenores | C177: Tira de Lija de Metal 12/1 | D177: unidad | E177: 526.33 | F177: 2.3.6.3.04
A178: Herramientas menores | B178: lsHerramientasMenores | C178: Tornillo para Tarugo Azul | D178: unidad | E178: 3.54 | F178: 2.3.6.3.04
A179: Herramientas menores | B179: lsHerramientasMenores | C179: Tubo de Silicón Transparente | D179: unidad | E179: 265.50 | F179: 2.3.6.3.04
A180: Impresión y encuadernación | B180: lsImpresionyEncuadernacion | C180: Impresión Formularios (dos caras) | D180: unidad | E180: 1.98 | F180: 2.2.2.2.01
A181: Llantas y neumáticos | B181: lsLlantasyNeumaticos | C181: Goma (No.265/70/16 para camioneta Toyota Hilux) | D181: unidad | E181: 7,773.84 | F181: 2.3.5.3.01
A182: Llantas y neumáticos | B182: lsLlantasyNeumaticos | C182: Gomas (No. 265/70/15 para jeep Chevrolet Brazer) | D182: unidad | E182: 9,343.24 | F182: 2.3.5.3.01
A183: Llantas y neumáticos | B183: lsLlantasyNeumaticos | C183: Neumáticos para Ford Ranger, Pirelli 265-70R-16 | D183: unidad | E183: 10,915.00 | F183: 2.3.5.3.01
A184: Llantas y neumáticos | B184: lsLlantasyNeumaticos | C184: Neumáticos para Motocicleta 110/80-18-58, trasera, Michelin | D184: unidad | E184: 3,923.50 | F184: 2.3.5.3.01
A185: Llantas y neumáticos | B185: lsLlantasyNeumaticos | C185: Neumáticos para Motocicletas 80/90-21mc48p, delanteras Michelin | D185: unidad | E185: 4,543.00 | F185: 2.3.5.3.01
A186: Llantas y neumáticos | B186: lsLlantasyNeumaticos | C186: Neumáticos para Toyota Hilux, Firestone 265/70 R 16 | D186: unidad | E186: 9,204.00 | F186: 2.3.5.3.01
A187: Llantas y neumáticos | B187: lsLlantasyNeumaticos | C187: Tubo de Neumáticos para Motocicleta, delantero, Michelin | D187: unidad | E187: 1,239.00 | F187: 2.3.5.3.01
A188: Llantas y neumáticos | B188: lsLlantasyNeumaticos | C188: Tubo de Neumáticos para Motocicleta, trasero, Michelin | D188: unidad | E188: 1,239.00 | F188: 2.3.5.3.01
A189: Mantenimiento y reparación de equipos de transporte, tracción y elevación | B189: lsMantenimiento | C189: Instalación, Correcion de Pintura, Cristal Delantero y Bumper de vehiculo | D189: unidad | E189: 54,999.99 | F189: 2.7.2.6.01
A190: Mantenimiento y reparación de equipos de transporte, tracción y elevación | B190: lsMantenimiento | C190: Mantenimiento de Vehículos | D190: unidad | E190: 17,023.80 | F190: 2.7.2.6.01
A191: Mantenimiento y reparación de equipos para computación | B191: lsMantenimiento | C191: Mantenimiento y/o Reparación Impresora Multifuncional | D191: unidad | E191: 4,130.00 | F191: 2.7.2.2.01
A192: Mantenimiento y reparación de equipos para computación | B192: lsMantenimiento | C192: Mantenimiento y/o Reparación Impresora Laser | D192: unidad | E192: 16,048.00 | F192: 2.7.2.2.01
A193: Mantenimiento y reparación de equipos para computación | B193: lsMantenimiento | C193: Servicio de Reparación y Mantenimiento de Fotocopiadora (anual) | D193: unidad | E193: 24,502.70 | F193: 2.7.2.2.01
A194: Mantenimiento y reparación de equipos sanitarios y de laboratorio | B194: lsMantenimiento | C194: Reparación de Tomógrafo General Electric Brights Speed, serial 277468nm5 | D194: unidad | E194: 715,000.00 | F194: 2.7.2.4.01
A195: Mantenimiento y reparación de maquinarias y equipos | B195: lsMantenimiento | C195: Mantenimiento de Planta Electrica Cummins 20KVA | D195: unidad | E195: 60,742.81 | F195: 2.7.2.6.01
A196: Mantenimiento y reparación de maquinarias y equipos | B196: lsMantenimiento | C196: Mantenimiento y Reparación de Aire Acondicionado de 3 Toneladas | D196: unidad | E196: 30,385.00 | F196: 2.7.2.6.01
A197: Mantenimiento y reparación de maquinarias y equipos | B197: lsMantenimiento | C197: Reparacion y Mantenimiento Planta Eléctrica | D197: unidad | E197: 79,818.74 | F197: 2.7.2.6.01
A198: Mantenimiento y reparación de maquinarias y equipos | B198: lsMantenimiento | C198: Servicio de Mantenimiento de Aire Acondicionado | D198: unidad | E198: 4,500.00 | F198: 2.2.7.2.01
A199: Mantenimiento y reparación de maquinarias y equipos | B199: lsMantenimiento | C199: Servicio de mantenimiento,lavado y brillado de piso | D199: unidad | E199: 44,840.00 | F199: 2.7.1.7.01
A200: Mantenimiento y reparación de maquinarias y equipos | B200: lsMantenimiento | C200: Servicios de Desinstalacion, Instalación y Mantenimiento | D200: unidad | E200: 8,850.00 | F200: 2.7.2.6.01
... 365 more rows
